Transaction Date,Local Authority Department,Beneficiary,Purpose of Expenditure,Amount (excluding VAT),Non Recoverable VAT,Merchant Category
 05-02-2024,oneSource Non-Shared LBH,Excel London ,Premises Hire - Facilities,65392.56,0.00,COMMERCIAL SUPPLIER 
 06-02-2024,oneSource Non-Shared LBH,Class Networks,Mobile Phone Costs,616.00,0.00,COMMERCIAL SUPPLIER 
 06-02-2024,oneSource Non-Shared LBH,Class Networks,Ict Maintenance And Support,6317.56,0.00,COMMERCIAL SUPPLIER 
 06-02-2024,oneSource Non-Shared LBH,Class Networks,Ict Maintenance And Support,6637.89,0.00,COMMERCIAL SUPPLIER 
 06-02-2024,oneSource Non-Shared LBH,Class Networks,Ict Maintenance And Support,8304.00,0.00,COMMERCIAL SUPPLIER 
 06-02-2024,oneSource Non-Shared LBH,Class Networks,Ict Maintenance And Support,6234.65,0.00,COMMERCIAL SUPPLIER 
 06-02-2024,oneSource Non-Shared LBH,Lancashire County Council,Professional Services - General,44423.00,0.00,NON COMMERCIAL SUPPLIER 
 09-02-2024,oneSource Non-Shared LBH,Computershare Voucher Services,Private Contractors Payment - Other,2662.86,0.00,COMMERCIAL SUPPLIER 
 14-02-2024,oneSource Non-Shared LBH,Romford Town Management Partnership Ltd,Consultancy Fees,14677.30,0.00,NON COMMERCIAL SUPPLIER 
 15-02-2024,oneSource Non-Shared LBH,Class Networks,Mobile Phone Costs,7591.68,0.00,COMMERCIAL SUPPLIER 
 15-02-2024,oneSource Non-Shared LBH,Class Networks,Mobile Phone Costs,3037.92,0.00,COMMERCIAL SUPPLIER 
 22-02-2024,oneSource Non-Shared LBH,SSG Support Services Group,Security Services (Excluding Premises),1361.28,0.00,COMMERCIAL SUPPLIER 
 01-02-2024,oneSource Shared,Nominet Uk,Ict Maintenance And Support,1105.99,0.00,COMMERCIAL SUPPLIER 
 04-02-2024,oneSource Shared,Matrix SCM Ltd,Consultancy Fees,12890.03,0.00,COMMERCIAL SUPPLIER 
 04-02-2024,oneSource Shared,Matrix SCM Ltd,Consultancy Fees,12372.25,0.00,COMMERCIAL SUPPLIER 
 07-02-2024,oneSource Shared,Matrix SCM Ltd,Agency Staff,704.99,0.00,COMMERCIAL SUPPLIER 
 07-02-2024,oneSource Shared,Matrix SCM Ltd,Agency Staff,873.73,0.00,COMMERCIAL SUPPLIER 
 07-02-2024,oneSource Shared,Matrix SCM Ltd,Agency Staff,851.20,0.00,COMMERCIAL SUPPLIER 
 07-02-2024,oneSource Shared,Matrix SCM Ltd,Agency Staff,851.20,0.00,COMMERCIAL SUPPLIER 
 07-02-2024,oneSource Shared,Matrix SCM Ltd,Agency Staff,1241.10,0.00,COMMERCIAL SUPPLIER 
 07-02-2024,oneSource Shared,Matrix SCM Ltd,Agency Staff,3046.06,0.00,COMMERCIAL SUPPLIER 
 07-02-2024,oneSource Shared,Matrix SCM Ltd,Agency Staff,3764.20,0.00,COMMERCIAL SUPPLIER 
 07-02-2024,oneSource Shared,Matrix SCM Ltd,Agency Staff,2493.95,0.00,COMMERCIAL SUPPLIER 
 07-02-2024,oneSource Shared,Matrix SCM Ltd,Agency Staff,970.56,0.00,COMMERCIAL SUPPLIER 
 07-02-2024,oneSource Shared,Matrix SCM Ltd,Agency Staff,748.10,0.00,COMMERCIAL SUPPLIER 
 07-02-2024,oneSource Shared,Matrix SCM Ltd,Agency Staff,880.93,0.00,COMMERCIAL SUPPLIER 
 07-02-2024,oneSource Shared,Matrix SCM Ltd,Agency Staff,876.61,0.00,COMMERCIAL SUPPLIER 
 07-02-2024,oneSource Shared,Matrix SCM Ltd,Agency Staff,850.68,0.00,COMMERCIAL SUPPLIER 
 07-02-2024,oneSource Shared,Matrix SCM Ltd,Agency Staff,880.58,0.00,COMMERCIAL SUPPLIER 
 07-02-2024,oneSource Shared,Matrix SCM Ltd,Agency Staff,3627.10,0.00,COMMERCIAL SUPPLIER 
 07-02-2024,oneSource Shared,Matrix SCM Ltd,Agency Staff,4537.95,0.00,COMMERCIAL SUPPLIER 
 07-02-2024,oneSource Shared,Matrix SCM Ltd,Agency Staff,2546.00,0.00,COMMERCIAL SUPPLIER 
 08-02-2024,oneSource Shared,Canon (UK) Ltd,Printing,889.20,0.00,COMMERCIAL SUPPLIER 
 08-02-2024,oneSource Shared,Matrix SCM Ltd,Consultancy Fees,5112.50,0.00,COMMERCIAL SUPPLIER 
 08-02-2024,oneSource Shared,Matrix SCM Ltd,Consultancy Fees,5112.50,0.00,COMMERCIAL SUPPLIER 
 08-02-2024,oneSource Shared,Matrix SCM Ltd,Consultancy Fees,2709.62,0.00,COMMERCIAL SUPPLIER 
 08-02-2024,oneSource Shared,Matrix SCM Ltd,Consultancy Fees,14066.50,0.00,COMMERCIAL SUPPLIER 
 08-02-2024,oneSource Shared,Matrix SCM Ltd,Consultancy Fees,9739.31,0.00,COMMERCIAL SUPPLIER 
 08-02-2024,oneSource Shared,Matrix SCM Ltd,Consultancy Fees,12372.25,0.00,COMMERCIAL SUPPLIER 
 09-02-2024,oneSource Shared,Ovenden Papers Ltd,Printing,1230.90,0.00,COMMERCIAL SUPPLIER 
 09-02-2024,oneSource Shared,Version 1 Solutions Limited,Ict Maintenance And Support,8500.00,0.00,COMMERCIAL SUPPLIER 
 09-02-2024,oneSource Shared,Version 1 Solutions Limited,Ict Maintenance And Support,3019.00,0.00,COMMERCIAL SUPPLIER 
 13-02-2024,oneSource Shared,Stripe OLT,Ict Maintenance And Support,12500.00,0.00,COMMERCIAL SUPPLIER 
 14-02-2024,oneSource Shared,Matrix SCM Ltd,Agency Staff,704.99,0.00,COMMERCIAL SUPPLIER 
 14-02-2024,oneSource Shared,Matrix SCM Ltd,Agency Staff,873.73,0.00,COMMERCIAL SUPPLIER 
 14-02-2024,oneSource Shared,Matrix SCM Ltd,Agency Staff,851.20,0.00,COMMERCIAL SUPPLIER 
 14-02-2024,oneSource Shared,Matrix SCM Ltd,Agency Staff,851.20,0.00,COMMERCIAL SUPPLIER 
 14-02-2024,oneSource Shared,Matrix SCM Ltd,Agency Staff,704.56,0.00,COMMERCIAL SUPPLIER 
 14-02-2024,oneSource Shared,Matrix SCM Ltd,Agency Staff,3046.05,0.00,COMMERCIAL SUPPLIER 
 14-02-2024,oneSource Shared,Matrix SCM Ltd,Agency Staff,2493.95,0.00,COMMERCIAL SUPPLIER 
 14-02-2024,oneSource Shared,Matrix SCM Ltd,Agency Staff,3764.20,0.00,COMMERCIAL SUPPLIER 
 14-02-2024,oneSource Shared,Matrix SCM Ltd,Agency Staff,970.56,0.00,COMMERCIAL SUPPLIER 
 14-02-2024,oneSource Shared,Matrix SCM Ltd,Agency Staff,748.10,0.00,COMMERCIAL SUPPLIER 
 14-02-2024,oneSource Shared,Matrix SCM Ltd,Agency Staff,807.52,0.00,COMMERCIAL SUPPLIER 
 14-02-2024,oneSource Shared,Matrix SCM Ltd,Agency Staff,850.68,0.00,COMMERCIAL SUPPLIER 
 14-02-2024,oneSource Shared,Matrix SCM Ltd,Agency Staff,751.33,0.00,COMMERCIAL SUPPLIER 
 14-02-2024,oneSource Shared,Matrix SCM Ltd,Agency Staff,709.36,0.00,COMMERCIAL SUPPLIER 
 14-02-2024,oneSource Shared,Matrix SCM Ltd,Agency Staff,3627.10,0.00,COMMERCIAL SUPPLIER 
 14-02-2024,oneSource Shared,Matrix SCM Ltd,Agency Staff,4537.95,0.00,COMMERCIAL SUPPLIER 
 14-02-2024,oneSource Shared,Matrix SCM Ltd,Agency Staff,2546.00,0.00,COMMERCIAL SUPPLIER 
 15-02-2024,oneSource Shared,Matrix SCM Ltd,Consultancy Fees,4499.00,0.00,COMMERCIAL SUPPLIER 
 16-02-2024,oneSource Shared,Version 1 Solutions Limited,Ict Maintenance And Support,3019.00,0.00,COMMERCIAL SUPPLIER 
 16-02-2024,oneSource Shared,Version 1 Solutions Limited,Ict Maintenance And Support,8500.00,0.00,COMMERCIAL SUPPLIER 
 20-02-2024,oneSource Shared,Personal Information - Redacted,Ict Software,613.96,0.00,Employee 
 21-02-2024,oneSource Shared,Matrix SCM Ltd,Agency Staff,3457.80,0.00,COMMERCIAL SUPPLIER 
 21-02-2024,oneSource Shared,Matrix SCM Ltd,Agency Staff,3457.80,0.00,COMMERCIAL SUPPLIER 
 21-02-2024,oneSource Shared,Matrix SCM Ltd,Agency Staff,3615.05,0.00,COMMERCIAL SUPPLIER 
 21-02-2024,oneSource Shared,Matrix SCM Ltd,Agency Staff,2493.95,0.00,COMMERCIAL SUPPLIER 
 21-02-2024,oneSource Shared,Matrix SCM Ltd,Agency Staff,3764.20,0.00,COMMERCIAL SUPPLIER 
 21-02-2024,oneSource Shared,Matrix SCM Ltd,Agency Staff,3457.80,0.00,COMMERCIAL SUPPLIER 
 21-02-2024,oneSource Shared,Matrix SCM Ltd,Agency Staff,808.12,0.00,COMMERCIAL SUPPLIER 
 21-02-2024,oneSource Shared,Matrix SCM Ltd,Agency Staff,772.19,0.00,COMMERCIAL SUPPLIER 
 21-02-2024,oneSource Shared,Matrix SCM Ltd,Agency Staff,970.56,0.00,COMMERCIAL SUPPLIER 
 21-02-2024,oneSource Shared,Matrix SCM Ltd,Agency Staff,880.93,0.00,COMMERCIAL SUPPLIER 
 21-02-2024,oneSource Shared,Matrix SCM Ltd,Agency Staff,880.93,0.00,COMMERCIAL SUPPLIER 
 21-02-2024,oneSource Shared,Matrix SCM Ltd,Agency Staff,751.33,0.00,COMMERCIAL SUPPLIER 
 21-02-2024,oneSource Shared,Matrix SCM Ltd,Agency Staff,850.68,0.00,COMMERCIAL SUPPLIER 
 21-02-2024,oneSource Shared,Matrix SCM Ltd,Agency Staff,3627.10,0.00,COMMERCIAL SUPPLIER 
 21-02-2024,oneSource Shared,Matrix SCM Ltd,Agency Staff,4537.95,0.00,COMMERCIAL SUPPLIER 
 21-02-2024,oneSource Shared,Matrix SCM Ltd,Agency Staff,2546.00,0.00,COMMERCIAL SUPPLIER 
 21-02-2024,oneSource Shared,Matrix SCM Ltd,Agency Staff,778.24,0.00,COMMERCIAL SUPPLIER 
 21-02-2024,oneSource Shared,Matrix SCM Ltd,Agency Staff,705.28,0.00,COMMERCIAL SUPPLIER 
 21-02-2024,oneSource Shared,Matrix SCM Ltd,Agency Staff,1152.45,0.00,COMMERCIAL SUPPLIER 
 21-02-2024,oneSource Shared,Matrix SCM Ltd,Agency Staff,1211.55,0.00,COMMERCIAL SUPPLIER 
 21-02-2024,oneSource Shared,Matrix SCM Ltd,Agency Staff,873.73,0.00,COMMERCIAL SUPPLIER 
 21-02-2024,oneSource Shared,Matrix SCM Ltd,Agency Staff,875.16,0.00,COMMERCIAL SUPPLIER 
 22-02-2024,oneSource Shared,MetaCompliance Ltd,Ict Maintenance And Support,35000.00,0.00,COMMERCIAL SUPPLIER 
 23-02-2024,oneSource Shared,Bytes Software Services,Ict Software,4370.17,0.00,COMMERCIAL SUPPLIER 
 23-02-2024,oneSource Shared,Ovenden Papers Ltd,Printing,1230.90,0.00,COMMERCIAL SUPPLIER 
 26-02-2024,oneSource Shared,Canon (UK) Ltd,Printing,889.20,0.00,COMMERCIAL SUPPLIER 
 28-02-2024,oneSource Shared,Matrix SCM Ltd,Agency Staff,3764.20,0.00,COMMERCIAL SUPPLIER 
 28-02-2024,oneSource Shared,Matrix SCM Ltd,Agency Staff,3615.05,0.00,COMMERCIAL SUPPLIER 
 28-02-2024,oneSource Shared,Matrix SCM Ltd,Agency Staff,2493.95,0.00,COMMERCIAL SUPPLIER 
 28-02-2024,oneSource Shared,Matrix SCM Ltd,Agency Staff,970.56,0.00,COMMERCIAL SUPPLIER 
 28-02-2024,oneSource Shared,Matrix SCM Ltd,Agency Staff,772.19,0.00,COMMERCIAL SUPPLIER 
 28-02-2024,oneSource Shared,Matrix SCM Ltd,Agency Staff,880.93,0.00,COMMERCIAL SUPPLIER 
 28-02-2024,oneSource Shared,Matrix SCM Ltd,Agency Staff,751.33,0.00,COMMERCIAL SUPPLIER 
 28-02-2024,oneSource Shared,Matrix SCM Ltd,Agency Staff,685.16,0.00,COMMERCIAL SUPPLIER 
 28-02-2024,oneSource Shared,Matrix SCM Ltd,Agency Staff,850.68,0.00,COMMERCIAL SUPPLIER 
 28-02-2024,oneSource Shared,Matrix SCM Ltd,Agency Staff,3627.10,0.00,COMMERCIAL SUPPLIER 
 28-02-2024,oneSource Shared,Matrix SCM Ltd,Agency Staff,4537.95,0.00,COMMERCIAL SUPPLIER 
 28-02-2024,oneSource Shared,Matrix SCM Ltd,Agency Staff,2546.00,0.00,COMMERCIAL SUPPLIER 
 28-02-2024,oneSource Shared,Matrix SCM Ltd,Agency Staff,851.20,0.00,COMMERCIAL SUPPLIER 
 28-02-2024,oneSource Shared,Matrix SCM Ltd,Agency Staff,680.96,0.00,COMMERCIAL SUPPLIER 
 28-02-2024,oneSource Shared,Matrix SCM Ltd,Agency Staff,1034.26,0.00,COMMERCIAL SUPPLIER 
 28-02-2024,oneSource Shared,Matrix SCM Ltd,Agency Staff,875.16,0.00,COMMERCIAL SUPPLIER 
 28-02-2024,oneSource Shared,Matrix SCM Ltd,Agency Staff,873.73,0.00,COMMERCIAL SUPPLIER 
 29-02-2024,oneSource Shared,Matrix SCM Ltd,Consultancy Fees,4499.00,0.00,COMMERCIAL SUPPLIER 
 01-02-2024,People - Ageing Well,Marlow,Residential Placements - Private Contractors Payment,2256.24,0.00,COMMERCIAL SUPPLIER 
 01-02-2024,People - Ageing Well,Marlow,Residential Placements - Private Contractors Payment,7109.84,0.00,COMMERCIAL SUPPLIER 
 01-02-2024,People - Ageing Well,Harrich Builders Ltd,Maintenance - Equipment Furniture And Materials,1355.00,0.00,CIS 
 01-02-2024,People - Ageing Well,Association of Directors of Adult Social Services (ADASS),Private Contractors Payment - Other,2484.00,0.00,COMMERCIAL SUPPLIER 
 01-02-2024,People - Ageing Well,Association of Directors of Adult Social Services (ADASS),Private Contractors Payment - Other,2609.00,0.00,COMMERCIAL SUPPLIER 
 01-02-2024,People - Ageing Well,Everycare Romford ,Home Care - Private Contractors Payment,567.84,0.00,COMMERCIAL SUPPLIER 
 01-02-2024,People - Ageing Well,Everycare Romford ,Home Care - Private Contractors Payment,567.84,0.00,COMMERCIAL SUPPLIER 
 01-02-2024,People - Ageing Well,Everycare Romford ,Home Care - Private Contractors Payment,611.52,0.00,COMMERCIAL SUPPLIER 
 01-02-2024,People - Ageing Well,Everycare Romford ,Home Care - Private Contractors Payment,611.52,0.00,COMMERCIAL SUPPLIER 
 01-02-2024,People - Ageing Well,Harrich Builders Ltd,Maintenance - Equipment Furniture And Materials,740.00,0.00,CIS 
 01-02-2024,People - Ageing Well,R G Care Ltd ,Daycare - Private Contractors Payment,840.00,0.00,COMMERCIAL SUPPLIER 
 01-02-2024,People - Ageing Well,R G Care Ltd ,Daycare - Private Contractors Payment,900.00,0.00,COMMERCIAL SUPPLIER 
 01-02-2024,People - Ageing Well,Inclusive Care Support Limited,Long Term Support - Community: Supported Living,714.96,0.00,COMMERCIAL SUPPLIER 
 01-02-2024,People - Ageing Well,Inclusive Care Support Limited,Long Term Support - Community: Supported Living,714.96,0.00,COMMERCIAL SUPPLIER 
 01-02-2024,People - Ageing Well,Inclusive Care Support Limited,Long Term Support - Community: Supported Living,714.96,0.00,COMMERCIAL SUPPLIER 
 01-02-2024,People - Ageing Well,Inclusive Care Support Limited,Supported Other Accommodation - Private Contractors Payment,714.96,0.00,COMMERCIAL SUPPLIER 
 01-02-2024,People - Ageing Well,Inclusive Care Support Limited,Supported Other Accommodation - Private Contractors Payment,714.96,0.00,COMMERCIAL SUPPLIER 
 01-02-2024,People - Ageing Well,Inclusive Care Support Limited,Supported Other Accommodation - Private Contractors Payment,714.96,0.00,COMMERCIAL SUPPLIER 
 01-02-2024,People - Ageing Well,Inclusive Care Support Limited,Supported Other Accommodation - Private Contractors Payment,714.96,0.00,COMMERCIAL SUPPLIER 
 01-02-2024,People - Ageing Well,Inclusive Care Support Limited,Supported Other Accommodation - Private Contractors Payment,714.96,0.00,COMMERCIAL SUPPLIER 
 01-02-2024,People - Ageing Well,Inclusive Care Support Limited,Supported Other Accommodation - Private Contractors Payment,714.96,0.00,COMMERCIAL SUPPLIER 
 01-02-2024,People - Ageing Well,Inclusive Care Support Limited,Supported Other Accommodation - Private Contractors Payment,714.96,0.00,COMMERCIAL SUPPLIER 
 01-02-2024,People - Ageing Well,Inclusive Care Support Limited,Supported Other Accommodation - Private Contractors Payment,714.96,0.00,COMMERCIAL SUPPLIER 
 01-02-2024,People - Ageing Well,Inclusive Care Support Limited,Supported Other Accommodation - Private Contractors Payment,714.96,0.00,COMMERCIAL SUPPLIER 
 01-02-2024,People - Ageing Well,Inclusive Care Support Limited,Long Term Support - Community: Supported Living,714.96,0.00,COMMERCIAL SUPPLIER 
 01-02-2024,People - Ageing Well,Inclusive Care Support Limited,Long Term Support - Community: Supported Living,714.96,0.00,COMMERCIAL SUPPLIER 
 01-02-2024,People - Ageing Well,Inclusive Care Support Limited,Long Term Support - Community: Supported Living,714.96,0.00,COMMERCIAL SUPPLIER 
 01-02-2024,People - Ageing Well,"Age Uk Redbridge, Barking and Havering Limited",Payments To Voluntary Sector,3270.42,0.00,COMMERCIAL SUPPLIER 
 01-02-2024,People - Ageing Well,"Age Uk Redbridge, Barking and Havering Limited",Payments To Voluntary Sector,3270.42,0.00,COMMERCIAL SUPPLIER 
 01-02-2024,People - Ageing Well,Matrix SCM Ltd,Consultancy Fees,3082.84,0.00,COMMERCIAL SUPPLIER 
 01-02-2024,People - Ageing Well,The Advocacy People,Private Contractors Payment - Other,848.50,0.00,COMMERCIAL SUPPLIER 
 02-02-2024,People - Ageing Well,Amachyck Care Solution Ltd.,Home Care - Private Contractors Payment,1135.70,0.00,COMMERCIAL SUPPLIER 
 02-02-2024,People - Ageing Well,Amachyck Care Solution Ltd.,Home Care - Private Contractors Payment,1135.70,0.00,COMMERCIAL SUPPLIER 
 02-02-2024,People - Ageing Well,Headway East London,Daycare - Private Contractors Payment,826.00,0.00,COMMERCIAL SUPPLIER 
 02-02-2024,People - Ageing Well,Headway East London,Daycare - Private Contractors Payment,735.00,0.00,COMMERCIAL SUPPLIER 
 02-02-2024,People - Ageing Well,The Sycamore Trust,Payments To Voluntary Sector,3333.34,0.00,COMMERCIAL SUPPLIER 
 02-02-2024,People - Ageing Well,The Sycamore Trust,Payments To Voluntary Sector,3333.33,0.00,COMMERCIAL SUPPLIER 
 02-02-2024,People - Ageing Well,The Sycamore Trust,Payments To Voluntary Sector,3333.34,0.00,COMMERCIAL SUPPLIER 
 02-02-2024,People - Ageing Well,The Sycamore Trust,Payments To Voluntary Sector,3333.33,0.00,COMMERCIAL SUPPLIER 
 02-02-2024,People - Ageing Well,Raynet Recruitment Agency Ltd,Supported Other Accommodation - Private Contractors Payment,4309.20,0.00,COMMERCIAL SUPPLIER 
 02-02-2024,People - Ageing Well,Raynet Recruitment Agency Ltd,Supported Other Accommodation - Private Contractors Payment,3321.72,0.00,COMMERCIAL SUPPLIER 
 02-02-2024,People - Ageing Well,Raynet Recruitment Agency Ltd,Supported Other Accommodation - Private Contractors Payment,614.04,0.00,COMMERCIAL SUPPLIER 
 02-02-2024,People - Ageing Well,Ronti Care Solutions,Home Care - Private Contractors Payment,2464.00,0.00,LOCAL AUTHORITY SERVICES 
 02-02-2024,People - Ageing Well,Ronti Care Solutions,Home Care - Private Contractors Payment,2552.00,0.00,LOCAL AUTHORITY SERVICES 
 03-02-2024,People - Ageing Well,Romford Private Hire Ltd,Client Transport,3255.00,0.00,COMMERCIAL SUPPLIER 
 04-02-2024,People - Ageing Well,Cakeybakeydoodaa Ltd,Daycare - Private Contractors Payment,624.00,0.00,COMMERCIAL SUPPLIER 
 05-02-2024,People - Ageing Well,Romford Private Hire Ltd,Client Transport,620.00,0.00,COMMERCIAL SUPPLIER 
 05-02-2024,People - Ageing Well,Gims Care Solution Ltd_a,Home Care - Private Contractors Payment,786.24,0.00,NON COMMERCIAL SUPPLIER 
 05-02-2024,People - Ageing Well,Gims Care Solution Ltd_a,Home Care - Private Contractors Payment,3669.13,0.00,NON COMMERCIAL SUPPLIER 
 05-02-2024,People - Ageing Well,Gims Care Solution Ltd_a,Home Care - Private Contractors Payment,1223.07,0.00,NON COMMERCIAL SUPPLIER 
 05-02-2024,People - Ageing Well,Gims Care Solution Ltd_a,Home Care - Private Contractors Payment,8109.60,0.00,NON COMMERCIAL SUPPLIER 
 05-02-2024,People - Ageing Well,Gims Care Solution Ltd_a,Home Care - Private Contractors Payment,2446.09,0.00,NON COMMERCIAL SUPPLIER 
 05-02-2024,People - Ageing Well,Gims Care Solution Ltd_a,Home Care - Private Contractors Payment,1048.32,0.00,NON COMMERCIAL SUPPLIER 
 05-02-2024,People - Ageing Well,Gims Care Solution Ltd_a,Home Care - Private Contractors Payment,6000.00,0.00,NON COMMERCIAL SUPPLIER 
 05-02-2024,People - Ageing Well,Care-Away Ltd T/A Care Support,Home Care - Private Contractors Payment,752.56,0.00,COMMERCIAL SUPPLIER 
 05-02-2024,People - Ageing Well,Care-Away Ltd T/A Care Support,Home Care - Private Contractors Payment,1668.72,0.00,COMMERCIAL SUPPLIER 
 05-02-2024,People - Ageing Well,Care-Away Ltd T/A Care Support,Home Care - Private Contractors Payment,2519.44,0.00,COMMERCIAL SUPPLIER 
 05-02-2024,People - Ageing Well,Care-Away Ltd T/A Care Support,Home Care - Private Contractors Payment,1030.68,0.00,COMMERCIAL SUPPLIER 
 05-02-2024,People - Ageing Well,Care-Away Ltd T/A Care Support,Home Care - Private Contractors Payment,2355.84,0.00,COMMERCIAL SUPPLIER 
 05-02-2024,People - Ageing Well,Care-Away Ltd T/A Care Support,Home Care - Private Contractors Payment,687.12,0.00,COMMERCIAL SUPPLIER 
 05-02-2024,People - Ageing Well,Care-Away Ltd T/A Care Support,Home Care - Private Contractors Payment,1832.32,0.00,COMMERCIAL SUPPLIER 
 05-02-2024,People - Ageing Well,Care-Away Ltd T/A Care Support,Home Care - Private Contractors Payment,1145.20,0.00,COMMERCIAL SUPPLIER 
 05-02-2024,People - Ageing Well,Care-Away Ltd T/A Care Support,Home Care - Private Contractors Payment,1840.50,0.00,COMMERCIAL SUPPLIER 
 05-02-2024,People - Ageing Well,Care-Away Ltd T/A Care Support,Home Care - Private Contractors Payment,515.34,0.00,COMMERCIAL SUPPLIER 
 05-02-2024,People - Ageing Well,Care-Away Ltd T/A Care Support,Home Care - Private Contractors Payment,801.64,0.00,COMMERCIAL SUPPLIER 
 05-02-2024,People - Ageing Well,Care-Away Ltd T/A Care Support,Home Care - Private Contractors Payment,1374.24,0.00,COMMERCIAL SUPPLIER 
 05-02-2024,People - Ageing Well,Care-Away Ltd T/A Care Support,Home Care - Private Contractors Payment,703.48,0.00,COMMERCIAL SUPPLIER 
 05-02-2024,People - Ageing Well,Care-Away Ltd T/A Care Support,Home Care - Private Contractors Payment,891.62,0.00,COMMERCIAL SUPPLIER 
 05-02-2024,People - Ageing Well,Care-Away Ltd T/A Care Support,Home Care - Private Contractors Payment,687.12,0.00,COMMERCIAL SUPPLIER 
 05-02-2024,People - Ageing Well,Care-Away Ltd T/A Care Support,Home Care - Private Contractors Payment,891.62,0.00,COMMERCIAL SUPPLIER 
 05-02-2024,People - Ageing Well,Care-Away Ltd T/A Care Support,Home Care - Private Contractors Payment,916.16,0.00,COMMERCIAL SUPPLIER 
 05-02-2024,People - Ageing Well,Care-Away Ltd T/A Care Support,Home Care - Private Contractors Payment,523.52,0.00,COMMERCIAL SUPPLIER 
 05-02-2024,People - Ageing Well,Care-Away Ltd T/A Care Support,Home Care - Private Contractors Payment,907.98,0.00,COMMERCIAL SUPPLIER 
 05-02-2024,People - Ageing Well,Care-Away Ltd T/A Care Support,Home Care - Private Contractors Payment,916.16,0.00,COMMERCIAL SUPPLIER 
 05-02-2024,People - Ageing Well,Care-Away Ltd T/A Care Support,Home Care - Private Contractors Payment,948.88,0.00,COMMERCIAL SUPPLIER 
 05-02-2024,People - Ageing Well,Care-Away Ltd T/A Care Support,Home Care - Private Contractors Payment,948.88,0.00,COMMERCIAL SUPPLIER 
 05-02-2024,People - Ageing Well,Care-Away Ltd T/A Care Support,Private Contractors Payment - Other,44045.44,0.00,COMMERCIAL SUPPLIER 
 05-02-2024,People - Ageing Well,All Therapy Solutions Ltd,Occupational Health,1750.00,0.00,COMMERCIAL SUPPLIER 
 05-02-2024,People - Ageing Well,London Borough of Barking & Dagenham_a,Daycare - Private Contractors Payment,1552.00,0.00,LOCAL AUTHORITY SERVICES 
 05-02-2024,People - Ageing Well,London Borough of Barking & Dagenham_a,Daycare - Private Contractors Payment,1552.00,0.00,LOCAL AUTHORITY SERVICES 
 05-02-2024,People - Ageing Well,London Borough of Barking & Dagenham_a,Daycare - Private Contractors Payment,1552.00,0.00,LOCAL AUTHORITY SERVICES 
 05-02-2024,People - Ageing Well,London Borough of Barking & Dagenham_a,Daycare - Private Contractors Payment,1552.00,0.00,LOCAL AUTHORITY SERVICES 
 05-02-2024,People - Ageing Well,London Borough of Barking & Dagenham_a,Daycare - Private Contractors Payment,3880.00,0.00,LOCAL AUTHORITY SERVICES 
 05-02-2024,People - Ageing Well,London Borough of Barking & Dagenham_a,Daycare - Private Contractors Payment,1164.00,0.00,LOCAL AUTHORITY SERVICES 
 05-02-2024,People - Ageing Well,London Borough of Barking & Dagenham_a,Daycare - Private Contractors Payment,2328.00,0.00,LOCAL AUTHORITY SERVICES 
 05-02-2024,People - Ageing Well,London Borough of Barking & Dagenham_a,Daycare - Private Contractors Payment,3880.00,0.00,LOCAL AUTHORITY SERVICES 
 05-02-2024,People - Ageing Well,London Borough of Barking & Dagenham_a,Daycare - Private Contractors Payment,3880.00,0.00,LOCAL AUTHORITY SERVICES 
 05-02-2024,People - Ageing Well,London Borough of Barking & Dagenham_a,Daycare - Private Contractors Payment,3880.00,0.00,LOCAL AUTHORITY SERVICES 
 05-02-2024,People - Ageing Well,London Borough of Barking & Dagenham_a,Daycare - Private Contractors Payment,2328.00,0.00,LOCAL AUTHORITY SERVICES 
 05-02-2024,People - Ageing Well,London Borough of Barking & Dagenham_a,Daycare - Private Contractors Payment,1164.00,0.00,LOCAL AUTHORITY SERVICES 
 05-02-2024,People - Ageing Well,London & Co UK Ltd,Payment To Private Sector Landlords (Psl),1785.00,0.00,COMMERCIAL SUPPLIER 
 05-02-2024,People - Ageing Well,Outreach Support Services Ltd,Home Care - Private Contractors Payment,1223.08,0.00,COMMERCIAL SUPPLIER 
 05-02-2024,People - Ageing Well,Outreach Support Services Ltd,Home Care - Private Contractors Payment,611.53,0.00,COMMERCIAL SUPPLIER 
 05-02-2024,People - Ageing Well,Outreach Support Services Ltd,Home Care - Private Contractors Payment,2271.40,0.00,COMMERCIAL SUPPLIER 
 05-02-2024,People - Ageing Well,Outreach Support Services Ltd,Home Care - Private Contractors Payment,2271.40,0.00,COMMERCIAL SUPPLIER 
 05-02-2024,People - Ageing Well,Outreach Support Services Ltd,Home Care - Private Contractors Payment,2271.40,0.00,COMMERCIAL SUPPLIER 
 05-02-2024,People - Ageing Well,Outreach Support Services Ltd,Home Care - Private Contractors Payment,2271.40,0.00,COMMERCIAL SUPPLIER 
 05-02-2024,People - Ageing Well,Outreach Support Services Ltd,Home Care - Private Contractors Payment,1223.08,0.00,COMMERCIAL SUPPLIER 
 05-02-2024,People - Ageing Well,Outreach Support Services Ltd,Home Care - Private Contractors Payment,1223.08,0.00,COMMERCIAL SUPPLIER 
 05-02-2024,People - Ageing Well,Outreach Support Services Ltd,Home Care - Private Contractors Payment,1223.08,0.00,COMMERCIAL SUPPLIER 
 05-02-2024,People - Ageing Well,Outreach Support Services Ltd,Home Care - Private Contractors Payment,1223.08,0.00,COMMERCIAL SUPPLIER 
 05-02-2024,People - Ageing Well,Outreach Support Services Ltd,Home Care - Private Contractors Payment,917.31,0.00,COMMERCIAL SUPPLIER 
 05-02-2024,People - Ageing Well,Outreach Support Services Ltd,Home Care - Private Contractors Payment,1650.00,0.00,COMMERCIAL SUPPLIER 
 05-02-2024,People - Ageing Well,Outreach Support Services Ltd,Home Care - Private Contractors Payment,786.26,0.00,COMMERCIAL SUPPLIER 
 05-02-2024,People - Ageing Well,Outreach Support Services Ltd,Home Care - Private Contractors Payment,786.23,0.00,COMMERCIAL SUPPLIER 
 05-02-2024,People - Ageing Well,Outreach Support Services Ltd,Home Care - Private Contractors Payment,1223.04,0.00,COMMERCIAL SUPPLIER 
 05-02-2024,People - Ageing Well,Outreach Support Services Ltd,Home Care - Private Contractors Payment,1375.96,0.00,COMMERCIAL SUPPLIER 
 05-02-2024,People - Ageing Well,Outreach Support Services Ltd,Home Care - Private Contractors Payment,1375.96,0.00,COMMERCIAL SUPPLIER 
 05-02-2024,People - Ageing Well,Outreach Support Services Ltd,Home Care - Private Contractors Payment,1375.96,0.00,COMMERCIAL SUPPLIER 
 05-02-2024,People - Ageing Well,Outreach Support Services Ltd,Home Care - Private Contractors Payment,1223.08,0.00,COMMERCIAL SUPPLIER 
 05-02-2024,People - Ageing Well,Outreach Support Services Ltd,Home Care - Private Contractors Payment,2205.89,0.00,COMMERCIAL SUPPLIER 
 05-02-2024,People - Ageing Well,Outreach Support Services Ltd,Home Care - Private Contractors Payment,1812.76,0.00,COMMERCIAL SUPPLIER 
 05-02-2024,People - Ageing Well,Outreach Support Services Ltd,Home Care - Private Contractors Payment,917.31,0.00,COMMERCIAL SUPPLIER 
 05-02-2024,People - Ageing Well,Supreme Company & Sons Ltd t/a Supreme Home Care,Home Care - Private Contractors Payment,1573.67,0.00,COMMERCIAL SUPPLIER 
 05-02-2024,People - Ageing Well,Supreme Company & Sons Ltd t/a Supreme Home Care,Home Care - Private Contractors Payment,1573.67,0.00,COMMERCIAL SUPPLIER 
 06-02-2024,People - Ageing Well,Treal Care Limited,Home Care - Private Contractors Payment,1171.50,0.00,COMMERCIAL SUPPLIER 
 06-02-2024,People - Ageing Well,Treal Care Limited,Home Care - Private Contractors Payment,1160.00,0.00,COMMERCIAL SUPPLIER 
 06-02-2024,People - Ageing Well,Treal Care Limited,Home Care - Private Contractors Payment,1160.00,0.00,COMMERCIAL SUPPLIER 
 06-02-2024,People - Ageing Well,Flex360 Limited,Private Contractors Payment - Other,1050.00,0.00,COMMERCIAL SUPPLIER 
 06-02-2024,People - Ageing Well,Home Support Services (Havering & Essex) Ltd,Home Care - Private Contractors Payment,611.54,0.00,COMMERCIAL SUPPLIER 
 06-02-2024,People - Ageing Well,Home Support Services (Havering & Essex) Ltd,Home Care - Private Contractors Payment,1062.19,0.00,COMMERCIAL SUPPLIER 
 06-02-2024,People - Ageing Well,Home Support Services (Havering & Essex) Ltd,Home Care - Private Contractors Payment,1263.85,0.00,COMMERCIAL SUPPLIER 
 06-02-2024,People - Ageing Well,Home Support Services (Havering & Essex) Ltd,Home Care - Private Contractors Payment,2540.81,0.00,COMMERCIAL SUPPLIER 
 06-02-2024,People - Ageing Well,Home Support Services (Havering & Essex) Ltd,Home Care - Private Contractors Payment,2456.36,0.00,COMMERCIAL SUPPLIER 
 06-02-2024,People - Ageing Well,Home Support Services (Havering & Essex) Ltd,Home Care - Private Contractors Payment,2110.54,0.00,COMMERCIAL SUPPLIER 
 06-02-2024,People - Ageing Well,Home Support Services (Havering & Essex) Ltd,Home Care - Private Contractors Payment,606.81,0.00,COMMERCIAL SUPPLIER 
 06-02-2024,People - Ageing Well,Home Support Services (Havering & Essex) Ltd,Home Care - Private Contractors Payment,1026.87,0.00,COMMERCIAL SUPPLIER 
 06-02-2024,People - Ageing Well,Home Support Services (Havering & Essex) Ltd,Home Care - Private Contractors Payment,2602.69,0.00,COMMERCIAL SUPPLIER 
 06-02-2024,People - Ageing Well,Home Support Services (Havering & Essex) Ltd,Home Care - Private Contractors Payment,623.19,0.00,COMMERCIAL SUPPLIER 
 06-02-2024,People - Ageing Well,Home Support Services (Havering & Essex) Ltd,Home Care - Private Contractors Payment,908.58,0.00,COMMERCIAL SUPPLIER 
 06-02-2024,People - Ageing Well,Home Support Services (Havering & Essex) Ltd,Home Care - Private Contractors Payment,1261.30,0.00,COMMERCIAL SUPPLIER 
 06-02-2024,People - Ageing Well,Home Support Services (Havering & Essex) Ltd,Home Care - Private Contractors Payment,969.37,0.00,COMMERCIAL SUPPLIER 
 06-02-2024,People - Ageing Well,Home Support Services (Havering & Essex) Ltd,Home Care - Private Contractors Payment,2537.54,0.00,COMMERCIAL SUPPLIER 
 06-02-2024,People - Ageing Well,Home Support Services (Havering & Essex) Ltd,Home Care - Private Contractors Payment,2471.28,0.00,COMMERCIAL SUPPLIER 
 06-02-2024,People - Ageing Well,Home Support Services (Havering & Essex) Ltd,Home Care - Private Contractors Payment,1553.97,0.00,COMMERCIAL SUPPLIER 
 06-02-2024,People - Ageing Well,Home Support Services (Havering & Essex) Ltd,Home Care - Private Contractors Payment,538.01,0.00,COMMERCIAL SUPPLIER 
 06-02-2024,People - Ageing Well,Home Support Services (Havering & Essex) Ltd,Home Care - Private Contractors Payment,1281.69,0.00,COMMERCIAL SUPPLIER 
 06-02-2024,People - Ageing Well,Home Support Services (Havering & Essex) Ltd,Home Care - Private Contractors Payment,2446.17,0.00,COMMERCIAL SUPPLIER 
 06-02-2024,People - Ageing Well,Home Support Services (Havering & Essex) Ltd,Home Care - Private Contractors Payment,2446.90,0.00,COMMERCIAL SUPPLIER 
 06-02-2024,People - Ageing Well,Home Support Services (Havering & Essex) Ltd,Home Care - Private Contractors Payment,1265.31,0.00,COMMERCIAL SUPPLIER 
 06-02-2024,People - Ageing Well,Home Support Services (Havering & Essex) Ltd,Home Care - Private Contractors Payment,1043.26,0.00,COMMERCIAL SUPPLIER 
 06-02-2024,People - Ageing Well,Home Support Services (Havering & Essex) Ltd,Home Care - Private Contractors Payment,2754.84,0.00,COMMERCIAL SUPPLIER 
 06-02-2024,People - Ageing Well,Home Support Services (Havering & Essex) Ltd,Home Care - Private Contractors Payment,2422.87,0.00,COMMERCIAL SUPPLIER 
 06-02-2024,People - Ageing Well,Home Support Services (Havering & Essex) Ltd,Home Care - Private Contractors Payment,1073.11,0.00,COMMERCIAL SUPPLIER 
 06-02-2024,People - Ageing Well,Home Support Services (Havering & Essex) Ltd,Home Care - Private Contractors Payment,1369.05,0.00,COMMERCIAL SUPPLIER 
 06-02-2024,People - Ageing Well,Home Support Services (Havering & Essex) Ltd,Home Care - Private Contractors Payment,1961.66,0.00,COMMERCIAL SUPPLIER 
 06-02-2024,People - Ageing Well,Home Support Services (Havering & Essex) Ltd,Home Care - Private Contractors Payment,2456.36,0.00,COMMERCIAL SUPPLIER 
 06-02-2024,People - Ageing Well,Home Support Services (Havering & Essex) Ltd,Home Care - Private Contractors Payment,622.10,0.00,COMMERCIAL SUPPLIER 
 06-02-2024,People - Ageing Well,Home Support Services (Havering & Essex) Ltd,Home Care - Private Contractors Payment,1396.71,0.00,COMMERCIAL SUPPLIER 
 06-02-2024,People - Ageing Well,Home Support Services (Havering & Essex) Ltd,Home Care - Private Contractors Payment,591.16,0.00,COMMERCIAL SUPPLIER 
 06-02-2024,People - Ageing Well,Home Support Services (Havering & Essex) Ltd,Home Care - Private Contractors Payment,1306.81,0.00,COMMERCIAL SUPPLIER 
 06-02-2024,People - Ageing Well,Home Support Services (Havering & Essex) Ltd,Home Care - Private Contractors Payment,948.25,0.00,COMMERCIAL SUPPLIER 
 06-02-2024,People - Ageing Well,Home Support Services (Havering & Essex) Ltd,Home Care - Private Contractors Payment,2457.09,0.00,COMMERCIAL SUPPLIER 
 06-02-2024,People - Ageing Well,Home Support Services (Havering & Essex) Ltd,Home Care - Private Contractors Payment,1212.16,0.00,COMMERCIAL SUPPLIER 
 06-02-2024,People - Ageing Well,Home Support Services (Havering & Essex) Ltd,Home Care - Private Contractors Payment,1008.67,0.00,COMMERCIAL SUPPLIER 
 06-02-2024,People - Ageing Well,Home Support Services (Havering & Essex) Ltd,Home Care - Private Contractors Payment,633.38,0.00,COMMERCIAL SUPPLIER 
 06-02-2024,People - Ageing Well,Home Support Services (Havering & Essex) Ltd,Home Care - Private Contractors Payment,1250.75,0.00,COMMERCIAL SUPPLIER 
 06-02-2024,People - Ageing Well,Home Support Services (Havering & Essex) Ltd,Home Care - Private Contractors Payment,917.31,0.00,COMMERCIAL SUPPLIER 
 06-02-2024,People - Ageing Well,Home Support Services (Havering & Essex) Ltd,Home Care - Private Contractors Payment,693.81,0.00,COMMERCIAL SUPPLIER 
 06-02-2024,People - Ageing Well,Home Support Services (Havering & Essex) Ltd,Home Care - Private Contractors Payment,619.55,0.00,COMMERCIAL SUPPLIER 
 06-02-2024,People - Ageing Well,Home Support Services (Havering & Essex) Ltd,Home Care - Private Contractors Payment,2516.79,0.00,COMMERCIAL SUPPLIER 
 06-02-2024,People - Ageing Well,Home Support Services (Havering & Essex) Ltd,Home Care - Private Contractors Payment,615.91,0.00,COMMERCIAL SUPPLIER 
 06-02-2024,People - Ageing Well,Home Support Services (Havering & Essex) Ltd,Home Care - Private Contractors Payment,1218.35,0.00,COMMERCIAL SUPPLIER 
 06-02-2024,People - Ageing Well,Home Support Services (Havering & Essex) Ltd,Home Care - Private Contractors Payment,1780.38,0.00,COMMERCIAL SUPPLIER 
 06-02-2024,People - Ageing Well,Home Support Services (Havering & Essex) Ltd,Home Care - Private Contractors Payment,1599.84,0.00,COMMERCIAL SUPPLIER 
 06-02-2024,People - Ageing Well,Home Support Services (Havering & Essex) Ltd,Home Care - Private Contractors Payment,1927.81,0.00,COMMERCIAL SUPPLIER 
 06-02-2024,People - Ageing Well,Home Support Services (Havering & Essex) Ltd,Home Care - Private Contractors Payment,616.64,0.00,COMMERCIAL SUPPLIER 
 06-02-2024,People - Ageing Well,Home Support Services (Havering & Essex) Ltd,Home Care - Private Contractors Payment,1561.62,0.00,COMMERCIAL SUPPLIER 
 06-02-2024,People - Ageing Well,Home Support Services (Havering & Essex) Ltd,Home Care - Private Contractors Payment,622.83,0.00,COMMERCIAL SUPPLIER 
 06-02-2024,People - Ageing Well,Home Support Services (Havering & Essex) Ltd,Home Care - Private Contractors Payment,524.18,0.00,COMMERCIAL SUPPLIER 
 06-02-2024,People - Ageing Well,Home Support Services (Havering & Essex) Ltd,Home Care - Private Contractors Payment,2451.63,0.00,COMMERCIAL SUPPLIER 
 06-02-2024,People - Ageing Well,Home Support Services (Havering & Essex) Ltd,Home Care - Private Contractors Payment,819.39,0.00,COMMERCIAL SUPPLIER 
 06-02-2024,People - Ageing Well,Home Support Services (Havering & Essex) Ltd,Home Care - Private Contractors Payment,912.58,0.00,COMMERCIAL SUPPLIER 
 06-02-2024,People - Ageing Well,Home Support Services (Havering & Essex) Ltd,Home Care - Private Contractors Payment,1834.99,0.00,COMMERCIAL SUPPLIER 
 06-02-2024,People - Ageing Well,Home Support Services (Havering & Essex) Ltd,Home Care - Private Contractors Payment,1179.40,0.00,COMMERCIAL SUPPLIER 
 06-02-2024,People - Ageing Well,Home Support Services (Havering & Essex) Ltd,Home Care - Private Contractors Payment,939.15,0.00,COMMERCIAL SUPPLIER 
 06-02-2024,People - Ageing Well,Home Support Services (Havering & Essex) Ltd,Home Care - Private Contractors Payment,2450.54,0.00,COMMERCIAL SUPPLIER 
 06-02-2024,People - Ageing Well,Home Support Services (Havering & Essex) Ltd,Home Care - Private Contractors Payment,2594.59,0.00,COMMERCIAL SUPPLIER 
 06-02-2024,People - Ageing Well,Home Support Services (Havering & Essex) Ltd,Home Care - Private Contractors Payment,525.64,0.00,COMMERCIAL SUPPLIER 
 06-02-2024,People - Ageing Well,Home Support Services (Havering & Essex) Ltd,Home Care - Private Contractors Payment,1846.23,0.00,COMMERCIAL SUPPLIER 
 06-02-2024,People - Ageing Well,Home Support Services (Havering & Essex) Ltd,Home Care - Private Contractors Payment,673.06,0.00,COMMERCIAL SUPPLIER 
 06-02-2024,People - Ageing Well,Home Support Services (Havering & Essex) Ltd,Home Care - Private Contractors Payment,1226.72,0.00,COMMERCIAL SUPPLIER 
 06-02-2024,People - Ageing Well,Home Support Services (Havering & Essex) Ltd,Home Care - Private Contractors Payment,1333.01,0.00,COMMERCIAL SUPPLIER 
 06-02-2024,People - Ageing Well,Home Support Services (Havering & Essex) Ltd,Home Care - Private Contractors Payment,1223.08,0.00,COMMERCIAL SUPPLIER 
 06-02-2024,People - Ageing Well,Home Support Services (Havering & Essex) Ltd,Home Care - Private Contractors Payment,1125.89,0.00,COMMERCIAL SUPPLIER 
 06-02-2024,People - Ageing Well,Home Support Services (Havering & Essex) Ltd,Home Care - Private Contractors Payment,2829.46,0.00,COMMERCIAL SUPPLIER 
 06-02-2024,People - Ageing Well,Home Support Services (Havering & Essex) Ltd,Home Care - Private Contractors Payment,2446.90,0.00,COMMERCIAL SUPPLIER 
 06-02-2024,People - Ageing Well,Home Support Services (Havering & Essex) Ltd,Home Care - Private Contractors Payment,617.37,0.00,COMMERCIAL SUPPLIER 
 06-02-2024,People - Ageing Well,Home Support Services (Havering & Essex) Ltd,Home Care - Private Contractors Payment,619.19,0.00,COMMERCIAL SUPPLIER 
 06-02-2024,People - Ageing Well,Home Support Services (Havering & Essex) Ltd,Home Care - Private Contractors Payment,728.02,0.00,COMMERCIAL SUPPLIER 
 06-02-2024,People - Ageing Well,Home Support Services (Havering & Essex) Ltd,Home Care - Private Contractors Payment,1306.80,0.00,COMMERCIAL SUPPLIER 
 06-02-2024,People - Ageing Well,Home Support Services (Havering & Essex) Ltd,Home Care - Private Contractors Payment,2389.75,0.00,COMMERCIAL SUPPLIER 
 06-02-2024,People - Ageing Well,Home Support Services (Havering & Essex) Ltd,Home Care - Private Contractors Payment,1836.81,0.00,COMMERCIAL SUPPLIER 
 06-02-2024,People - Ageing Well,Home Support Services (Havering & Essex) Ltd,Home Care - Private Contractors Payment,1244.92,0.00,COMMERCIAL SUPPLIER 
 06-02-2024,People - Ageing Well,Home Support Services (Havering & Essex) Ltd,Home Care - Private Contractors Payment,1776.75,0.00,COMMERCIAL SUPPLIER 
 06-02-2024,People - Ageing Well,Home Support Services (Havering & Essex) Ltd,Home Care - Private Contractors Payment,1721.05,0.00,COMMERCIAL SUPPLIER 
 06-02-2024,People - Ageing Well,Home Support Services (Havering & Essex) Ltd,Home Care - Private Contractors Payment,1057.45,0.00,COMMERCIAL SUPPLIER 
 06-02-2024,People - Ageing Well,Home Support Services (Havering & Essex) Ltd,Home Care - Private Contractors Payment,865.62,0.00,COMMERCIAL SUPPLIER 
 06-02-2024,People - Ageing Well,Home Support Services (Havering & Essex) Ltd,Home Care - Private Contractors Payment,1255.48,0.00,COMMERCIAL SUPPLIER 
 06-02-2024,People - Ageing Well,Home Support Services (Havering & Essex) Ltd,Home Care - Private Contractors Payment,819.03,0.00,COMMERCIAL SUPPLIER 
 06-02-2024,People - Ageing Well,Home Support Services (Havering & Essex) Ltd,Home Care - Private Contractors Payment,1743.98,0.00,COMMERCIAL SUPPLIER 
 06-02-2024,People - Ageing Well,Home Support Services (Havering & Essex) Ltd,Home Care - Private Contractors Payment,2459.64,0.00,COMMERCIAL SUPPLIER 
 06-02-2024,People - Ageing Well,Home Support Services (Havering & Essex) Ltd,Home Care - Private Contractors Payment,837.23,0.00,COMMERCIAL SUPPLIER 
 06-02-2024,People - Ageing Well,Home Support Services (Havering & Essex) Ltd,Home Care - Private Contractors Payment,2188.81,0.00,COMMERCIAL SUPPLIER 
 06-02-2024,People - Ageing Well,Home Support Services (Havering & Essex) Ltd,Home Care - Private Contractors Payment,524.91,0.00,COMMERCIAL SUPPLIER 
 06-02-2024,People - Ageing Well,Home Support Services (Havering & Essex) Ltd,Home Care - Private Contractors Payment,1296.25,0.00,COMMERCIAL SUPPLIER 
 06-02-2024,People - Ageing Well,Home Support Services (Havering & Essex) Ltd,Home Care - Private Contractors Payment,2451.99,0.00,COMMERCIAL SUPPLIER 
 06-02-2024,People - Ageing Well,Home Support Services (Havering & Essex) Ltd,Home Care - Private Contractors Payment,535.10,0.00,COMMERCIAL SUPPLIER 
 06-02-2024,People - Ageing Well,Home Support Services (Havering & Essex) Ltd,Home Care - Private Contractors Payment,918.04,0.00,COMMERCIAL SUPPLIER 
 06-02-2024,People - Ageing Well,Home Support Services (Havering & Essex) Ltd,Home Care - Private Contractors Payment,610.45,0.00,COMMERCIAL SUPPLIER 
 06-02-2024,People - Ageing Well,Home Support Services (Havering & Essex) Ltd,Home Care - Private Contractors Payment,1414.92,0.00,COMMERCIAL SUPPLIER 
 06-02-2024,People - Ageing Well,Home Support Services (Havering & Essex) Ltd,Home Care - Private Contractors Payment,1834.63,0.00,COMMERCIAL SUPPLIER 
 06-02-2024,People - Ageing Well,Home Support Services (Havering & Essex) Ltd,Home Care - Private Contractors Payment,2516.79,0.00,COMMERCIAL SUPPLIER 
 06-02-2024,People - Ageing Well,Home Support Services (Havering & Essex) Ltd,Home Care - Private Contractors Payment,821.58,0.00,COMMERCIAL SUPPLIER 
 06-02-2024,People - Ageing Well,Home Support Services (Havering & Essex) Ltd,Home Care - Private Contractors Payment,1790.95,0.00,COMMERCIAL SUPPLIER 
 06-02-2024,People - Ageing Well,Home Support Services (Havering & Essex) Ltd,Home Care - Private Contractors Payment,2424.33,0.00,COMMERCIAL SUPPLIER 
 06-02-2024,People - Ageing Well,Home Support Services (Havering & Essex) Ltd,Home Care - Private Contractors Payment,3763.51,0.00,COMMERCIAL SUPPLIER 
 06-02-2024,People - Ageing Well,Home Support Services (Havering & Essex) Ltd,Home Care - Private Contractors Payment,1318.45,0.00,COMMERCIAL SUPPLIER 
 06-02-2024,People - Ageing Well,Home Support Services (Havering & Essex) Ltd,Home Care - Private Contractors Payment,2474.92,0.00,COMMERCIAL SUPPLIER 
 06-02-2024,People - Ageing Well,Home Support Services (Havering & Essex) Ltd,Home Care - Private Contractors Payment,1205.25,0.00,COMMERCIAL SUPPLIER 
 06-02-2024,People - Ageing Well,Home Support Services (Havering & Essex) Ltd,Home Care - Private Contractors Payment,4471.45,0.00,COMMERCIAL SUPPLIER 
 06-02-2024,People - Ageing Well,Home Support Services (Havering & Essex) Ltd,Home Care - Private Contractors Payment,951.16,0.00,COMMERCIAL SUPPLIER 
 06-02-2024,People - Ageing Well,Home Support Services (Havering & Essex) Ltd,Home Care - Private Contractors Payment,604.99,0.00,COMMERCIAL SUPPLIER 
 06-02-2024,People - Ageing Well,Home Support Services (Havering & Essex) Ltd,Home Care - Private Contractors Payment,607.54,0.00,COMMERCIAL SUPPLIER 
 06-02-2024,People - Ageing Well,Home Support Services (Havering & Essex) Ltd,Home Care - Private Contractors Payment,926.41,0.00,COMMERCIAL SUPPLIER 
 06-02-2024,People - Ageing Well,Home Support Services (Havering & Essex) Ltd,Home Care - Private Contractors Payment,2233.59,0.00,COMMERCIAL SUPPLIER 
 06-02-2024,People - Ageing Well,Home Support Services (Havering & Essex) Ltd,Home Care - Private Contractors Payment,958.44,0.00,COMMERCIAL SUPPLIER 
 06-02-2024,People - Ageing Well,Home Support Services (Havering & Essex) Ltd,Home Care - Private Contractors Payment,2482.57,0.00,COMMERCIAL SUPPLIER 
 06-02-2024,People - Ageing Well,Home Support Services (Havering & Essex) Ltd,Home Care - Private Contractors Payment,1057.82,0.00,COMMERCIAL SUPPLIER 
 06-02-2024,People - Ageing Well,Home Support Services (Havering & Essex) Ltd,Home Care - Private Contractors Payment,1151.01,0.00,COMMERCIAL SUPPLIER 
 06-02-2024,People - Ageing Well,Home Support Services (Havering & Essex) Ltd,Home Care - Private Contractors Payment,709.83,0.00,COMMERCIAL SUPPLIER 
 06-02-2024,People - Ageing Well,Home Support Services (Havering & Essex) Ltd,Home Care - Private Contractors Payment,536.19,0.00,COMMERCIAL SUPPLIER 
 06-02-2024,People - Ageing Well,Home Support Services (Havering & Essex) Ltd,Home Care - Private Contractors Payment,2457.09,0.00,COMMERCIAL SUPPLIER 
 06-02-2024,People - Ageing Well,Home Support Services (Havering & Essex) Ltd,Home Care - Private Contractors Payment,895.47,0.00,COMMERCIAL SUPPLIER 
 06-02-2024,People - Ageing Well,Home Support Services (Havering & Essex) Ltd,Home Care - Private Contractors Payment,1396.35,0.00,COMMERCIAL SUPPLIER 
 06-02-2024,People - Ageing Well,John Stanleys Care Agency Ltd,Home Care - Private Contractors Payment,934.06,0.00,COMMERCIAL SUPPLIER 
 06-02-2024,People - Ageing Well,John Stanleys Care Agency Ltd,Home Care - Private Contractors Payment,2155.66,0.00,COMMERCIAL SUPPLIER 
 06-02-2024,People - Ageing Well,John Stanleys Care Agency Ltd,Home Care - Private Contractors Payment,1129.17,0.00,COMMERCIAL SUPPLIER 
 06-02-2024,People - Ageing Well,John Stanleys Care Agency Ltd,Home Care - Private Contractors Payment,1152.83,0.00,COMMERCIAL SUPPLIER 
 06-02-2024,People - Ageing Well,John Stanleys Care Agency Ltd,Home Care - Private Contractors Payment,647.58,0.00,COMMERCIAL SUPPLIER 
 06-02-2024,People - Ageing Well,John Stanleys Care Agency Ltd,Home Care - Private Contractors Payment,1234.37,0.00,COMMERCIAL SUPPLIER 
 06-02-2024,People - Ageing Well,John Stanleys Care Agency Ltd,Home Care - Private Contractors Payment,770.25,0.00,COMMERCIAL SUPPLIER 
 06-02-2024,People - Ageing Well,John Stanleys Care Agency Ltd,Home Care - Private Contractors Payment,1391.62,0.00,COMMERCIAL SUPPLIER 
 06-02-2024,People - Ageing Well,John Stanleys Care Agency Ltd,Home Care - Private Contractors Payment,906.39,0.00,COMMERCIAL SUPPLIER 
 06-02-2024,People - Ageing Well,John Stanleys Care Agency Ltd,Home Care - Private Contractors Payment,1598.74,0.00,COMMERCIAL SUPPLIER 
 06-02-2024,People - Ageing Well,John Stanleys Care Agency Ltd,Home Care - Private Contractors Payment,623.19,0.00,COMMERCIAL SUPPLIER 
 06-02-2024,People - Ageing Well,John Stanleys Care Agency Ltd,Home Care - Private Contractors Payment,1804.74,0.00,COMMERCIAL SUPPLIER 
 06-02-2024,People - Ageing Well,John Stanleys Care Agency Ltd,Home Care - Private Contractors Payment,1346.48,0.00,COMMERCIAL SUPPLIER 
 06-02-2024,People - Ageing Well,John Stanleys Care Agency Ltd,Home Care - Private Contractors Payment,653.40,0.00,COMMERCIAL SUPPLIER 
 06-02-2024,People - Ageing Well,John Stanleys Care Agency Ltd,Home Care - Private Contractors Payment,619.55,0.00,COMMERCIAL SUPPLIER 
 06-02-2024,People - Ageing Well,John Stanleys Care Agency Ltd,Home Care - Private Contractors Payment,620.28,0.00,COMMERCIAL SUPPLIER 
 06-02-2024,People - Ageing Well,John Stanleys Care Agency Ltd,Home Care - Private Contractors Payment,1367.96,0.00,COMMERCIAL SUPPLIER 
 06-02-2024,People - Ageing Well,John Stanleys Care Agency Ltd,Home Care - Private Contractors Payment,1404.72,0.00,COMMERCIAL SUPPLIER 
 06-02-2024,People - Ageing Well,John Stanleys Care Agency Ltd,Home Care - Private Contractors Payment,1727.95,0.00,COMMERCIAL SUPPLIER 
 06-02-2024,People - Ageing Well,John Stanleys Care Agency Ltd,Home Care - Private Contractors Payment,5638.00,0.00,COMMERCIAL SUPPLIER 
 06-02-2024,People - Ageing Well,John Stanleys Care Agency Ltd,Home Care - Private Contractors Payment,9063.26,0.00,COMMERCIAL SUPPLIER 
 06-02-2024,People - Ageing Well,John Stanleys Care Agency Ltd,Home Care - Private Contractors Payment,4479.03,0.00,COMMERCIAL SUPPLIER 
 06-02-2024,People - Ageing Well,John Stanleys Care Agency Ltd,Home Care - Private Contractors Payment,1038.88,0.00,COMMERCIAL SUPPLIER 
 06-02-2024,People - Ageing Well,John Stanleys Care Agency Ltd,Home Care - Private Contractors Payment,753.14,0.00,COMMERCIAL SUPPLIER 
 06-02-2024,People - Ageing Well,John Stanleys Care Agency Ltd,Home Care - Private Contractors Payment,1150.27,0.00,COMMERCIAL SUPPLIER 
 06-02-2024,People - Ageing Well,John Stanleys Care Agency Ltd,Home Care - Private Contractors Payment,918.41,0.00,COMMERCIAL SUPPLIER 
 06-02-2024,People - Ageing Well,John Stanleys Care Agency Ltd,Home Care - Private Contractors Payment,1438.57,0.00,COMMERCIAL SUPPLIER 
 06-02-2024,People - Ageing Well,John Stanleys Care Agency Ltd,Home Care - Private Contractors Payment,1760.71,0.00,COMMERCIAL SUPPLIER 
 06-02-2024,People - Ageing Well,Millbrook Healthcare Group ,Purchase - Equipment Furniture And Materials,14470.38,0.00,COMMERCIAL SUPPLIER 
 07-02-2024,People - Ageing Well,Hospiva Care & Associates Agency Ltd_a,Home Care - Private Contractors Payment,613.00,0.00,COMMERCIAL SUPPLIER 
 07-02-2024,People - Ageing Well,Hospiva Care & Associates Agency Ltd_a,Home Care - Private Contractors Payment,1112.79,0.00,COMMERCIAL SUPPLIER 
 07-02-2024,People - Ageing Well,Hospiva Care & Associates Agency Ltd_a,Home Care - Private Contractors Payment,1112.79,0.00,COMMERCIAL SUPPLIER 
 07-02-2024,People - Ageing Well,Hospiva Care & Associates Agency Ltd_a,Home Care - Private Contractors Payment,932.24,0.00,COMMERCIAL SUPPLIER 
 07-02-2024,People - Ageing Well,Hospiva Care & Associates Agency Ltd_a,Home Care - Private Contractors Payment,567.86,0.00,COMMERCIAL SUPPLIER 
 07-02-2024,People - Ageing Well,Hospiva Care & Associates Agency Ltd_a,Home Care - Private Contractors Payment,618.82,0.00,COMMERCIAL SUPPLIER 
 07-02-2024,People - Ageing Well,Hospiva Care & Associates Agency Ltd_a,Home Care - Private Contractors Payment,1258.39,0.00,COMMERCIAL SUPPLIER 
 07-02-2024,People - Ageing Well,Hospiva Care & Associates Agency Ltd_a,Home Care - Private Contractors Payment,691.26,0.00,COMMERCIAL SUPPLIER 
 07-02-2024,People - Ageing Well,Hospiva Care & Associates Agency Ltd_a,Home Care - Private Contractors Payment,1689.73,0.00,COMMERCIAL SUPPLIER 
 07-02-2024,People - Ageing Well,Hospiva Care & Associates Agency Ltd_a,Home Care - Private Contractors Payment,2256.13,0.00,COMMERCIAL SUPPLIER 
 07-02-2024,People - Ageing Well,Hospiva Care & Associates Agency Ltd_a,Home Care - Private Contractors Payment,1528.84,0.00,COMMERCIAL SUPPLIER 
 07-02-2024,People - Ageing Well,Hospiva Care & Associates Agency Ltd_a,Home Care - Private Contractors Payment,1528.84,0.00,COMMERCIAL SUPPLIER 
 07-02-2024,People - Ageing Well,Hospiva Care & Associates Agency Ltd_a,Home Care - Private Contractors Payment,1528.84,0.00,COMMERCIAL SUPPLIER 
 07-02-2024,People - Ageing Well,Hospiva Care & Associates Agency Ltd_a,Home Care - Private Contractors Payment,1528.84,0.00,COMMERCIAL SUPPLIER 
 07-02-2024,People - Ageing Well,Hospiva Care & Associates Agency Ltd_a,Home Care - Private Contractors Payment,6600.00,0.00,COMMERCIAL SUPPLIER 
 07-02-2024,People - Ageing Well,Hospiva Care & Associates Agency Ltd_a,Home Care - Private Contractors Payment,1257.66,0.00,COMMERCIAL SUPPLIER 
 07-02-2024,People - Ageing Well,Hospiva Care & Associates Agency Ltd_a,Home Care - Private Contractors Payment,1257.66,0.00,COMMERCIAL SUPPLIER 
 07-02-2024,People - Ageing Well,Hospiva Care & Associates Agency Ltd_a,Home Care - Private Contractors Payment,1989.30,0.00,COMMERCIAL SUPPLIER 
 07-02-2024,People - Ageing Well,Hospiva Care & Associates Agency Ltd_a,Home Care - Private Contractors Payment,1989.30,0.00,COMMERCIAL SUPPLIER 
 07-02-2024,People - Ageing Well,Hospiva Care & Associates Agency Ltd_a,Home Care - Private Contractors Payment,3600.00,0.00,COMMERCIAL SUPPLIER 
 07-02-2024,People - Ageing Well,Hospiva Care & Associates Agency Ltd_a,Home Care - Private Contractors Payment,1170.30,0.00,COMMERCIAL SUPPLIER 
 07-02-2024,People - Ageing Well,Hospiva Care & Associates Agency Ltd_a,Home Care - Private Contractors Payment,1175.03,0.00,COMMERCIAL SUPPLIER 
 07-02-2024,People - Ageing Well,Hospiva Care & Associates Agency Ltd_a,Home Care - Private Contractors Payment,695.62,0.00,COMMERCIAL SUPPLIER 
 07-02-2024,People - Ageing Well,Hospiva Care & Associates Agency Ltd_a,Home Care - Private Contractors Payment,942.43,0.00,COMMERCIAL SUPPLIER 
 07-02-2024,People - Ageing Well,Hospiva Care & Associates Agency Ltd_a,Home Care - Private Contractors Payment,646.85,0.00,COMMERCIAL SUPPLIER 
 07-02-2024,People - Ageing Well,Hospiva Care & Associates Agency Ltd_a,Home Care - Private Contractors Payment,646.85,0.00,COMMERCIAL SUPPLIER 
 07-02-2024,People - Ageing Well,Hospiva Care & Associates Agency Ltd_a,Home Care - Private Contractors Payment,925.32,0.00,COMMERCIAL SUPPLIER 
 07-02-2024,People - Ageing Well,Hospiva Care & Associates Agency Ltd_a,Home Care - Private Contractors Payment,1260.58,0.00,COMMERCIAL SUPPLIER 
 07-02-2024,People - Ageing Well,Hospiva Care & Associates Agency Ltd_a,Home Care - Private Contractors Payment,1373.05,0.00,COMMERCIAL SUPPLIER 
 07-02-2024,People - Ageing Well,Hospiva Care & Associates Agency Ltd_a,Home Care - Private Contractors Payment,1378.15,0.00,COMMERCIAL SUPPLIER 
 07-02-2024,People - Ageing Well,Hospiva Care & Associates Agency Ltd_a,Home Care - Private Contractors Payment,611.54,0.00,COMMERCIAL SUPPLIER 
 07-02-2024,People - Ageing Well,Hospiva Care & Associates Agency Ltd_a,Home Care - Private Contractors Payment,1015.22,0.00,COMMERCIAL SUPPLIER 
 07-02-2024,People - Ageing Well,Hospiva Care & Associates Agency Ltd_a,Home Care - Private Contractors Payment,1088.76,0.00,COMMERCIAL SUPPLIER 
 07-02-2024,People - Ageing Well,Hospiva Care & Associates Agency Ltd_a,Home Care - Private Contractors Payment,1088.76,0.00,COMMERCIAL SUPPLIER 
 07-02-2024,People - Ageing Well,Hospiva Care & Associates Agency Ltd_a,Home Care - Private Contractors Payment,775.71,0.00,COMMERCIAL SUPPLIER 
 07-02-2024,People - Ageing Well,Hospiva Care & Associates Agency Ltd_a,Home Care - Private Contractors Payment,1050.90,0.00,COMMERCIAL SUPPLIER 
 07-02-2024,People - Ageing Well,Hospiva Care & Associates Agency Ltd_a,Home Care - Private Contractors Payment,1050.90,0.00,COMMERCIAL SUPPLIER 
 07-02-2024,People - Ageing Well,Hospiva Care & Associates Agency Ltd_a,Home Care - Private Contractors Payment,1236.92,0.00,COMMERCIAL SUPPLIER 
 07-02-2024,People - Ageing Well,Hospiva Care & Associates Agency Ltd_a,Home Care - Private Contractors Payment,5592.00,0.00,COMMERCIAL SUPPLIER 
 07-02-2024,People - Ageing Well,Hospiva Care & Associates Agency Ltd_a,Home Care - Private Contractors Payment,611.54,0.00,COMMERCIAL SUPPLIER 
 07-02-2024,People - Ageing Well,Hospiva Care & Associates Agency Ltd_a,Home Care - Private Contractors Payment,598.80,0.00,COMMERCIAL SUPPLIER 
 07-02-2024,People - Ageing Well,Hospiva Care & Associates Agency Ltd_a,Home Care - Private Contractors Payment,920.95,0.00,COMMERCIAL SUPPLIER 
 07-02-2024,People - Ageing Well,Hospiva Care & Associates Agency Ltd_a,Home Care - Private Contractors Payment,920.95,0.00,COMMERCIAL SUPPLIER 
 07-02-2024,People - Ageing Well,Hospiva Care & Associates Agency Ltd_a,Home Care - Private Contractors Payment,1232.91,0.00,COMMERCIAL SUPPLIER 
 07-02-2024,People - Ageing Well,Hospiva Care & Associates Agency Ltd_a,Home Care - Private Contractors Payment,577.69,0.00,COMMERCIAL SUPPLIER 
 07-02-2024,People - Ageing Well,Hospiva Care & Associates Agency Ltd_a,Home Care - Private Contractors Payment,577.69,0.00,COMMERCIAL SUPPLIER 
 07-02-2024,People - Ageing Well,Hospiva Care & Associates Agency Ltd_a,Home Care - Private Contractors Payment,1536.12,0.00,COMMERCIAL SUPPLIER 
 07-02-2024,People - Ageing Well,Hospiva Care & Associates Agency Ltd_a,Home Care - Private Contractors Payment,612.63,0.00,COMMERCIAL SUPPLIER 
 07-02-2024,People - Ageing Well,Hospiva Care & Associates Agency Ltd_a,Home Care - Private Contractors Payment,1386.52,0.00,COMMERCIAL SUPPLIER 
 07-02-2024,People - Ageing Well,Hospiva Care & Associates Agency Ltd_a,Home Care - Private Contractors Payment,1386.52,0.00,COMMERCIAL SUPPLIER 
 07-02-2024,People - Ageing Well,Hospiva Care & Associates Agency Ltd_a,Home Care - Private Contractors Payment,3800.00,0.00,COMMERCIAL SUPPLIER 
 07-02-2024,People - Ageing Well,Hospiva Care & Associates Agency Ltd_a,Home Care - Private Contractors Payment,841.60,0.00,COMMERCIAL SUPPLIER 
 07-02-2024,People - Ageing Well,Hospiva Care & Associates Agency Ltd_a,Home Care - Private Contractors Payment,614.45,0.00,COMMERCIAL SUPPLIER 
 07-02-2024,People - Ageing Well,Anytime Care 2020_a,Home Care - Private Contractors Payment,1018.51,0.00,COMMERCIAL SUPPLIER 
 07-02-2024,People - Ageing Well,Anytime Care 2020_a,Home Care - Private Contractors Payment,666.14,0.00,COMMERCIAL SUPPLIER 
 07-02-2024,People - Ageing Well,Anytime Care 2020_a,Home Care - Private Contractors Payment,666.14,0.00,COMMERCIAL SUPPLIER 
 07-02-2024,People - Ageing Well,Anytime Care 2020_a,Home Care - Private Contractors Payment,1232.91,0.00,COMMERCIAL SUPPLIER 
 07-02-2024,People - Ageing Well,Anytime Care 2020_a,Home Care - Private Contractors Payment,884.55,0.00,COMMERCIAL SUPPLIER 
 07-02-2024,People - Ageing Well,Anytime Care 2020_a,Home Care - Private Contractors Payment,665.78,0.00,COMMERCIAL SUPPLIER 
 07-02-2024,People - Ageing Well,Anytime Care 2020_a,Home Care - Private Contractors Payment,600.62,0.00,COMMERCIAL SUPPLIER 
 07-02-2024,People - Ageing Well,Anytime Care 2020_a,Home Care - Private Contractors Payment,1226.00,0.00,COMMERCIAL SUPPLIER 
 07-02-2024,People - Ageing Well,Anytime Care 2020_a,Home Care - Private Contractors Payment,1226.36,0.00,COMMERCIAL SUPPLIER 
 07-02-2024,People - Ageing Well,Anytime Care 2020_a,Home Care - Private Contractors Payment,932.97,0.00,COMMERCIAL SUPPLIER 
 07-02-2024,People - Ageing Well,Anytime Care 2020_a,Home Care - Private Contractors Payment,654.86,0.00,COMMERCIAL SUPPLIER 
 07-02-2024,People - Ageing Well,Anytime Care 2020_a,Home Care - Private Contractors Payment,606.81,0.00,COMMERCIAL SUPPLIER 
 07-02-2024,People - Ageing Well,Anytime Care 2020_a,Home Care - Private Contractors Payment,1470.97,0.00,COMMERCIAL SUPPLIER 
 07-02-2024,People - Ageing Well,Anytime Care 2020_a,Home Care - Private Contractors Payment,1504.80,0.00,COMMERCIAL SUPPLIER 
 07-02-2024,People - Ageing Well,Anytime Care 2020_a,Home Care - Private Contractors Payment,957.72,0.00,COMMERCIAL SUPPLIER 
 07-02-2024,People - Ageing Well,Anytime Care 2020_a,Home Care - Private Contractors Payment,919.86,0.00,COMMERCIAL SUPPLIER 
 07-02-2024,People - Ageing Well,Anytime Care 2020_a,Home Care - Private Contractors Payment,697.81,0.00,COMMERCIAL SUPPLIER 
 07-02-2024,People - Ageing Well,Anytime Care 2020_a,Home Care - Private Contractors Payment,602.44,0.00,COMMERCIAL SUPPLIER 
 07-02-2024,People - Ageing Well,Anytime Care 2020_a,Home Care - Private Contractors Payment,568.95,0.00,COMMERCIAL SUPPLIER 
 07-02-2024,People - Ageing Well,Anytime Care 2020_a,Home Care - Private Contractors Payment,575.87,0.00,COMMERCIAL SUPPLIER 
 07-02-2024,People - Ageing Well,Anytime Care 2020_a,Home Care - Private Contractors Payment,1225.63,0.00,COMMERCIAL SUPPLIER 
 07-02-2024,People - Ageing Well,Anytime Care 2020_a,Home Care - Private Contractors Payment,1402.17,0.00,COMMERCIAL SUPPLIER 
 07-02-2024,People - Ageing Well,Anytime Care 2020_a,Home Care - Private Contractors Payment,536.55,0.00,COMMERCIAL SUPPLIER 
 07-02-2024,People - Ageing Well,Anytime Care 2020_a,Home Care - Private Contractors Payment,537.28,0.00,COMMERCIAL SUPPLIER 
 07-02-2024,People - Ageing Well,Anytime Care 2020_a,Home Care - Private Contractors Payment,1393.44,0.00,COMMERCIAL SUPPLIER 
 07-02-2024,People - Ageing Well,Anytime Care 2020_a,Home Care - Private Contractors Payment,781.54,0.00,COMMERCIAL SUPPLIER 
 07-02-2024,People - Ageing Well,Anytime Care 2020_a,Home Care - Private Contractors Payment,781.90,0.00,COMMERCIAL SUPPLIER 
 07-02-2024,People - Ageing Well,Anytime Care 2020_a,Home Care - Private Contractors Payment,804.09,0.00,COMMERCIAL SUPPLIER 
 07-02-2024,People - Ageing Well,Anytime Care 2020_a,Home Care - Private Contractors Payment,614.45,0.00,COMMERCIAL SUPPLIER 
 07-02-2024,People - Ageing Well,Anytime Care 2020_a,Home Care - Private Contractors Payment,615.18,0.00,COMMERCIAL SUPPLIER 
 07-02-2024,People - Ageing Well,Anytime Care 2020_a,Home Care - Private Contractors Payment,1341.75,0.00,COMMERCIAL SUPPLIER 
 07-02-2024,People - Ageing Well,Anytime Care 2020_a,Home Care - Private Contractors Payment,1411.64,0.00,COMMERCIAL SUPPLIER 
 07-02-2024,People - Ageing Well,Anytime Care 2020_a,Home Care - Private Contractors Payment,1132.80,0.00,COMMERCIAL SUPPLIER 
 07-02-2024,People - Ageing Well,Anytime Care 2020_a,Home Care - Private Contractors Payment,1234.00,0.00,COMMERCIAL SUPPLIER 
 07-02-2024,People - Ageing Well,Anytime Care 2020_a,Home Care - Private Contractors Payment,943.88,0.00,COMMERCIAL SUPPLIER 
 07-02-2024,People - Ageing Well,Anytime Care 2020_a,Home Care - Private Contractors Payment,592.25,0.00,COMMERCIAL SUPPLIER 
 07-02-2024,People - Ageing Well,Anytime Care 2020_a,Home Care - Private Contractors Payment,1376.33,0.00,COMMERCIAL SUPPLIER 
 07-02-2024,People - Ageing Well,Anytime Care 2020_a,Home Care - Private Contractors Payment,611.54,0.00,COMMERCIAL SUPPLIER 
 07-02-2024,People - Ageing Well,Anytime Care 2020_a,Home Care - Private Contractors Payment,1129.90,0.00,COMMERCIAL SUPPLIER 
 07-02-2024,People - Ageing Well,Anytime Care 2020_a,Home Care - Private Contractors Payment,547.11,0.00,COMMERCIAL SUPPLIER 
 07-02-2024,People - Ageing Well,Anytime Care 2020_a,Home Care - Private Contractors Payment,1279.86,0.00,COMMERCIAL SUPPLIER 
 07-02-2024,People - Ageing Well,Anytime Care 2020_a,Home Care - Private Contractors Payment,1223.08,0.00,COMMERCIAL SUPPLIER 
 07-02-2024,People - Ageing Well,Anytime Care 2020_a,Home Care - Private Contractors Payment,1223.08,0.00,COMMERCIAL SUPPLIER 
 07-02-2024,People - Ageing Well,Anytime Care 2020_a,Home Care - Private Contractors Payment,922.77,0.00,COMMERCIAL SUPPLIER 
 07-02-2024,People - Ageing Well,Anytime Care 2020_a,Home Care - Private Contractors Payment,938.43,0.00,COMMERCIAL SUPPLIER 
 07-02-2024,People - Ageing Well,Anytime Care 2020_a,Home Care - Private Contractors Payment,1138.27,0.00,COMMERCIAL SUPPLIER 
 07-02-2024,People - Ageing Well,Anytime Care 2020_a,Home Care - Private Contractors Payment,1138.27,0.00,COMMERCIAL SUPPLIER 
 07-02-2024,People - Ageing Well,Anytime Care 2020_a,Home Care - Private Contractors Payment,572.59,0.00,COMMERCIAL SUPPLIER 
 07-02-2024,People - Ageing Well,Anytime Care 2020_a,Home Care - Private Contractors Payment,646.12,0.00,COMMERCIAL SUPPLIER 
 07-02-2024,People - Ageing Well,Homestead Care Service,Home Care - Private Contractors Payment,975.92,0.00,COMMERCIAL SUPPLIER 
 07-02-2024,People - Ageing Well,Homestead Care Service,Home Care - Private Contractors Payment,1278.78,0.00,COMMERCIAL SUPPLIER 
 07-02-2024,People - Ageing Well,Homestead Care Service,Home Care - Private Contractors Payment,1292.61,0.00,COMMERCIAL SUPPLIER 
 07-02-2024,People - Ageing Well,Homestead Care Service,Home Care - Private Contractors Payment,1293.70,0.00,COMMERCIAL SUPPLIER 
 07-02-2024,People - Ageing Well,Homestead Care Service,Home Care - Private Contractors Payment,1297.34,0.00,COMMERCIAL SUPPLIER 
 07-02-2024,People - Ageing Well,Homestead Care Service,Home Care - Private Contractors Payment,608.63,0.00,COMMERCIAL SUPPLIER 
 07-02-2024,People - Ageing Well,Homestead Care Service,Home Care - Private Contractors Payment,1342.48,0.00,COMMERCIAL SUPPLIER 
 07-02-2024,People - Ageing Well,Homestead Care Service,Home Care - Private Contractors Payment,1345.02,0.00,COMMERCIAL SUPPLIER 
 07-02-2024,People - Ageing Well,Homestead Care Service,Home Care - Private Contractors Payment,1172.12,0.00,COMMERCIAL SUPPLIER 
 07-02-2024,People - Ageing Well,Homestead Care Service,Home Care - Private Contractors Payment,1172.49,0.00,COMMERCIAL SUPPLIER 
 07-02-2024,People - Ageing Well,Homestead Care Service,Home Care - Private Contractors Payment,695.99,0.00,COMMERCIAL SUPPLIER 
 07-02-2024,People - Ageing Well,Homestead Care Service,Home Care - Private Contractors Payment,1270.77,0.00,COMMERCIAL SUPPLIER 
 07-02-2024,People - Ageing Well,Homestead Care Service,Home Care - Private Contractors Payment,1287.15,0.00,COMMERCIAL SUPPLIER 
 07-02-2024,People - Ageing Well,Homestead Care Service,Home Care - Private Contractors Payment,1330.83,0.00,COMMERCIAL SUPPLIER 
 07-02-2024,People - Ageing Well,Homestead Care Service,Home Care - Private Contractors Payment,1337.38,0.00,COMMERCIAL SUPPLIER 
 07-02-2024,People - Ageing Well,Homestead Care Service,Home Care - Private Contractors Payment,1282.78,0.00,COMMERCIAL SUPPLIER 
 07-02-2024,People - Ageing Well,Homestead Care Service,Home Care - Private Contractors Payment,1277.32,0.00,COMMERCIAL SUPPLIER 
 07-02-2024,People - Ageing Well,Homestead Care Service,Home Care - Private Contractors Payment,615.55,0.00,COMMERCIAL SUPPLIER 
 07-02-2024,People - Ageing Well,Homestead Care Service,Home Care - Private Contractors Payment,616.27,0.00,COMMERCIAL SUPPLIER 
 07-02-2024,People - Ageing Well,Homestead Care Service,Home Care - Private Contractors Payment,1284.60,0.00,COMMERCIAL SUPPLIER 
 07-02-2024,People - Ageing Well,Homestead Care Service,Home Care - Private Contractors Payment,524.18,0.00,COMMERCIAL SUPPLIER 
 07-02-2024,People - Ageing Well,Homestead Care Service,Home Care - Private Contractors Payment,1212.53,0.00,COMMERCIAL SUPPLIER 
 07-02-2024,People - Ageing Well,Homestead Care Service,Home Care - Private Contractors Payment,946.43,0.00,COMMERCIAL SUPPLIER 
 07-02-2024,People - Ageing Well,Homestead Care Service,Home Care - Private Contractors Payment,958.81,0.00,COMMERCIAL SUPPLIER 
 07-02-2024,People - Ageing Well,Homestead Care Service,Home Care - Private Contractors Payment,1223.81,0.00,COMMERCIAL SUPPLIER 
 07-02-2024,People - Ageing Well,Homestead Care Service,Home Care - Private Contractors Payment,1224.18,0.00,COMMERCIAL SUPPLIER 
 07-02-2024,People - Ageing Well,Homestead Care Service,Home Care - Private Contractors Payment,1227.45,0.00,COMMERCIAL SUPPLIER 
 07-02-2024,People - Ageing Well,Homestead Care Service,Home Care - Private Contractors Payment,821.58,0.00,COMMERCIAL SUPPLIER 
 07-02-2024,People - Ageing Well,Homestead Care Service,Home Care - Private Contractors Payment,726.93,0.00,COMMERCIAL SUPPLIER 
 07-02-2024,People - Ageing Well,Homestead Care Service,Home Care - Private Contractors Payment,635.57,0.00,COMMERCIAL SUPPLIER 
 07-02-2024,People - Ageing Well,Homestead Care Service,Home Care - Private Contractors Payment,1227.45,0.00,COMMERCIAL SUPPLIER 
 07-02-2024,People - Ageing Well,Homestead Care Service,Home Care - Private Contractors Payment,1540.13,0.00,COMMERCIAL SUPPLIER 
 07-02-2024,People - Ageing Well,Homestead Care Service,Home Care - Private Contractors Payment,1566.70,0.00,COMMERCIAL SUPPLIER 
 07-02-2024,People - Ageing Well,Homestead Care Service,Home Care - Private Contractors Payment,921.68,0.00,COMMERCIAL SUPPLIER 
 07-02-2024,People - Ageing Well,Homestead Care Service,Home Care - Private Contractors Payment,1203.79,0.00,COMMERCIAL SUPPLIER 
 07-02-2024,People - Ageing Well,Homestead Care Service,Home Care - Private Contractors Payment,1225.27,0.00,COMMERCIAL SUPPLIER 
 07-02-2024,People - Ageing Well,Homestead Care Service,Home Care - Private Contractors Payment,1227.09,0.00,COMMERCIAL SUPPLIER 
 07-02-2024,People - Ageing Well,Homestead Care Service,Home Care - Private Contractors Payment,1242.38,0.00,COMMERCIAL SUPPLIER 
 07-02-2024,People - Ageing Well,Homestead Care Service,Home Care - Private Contractors Payment,750.96,0.00,COMMERCIAL SUPPLIER 
 07-02-2024,People - Ageing Well,Homestead Care Service,Home Care - Private Contractors Payment,1114.61,0.00,COMMERCIAL SUPPLIER 
 07-02-2024,People - Ageing Well,Homestead Care Service,Home Care - Private Contractors Payment,1125.53,0.00,COMMERCIAL SUPPLIER 
 07-02-2024,People - Ageing Well,Homestead Care Service,Home Care - Private Contractors Payment,534.01,0.00,COMMERCIAL SUPPLIER 
 07-02-2024,People - Ageing Well,Homestead Care Service,Home Care - Private Contractors Payment,534.37,0.00,COMMERCIAL SUPPLIER 
 07-02-2024,People - Ageing Well,Homestead Care Service,Home Care - Private Contractors Payment,1235.45,0.00,COMMERCIAL SUPPLIER 
 07-02-2024,People - Ageing Well,Homestead Care Service,Home Care - Private Contractors Payment,1215.08,0.00,COMMERCIAL SUPPLIER 
 07-02-2024,People - Ageing Well,Homestead Care Service,Home Care - Private Contractors Payment,1469.16,0.00,COMMERCIAL SUPPLIER 
 07-02-2024,People - Ageing Well,Homestead Care Service,Home Care - Private Contractors Payment,848.51,0.00,COMMERCIAL SUPPLIER 
 07-02-2024,People - Ageing Well,Homestead Care Service,Home Care - Private Contractors Payment,861.98,0.00,COMMERCIAL SUPPLIER 
 07-02-2024,People - Ageing Well,Homestead Care Service,Home Care - Private Contractors Payment,780.81,0.00,COMMERCIAL SUPPLIER 
 07-02-2024,People - Ageing Well,Homestead Care Service,Home Care - Private Contractors Payment,1399.26,0.00,COMMERCIAL SUPPLIER 
 07-02-2024,People - Ageing Well,Homestead Care Service,Home Care - Private Contractors Payment,1133.53,0.00,COMMERCIAL SUPPLIER 
 07-02-2024,People - Ageing Well,Homestead Care Service,Home Care - Private Contractors Payment,1232.55,0.00,COMMERCIAL SUPPLIER 
 07-02-2024,People - Ageing Well,Homestead Care Service,Home Care - Private Contractors Payment,1233.64,0.00,COMMERCIAL SUPPLIER 
 07-02-2024,People - Ageing Well,Homestead Care Service,Home Care - Private Contractors Payment,924.59,0.00,COMMERCIAL SUPPLIER 
 07-02-2024,People - Ageing Well,Homestead Care Service,Home Care - Private Contractors Payment,1235.46,0.00,COMMERCIAL SUPPLIER 
 07-02-2024,People - Ageing Well,Homestead Care Service,Home Care - Private Contractors Payment,1235.82,0.00,COMMERCIAL SUPPLIER 
 07-02-2024,People - Ageing Well,Homestead Care Service,Home Care - Private Contractors Payment,631.55,0.00,COMMERCIAL SUPPLIER 
 07-02-2024,People - Ageing Well,Homestead Care Service,Home Care - Private Contractors Payment,1068.36,0.00,COMMERCIAL SUPPLIER 
 07-02-2024,People - Ageing Well,Homestead Care Service,Home Care - Private Contractors Payment,1972.18,0.00,COMMERCIAL SUPPLIER 
 07-02-2024,People - Ageing Well,Homestead Care Service,Home Care - Private Contractors Payment,1200.51,0.00,COMMERCIAL SUPPLIER 
 07-02-2024,People - Ageing Well,Homestead Care Service,Home Care - Private Contractors Payment,906.39,0.00,COMMERCIAL SUPPLIER 
 07-02-2024,People - Ageing Well,Homestead Care Service,Home Care - Private Contractors Payment,741.48,0.00,COMMERCIAL SUPPLIER 
 07-02-2024,People - Ageing Well,Homestead Care Service,Home Care - Private Contractors Payment,772.43,0.00,COMMERCIAL SUPPLIER 
 07-02-2024,People - Ageing Well,Homestead Care Service,Home Care - Private Contractors Payment,772.43,0.00,COMMERCIAL SUPPLIER 
 07-02-2024,People - Ageing Well,Homestead Care Service,Home Care - Private Contractors Payment,1196.51,0.00,COMMERCIAL SUPPLIER 
 07-02-2024,People - Ageing Well,Homestead Care Service,Home Care - Private Contractors Payment,1210.71,0.00,COMMERCIAL SUPPLIER 
 07-02-2024,People - Ageing Well,Homestead Care Service,Home Care - Private Contractors Payment,1048.36,0.00,COMMERCIAL SUPPLIER 
 07-02-2024,People - Ageing Well,Homestead Care Service,Home Care - Private Contractors Payment,1059.28,0.00,COMMERCIAL SUPPLIER 
 07-02-2024,People - Ageing Well,Homestead Care Service,Home Care - Private Contractors Payment,915.12,0.00,COMMERCIAL SUPPLIER 
 07-02-2024,People - Ageing Well,Homestead Care Service,Home Care - Private Contractors Payment,1254.75,0.00,COMMERCIAL SUPPLIER 
 07-02-2024,People - Ageing Well,Homestead Care Service,Home Care - Private Contractors Payment,1251.48,0.00,COMMERCIAL SUPPLIER 
 07-02-2024,People - Ageing Well,Homestead Care Service,Home Care - Private Contractors Payment,1263.85,0.00,COMMERCIAL SUPPLIER 
 07-02-2024,People - Ageing Well,Homestead Care Service,Home Care - Private Contractors Payment,1113.13,0.00,COMMERCIAL SUPPLIER 
 07-02-2024,People - Ageing Well,Homestead Care Service,Home Care - Private Contractors Payment,935.15,0.00,COMMERCIAL SUPPLIER 
 07-02-2024,People - Ageing Well,Homestead Care Service,Home Care - Private Contractors Payment,674.88,0.00,COMMERCIAL SUPPLIER 
 07-02-2024,People - Ageing Well,Homestead Care Service,Home Care - Private Contractors Payment,1229.27,0.00,COMMERCIAL SUPPLIER 
 07-02-2024,People - Ageing Well,Homestead Care Service,Home Care - Private Contractors Payment,1232.55,0.00,COMMERCIAL SUPPLIER 
 07-02-2024,People - Ageing Well,Homestead Care Service,Home Care - Private Contractors Payment,534.37,0.00,COMMERCIAL SUPPLIER 
 07-02-2024,People - Ageing Well,Homestead Care Service,Home Care - Private Contractors Payment,1240.92,0.00,COMMERCIAL SUPPLIER 
 07-02-2024,People - Ageing Well,Homestead Care Service,Home Care - Private Contractors Payment,1231.82,0.00,COMMERCIAL SUPPLIER 
 07-02-2024,People - Ageing Well,Homestead Care Service,Home Care - Private Contractors Payment,895.47,0.00,COMMERCIAL SUPPLIER 
 07-02-2024,People - Ageing Well,Homestead Care Service,Home Care - Private Contractors Payment,1201.24,0.00,COMMERCIAL SUPPLIER 
 07-02-2024,People - Ageing Well,Homestead Care Service,Home Care - Private Contractors Payment,1212.16,0.00,COMMERCIAL SUPPLIER 
 07-02-2024,People - Ageing Well,Homestead Care Service,Home Care - Private Contractors Payment,753.51,0.00,COMMERCIAL SUPPLIER 
 07-02-2024,People - Ageing Well,Homestead Care Service,Home Care - Private Contractors Payment,696.35,0.00,COMMERCIAL SUPPLIER 
 07-02-2024,People - Ageing Well,Homestead Care Service,Home Care - Private Contractors Payment,1228.54,0.00,COMMERCIAL SUPPLIER 
 07-02-2024,People - Ageing Well,Homestead Care Service,Home Care - Private Contractors Payment,1240.56,0.00,COMMERCIAL SUPPLIER 
 07-02-2024,People - Ageing Well,Homestead Care Service,Home Care - Private Contractors Payment,1339.56,0.00,COMMERCIAL SUPPLIER 
 07-02-2024,People - Ageing Well,Homestead Care Service,Home Care - Private Contractors Payment,1236.55,0.00,COMMERCIAL SUPPLIER 
 07-02-2024,People - Ageing Well,Homestead Care Service,Home Care - Private Contractors Payment,697.81,0.00,COMMERCIAL SUPPLIER 
 07-02-2024,People - Ageing Well,Homestead Care Service,Home Care - Private Contractors Payment,1413.46,0.00,COMMERCIAL SUPPLIER 
 07-02-2024,People - Ageing Well,Homestead Care Service,Home Care - Private Contractors Payment,520.17,0.00,COMMERCIAL SUPPLIER 
 07-02-2024,People - Ageing Well,Homestead Care Service,Home Care - Private Contractors Payment,1215.44,0.00,COMMERCIAL SUPPLIER 
 07-02-2024,People - Ageing Well,Homestead Care Service,Home Care - Private Contractors Payment,1260.21,0.00,COMMERCIAL SUPPLIER 
 07-02-2024,People - Ageing Well,Homestead Care Service,Home Care - Private Contractors Payment,1241.65,0.00,COMMERCIAL SUPPLIER 
 07-02-2024,People - Ageing Well,Homestead Care Service,Home Care - Private Contractors Payment,995.94,0.00,COMMERCIAL SUPPLIER 
 07-02-2024,People - Ageing Well,Homestead Care Service,Home Care - Private Contractors Payment,1006.86,0.00,COMMERCIAL SUPPLIER 
 07-02-2024,People - Ageing Well,Homestead Care Service,Home Care - Private Contractors Payment,1297.34,0.00,COMMERCIAL SUPPLIER 
 07-02-2024,People - Ageing Well,Homestead Care Service,Home Care - Private Contractors Payment,1065.82,0.00,COMMERCIAL SUPPLIER 
 07-02-2024,People - Ageing Well,Homestead Care Service,Home Care - Private Contractors Payment,1037.80,0.00,COMMERCIAL SUPPLIER 
 07-02-2024,People - Ageing Well,Cera Care Operations Ltd,Home Care - Private Contractors Payment,1004.68,0.00,COMMERCIAL SUPPLIER 
 07-02-2024,People - Ageing Well,Cera Care Operations Ltd,Home Care - Private Contractors Payment,1248.20,0.00,COMMERCIAL SUPPLIER 
 07-02-2024,People - Ageing Well,Cera Care Operations Ltd,Home Care - Private Contractors Payment,611.54,0.00,COMMERCIAL SUPPLIER 
 07-02-2024,People - Ageing Well,Cera Care Operations Ltd,Home Care - Private Contractors Payment,534.37,0.00,COMMERCIAL SUPPLIER 
 07-02-2024,People - Ageing Well,Cera Care Operations Ltd,Home Care - Private Contractors Payment,613.36,0.00,COMMERCIAL SUPPLIER 
 07-02-2024,People - Ageing Well,Cera Care Operations Ltd,Home Care - Private Contractors Payment,886.73,0.00,COMMERCIAL SUPPLIER 
 07-02-2024,People - Ageing Well,Cera Care Operations Ltd,Home Care - Private Contractors Payment,534.00,0.00,COMMERCIAL SUPPLIER 
 07-02-2024,People - Ageing Well,Cera Care Operations Ltd,Home Care - Private Contractors Payment,1006.13,0.00,COMMERCIAL SUPPLIER 
 07-02-2024,People - Ageing Well,Cera Care Operations Ltd,Home Care - Private Contractors Payment,927.87,0.00,COMMERCIAL SUPPLIER 
 07-02-2024,People - Ageing Well,Cera Care Operations Ltd,Home Care - Private Contractors Payment,1504.82,0.00,COMMERCIAL SUPPLIER 
 07-02-2024,People - Ageing Well,Cera Care Operations Ltd,Home Care - Private Contractors Payment,916.58,0.00,COMMERCIAL SUPPLIER 
 07-02-2024,People - Ageing Well,Cera Care Operations Ltd,Home Care - Private Contractors Payment,1279.13,0.00,COMMERCIAL SUPPLIER 
 07-02-2024,People - Ageing Well,Cera Care Operations Ltd,Home Care - Private Contractors Payment,1466.24,0.00,COMMERCIAL SUPPLIER 
 07-02-2024,People - Ageing Well,Cera Care Operations Ltd,Home Care - Private Contractors Payment,881.28,0.00,COMMERCIAL SUPPLIER 
 07-02-2024,People - Ageing Well,Cera Care Operations Ltd,Home Care - Private Contractors Payment,1661.71,0.00,COMMERCIAL SUPPLIER 
 07-02-2024,People - Ageing Well,Cera Care Operations Ltd,Home Care - Private Contractors Payment,995.21,0.00,COMMERCIAL SUPPLIER 
 07-02-2024,People - Ageing Well,Cera Care Operations Ltd,Home Care - Private Contractors Payment,1047.26,0.00,COMMERCIAL SUPPLIER 
 07-02-2024,People - Ageing Well,Cera Care Operations Ltd,Home Care - Private Contractors Payment,1071.65,0.00,COMMERCIAL SUPPLIER 
 07-02-2024,People - Ageing Well,Cera Care Operations Ltd,Home Care - Private Contractors Payment,979.19,0.00,COMMERCIAL SUPPLIER 
 07-02-2024,People - Ageing Well,Cera Care Operations Ltd,Home Care - Private Contractors Payment,591.88,0.00,COMMERCIAL SUPPLIER 
 07-02-2024,People - Ageing Well,Cera Care Operations Ltd,Home Care - Private Contractors Payment,1257.30,0.00,COMMERCIAL SUPPLIER 
 07-02-2024,People - Ageing Well,Cera Care Operations Ltd,Home Care - Private Contractors Payment,1268.58,0.00,COMMERCIAL SUPPLIER 
 07-02-2024,People - Ageing Well,Cera Care Operations Ltd,Home Care - Private Contractors Payment,834.32,0.00,COMMERCIAL SUPPLIER 
 07-02-2024,People - Ageing Well,Cera Care Operations Ltd,Home Care - Private Contractors Payment,529.27,0.00,COMMERCIAL SUPPLIER 
 07-02-2024,People - Ageing Well,Cera Care Operations Ltd,Home Care - Private Contractors Payment,1351.21,0.00,COMMERCIAL SUPPLIER 
 07-02-2024,People - Ageing Well,Cera Care Operations Ltd,Home Care - Private Contractors Payment,564.58,0.00,COMMERCIAL SUPPLIER 
 07-02-2024,People - Ageing Well,Cera Care Operations Ltd,Home Care - Private Contractors Payment,6572.80,0.00,COMMERCIAL SUPPLIER 
 07-02-2024,People - Ageing Well,Cera Care Operations Ltd,Home Care - Private Contractors Payment,1422.92,0.00,COMMERCIAL SUPPLIER 
 07-02-2024,People - Ageing Well,Cera Care Operations Ltd,Home Care - Private Contractors Payment,1248.93,0.00,COMMERCIAL SUPPLIER 
 07-02-2024,People - Ageing Well,Cera Care Operations Ltd,Home Care - Private Contractors Payment,781.89,0.00,COMMERCIAL SUPPLIER 
 07-02-2024,People - Ageing Well,Cera Care Operations Ltd,Home Care - Private Contractors Payment,930.78,0.00,COMMERCIAL SUPPLIER 
 07-02-2024,People - Ageing Well,Cera Care Operations Ltd,Home Care - Private Contractors Payment,617.00,0.00,COMMERCIAL SUPPLIER 
 07-02-2024,People - Ageing Well,Cera Care Operations Ltd,Home Care - Private Contractors Payment,1260.21,0.00,COMMERCIAL SUPPLIER 
 07-02-2024,People - Ageing Well,Cera Care Operations Ltd,Home Care - Private Contractors Payment,626.83,0.00,COMMERCIAL SUPPLIER 
 07-02-2024,People - Ageing Well,Cera Care Operations Ltd,Home Care - Private Contractors Payment,1405.45,0.00,COMMERCIAL SUPPLIER 
 07-02-2024,People - Ageing Well,Cera Care Operations Ltd,Home Care - Private Contractors Payment,1435.30,0.00,COMMERCIAL SUPPLIER 
 07-02-2024,People - Ageing Well,Cera Care Operations Ltd,Home Care - Private Contractors Payment,620.28,0.00,COMMERCIAL SUPPLIER 
 07-02-2024,People - Ageing Well,Cera Care Operations Ltd,Home Care - Private Contractors Payment,868.17,0.00,COMMERCIAL SUPPLIER 
 07-02-2024,People - Ageing Well,Morepower Ltd t/a Aqs Homecare,Home Care - Private Contractors Payment,1089.49,0.00,COMMERCIAL SUPPLIER 
 07-02-2024,People - Ageing Well,Morepower Ltd t/a Aqs Homecare,Home Care - Private Contractors Payment,1090.22,0.00,COMMERCIAL SUPPLIER 
 07-02-2024,People - Ageing Well,Morepower Ltd t/a Aqs Homecare,Home Care - Private Contractors Payment,1178.31,0.00,COMMERCIAL SUPPLIER 
 07-02-2024,People - Ageing Well,Morepower Ltd t/a Aqs Homecare,Home Care - Private Contractors Payment,1180.49,0.00,COMMERCIAL SUPPLIER 
 07-02-2024,People - Ageing Well,Morepower Ltd t/a Aqs Homecare,Home Care - Private Contractors Payment,686.16,0.00,COMMERCIAL SUPPLIER 
 07-02-2024,People - Ageing Well,Morepower Ltd t/a Aqs Homecare,Home Care - Private Contractors Payment,936.97,0.00,COMMERCIAL SUPPLIER 
 07-02-2024,People - Ageing Well,Morepower Ltd t/a Aqs Homecare,Home Care - Private Contractors Payment,953.35,0.00,COMMERCIAL SUPPLIER 
 07-02-2024,People - Ageing Well,Morepower Ltd t/a Aqs Homecare,Home Care - Private Contractors Payment,789.54,0.00,COMMERCIAL SUPPLIER 
 07-02-2024,People - Ageing Well,Morepower Ltd t/a Aqs Homecare,Home Care - Private Contractors Payment,717.83,0.00,COMMERCIAL SUPPLIER 
 07-02-2024,People - Ageing Well,Morepower Ltd t/a Aqs Homecare,Home Care - Private Contractors Payment,580.97,0.00,COMMERCIAL SUPPLIER 
 07-02-2024,People - Ageing Well,Morepower Ltd t/a Aqs Homecare,Home Care - Private Contractors Payment,697.08,0.00,COMMERCIAL SUPPLIER 
 07-02-2024,People - Ageing Well,Morepower Ltd t/a Aqs Homecare,Home Care - Private Contractors Payment,1293.34,0.00,COMMERCIAL SUPPLIER 
 07-02-2024,People - Ageing Well,Morepower Ltd t/a Aqs Homecare,Home Care - Private Contractors Payment,1293.34,0.00,COMMERCIAL SUPPLIER 
 07-02-2024,People - Ageing Well,Morepower Ltd t/a Aqs Homecare,Home Care - Private Contractors Payment,1238.74,0.00,COMMERCIAL SUPPLIER 
 07-02-2024,People - Ageing Well,Morepower Ltd t/a Aqs Homecare,Home Care - Private Contractors Payment,1239.10,0.00,COMMERCIAL SUPPLIER 
 07-02-2024,People - Ageing Well,Morepower Ltd t/a Aqs Homecare,Home Care - Private Contractors Payment,1217.99,0.00,COMMERCIAL SUPPLIER 
 07-02-2024,People - Ageing Well,Morepower Ltd t/a Aqs Homecare,Home Care - Private Contractors Payment,1276.59,0.00,COMMERCIAL SUPPLIER 
 07-02-2024,People - Ageing Well,Morepower Ltd t/a Aqs Homecare,Home Care - Private Contractors Payment,1279.50,0.00,COMMERCIAL SUPPLIER 
 07-02-2024,People - Ageing Well,Morepower Ltd t/a Aqs Homecare,Home Care - Private Contractors Payment,937.70,0.00,COMMERCIAL SUPPLIER 
 07-02-2024,People - Ageing Well,Morepower Ltd t/a Aqs Homecare,Home Care - Private Contractors Payment,1135.68,0.00,COMMERCIAL SUPPLIER 
 07-02-2024,People - Ageing Well,Morepower Ltd t/a Aqs Homecare,Home Care - Private Contractors Payment,1697.74,0.00,COMMERCIAL SUPPLIER 
 07-02-2024,People - Ageing Well,Morepower Ltd t/a Aqs Homecare,Home Care - Private Contractors Payment,1825.48,0.00,COMMERCIAL SUPPLIER 
 07-02-2024,People - Ageing Well,Morepower Ltd t/a Aqs Homecare,Home Care - Private Contractors Payment,519.44,0.00,COMMERCIAL SUPPLIER 
 07-02-2024,People - Ageing Well,Morepower Ltd t/a Aqs Homecare,Home Care - Private Contractors Payment,1161.20,0.00,COMMERCIAL SUPPLIER 
 07-02-2024,People - Ageing Well,Morepower Ltd t/a Aqs Homecare,Home Care - Private Contractors Payment,614.09,0.00,COMMERCIAL SUPPLIER 
 07-02-2024,People - Ageing Well,Morepower Ltd t/a Aqs Homecare,Home Care - Private Contractors Payment,941.70,0.00,COMMERCIAL SUPPLIER 
 07-02-2024,People - Ageing Well,Morepower Ltd t/a Aqs Homecare,Home Care - Private Contractors Payment,705.09,0.00,COMMERCIAL SUPPLIER 
 07-02-2024,People - Ageing Well,Morepower Ltd t/a Aqs Homecare,Home Care - Private Contractors Payment,1378.88,0.00,COMMERCIAL SUPPLIER 
 07-02-2024,People - Ageing Well,Morepower Ltd t/a Aqs Homecare,Home Care - Private Contractors Payment,1378.88,0.00,COMMERCIAL SUPPLIER 
 07-02-2024,People - Ageing Well,Morepower Ltd t/a Aqs Homecare,Home Care - Private Contractors Payment,1188.87,0.00,COMMERCIAL SUPPLIER 
 07-02-2024,People - Ageing Well,Morepower Ltd t/a Aqs Homecare,Home Care - Private Contractors Payment,1189.59,0.00,COMMERCIAL SUPPLIER 
 07-02-2024,People - Ageing Well,Morepower Ltd t/a Aqs Homecare,Home Care - Private Contractors Payment,843.05,0.00,COMMERCIAL SUPPLIER 
 07-02-2024,People - Ageing Well,Morepower Ltd t/a Aqs Homecare,Home Care - Private Contractors Payment,615.18,0.00,COMMERCIAL SUPPLIER 
 07-02-2024,People - Ageing Well,Morepower Ltd t/a Aqs Homecare,Home Care - Private Contractors Payment,913.67,0.00,COMMERCIAL SUPPLIER 
 07-02-2024,People - Ageing Well,Morepower Ltd t/a Aqs Homecare,Home Care - Private Contractors Payment,717.10,0.00,COMMERCIAL SUPPLIER 
 07-02-2024,People - Ageing Well,Morepower Ltd t/a Aqs Homecare,Home Care - Private Contractors Payment,617.73,0.00,COMMERCIAL SUPPLIER 
 07-02-2024,People - Ageing Well,Morepower Ltd t/a Aqs Homecare,Home Care - Private Contractors Payment,618.82,0.00,COMMERCIAL SUPPLIER 
 07-02-2024,People - Ageing Well,Morepower Ltd t/a Aqs Homecare,Home Care - Private Contractors Payment,611.54,0.00,COMMERCIAL SUPPLIER 
 07-02-2024,People - Ageing Well,Morepower Ltd t/a Aqs Homecare,Home Care - Private Contractors Payment,1218.70,0.00,COMMERCIAL SUPPLIER 
 07-02-2024,People - Ageing Well,Morepower Ltd t/a Aqs Homecare,Home Care - Private Contractors Payment,767.33,0.00,COMMERCIAL SUPPLIER 
 07-02-2024,People - Ageing Well,Morepower Ltd t/a Aqs Homecare,Home Care - Private Contractors Payment,590.43,0.00,COMMERCIAL SUPPLIER 
 07-02-2024,People - Ageing Well,Morepower Ltd t/a Aqs Homecare,Home Care - Private Contractors Payment,555.84,0.00,COMMERCIAL SUPPLIER 
 07-02-2024,People - Ageing Well,Morepower Ltd t/a Aqs Homecare,Home Care - Private Contractors Payment,1049.45,0.00,COMMERCIAL SUPPLIER 
 07-02-2024,People - Ageing Well,Morepower Ltd t/a Aqs Homecare,Home Care - Private Contractors Payment,1321.37,0.00,COMMERCIAL SUPPLIER 
 07-02-2024,People - Ageing Well,Morepower Ltd t/a Aqs Homecare,Home Care - Private Contractors Payment,1278.78,0.00,COMMERCIAL SUPPLIER 
 07-02-2024,People - Ageing Well,Morepower Ltd t/a Aqs Homecare,Home Care - Private Contractors Payment,688.71,0.00,COMMERCIAL SUPPLIER 
 07-02-2024,People - Ageing Well,Morepower Ltd t/a Aqs Homecare,Home Care - Private Contractors Payment,502.34,0.00,COMMERCIAL SUPPLIER 
 07-02-2024,People - Ageing Well,Morepower Ltd t/a Aqs Homecare,Home Care - Private Contractors Payment,1329.37,0.00,COMMERCIAL SUPPLIER 
 07-02-2024,People - Ageing Well,Morepower Ltd t/a Aqs Homecare,Home Care - Private Contractors Payment,1330.83,0.00,COMMERCIAL SUPPLIER 
 07-02-2024,People - Ageing Well,Morepower Ltd t/a Aqs Homecare,Home Care - Private Contractors Payment,990.84,0.00,COMMERCIAL SUPPLIER 
 07-02-2024,People - Ageing Well,Morepower Ltd t/a Aqs Homecare,Home Care - Private Contractors Payment,895.47,0.00,COMMERCIAL SUPPLIER 
 07-02-2024,People - Ageing Well,Morepower Ltd t/a Aqs Homecare,Home Care - Private Contractors Payment,989.02,0.00,COMMERCIAL SUPPLIER 
 07-02-2024,People - Ageing Well,Morepower Ltd t/a Aqs Homecare,Home Care - Private Contractors Payment,989.39,0.00,COMMERCIAL SUPPLIER 
 07-02-2024,People - Ageing Well,Morepower Ltd t/a Aqs Homecare,Home Care - Private Contractors Payment,1187.77,0.00,COMMERCIAL SUPPLIER 
 07-02-2024,People - Ageing Well,Morepower Ltd t/a Aqs Homecare,Home Care - Private Contractors Payment,988.28,0.00,COMMERCIAL SUPPLIER 
 07-02-2024,People - Ageing Well,Morepower Ltd t/a Aqs Homecare,Home Care - Private Contractors Payment,1529.21,0.00,COMMERCIAL SUPPLIER 
 07-02-2024,People - Ageing Well,Morepower Ltd t/a Aqs Homecare,Home Care - Private Contractors Payment,589.70,0.00,COMMERCIAL SUPPLIER 
 07-02-2024,People - Ageing Well,Morepower Ltd t/a Aqs Homecare,Home Care - Private Contractors Payment,929.68,0.00,COMMERCIAL SUPPLIER 
 07-02-2024,People - Ageing Well,Home Sweet Home Care Ltd,Home Care - Private Contractors Payment,1218.72,0.00,COMMERCIAL SUPPLIER 
 07-02-2024,People - Ageing Well,Home Sweet Home Care Ltd,Home Care - Private Contractors Payment,1218.72,0.00,COMMERCIAL SUPPLIER 
 07-02-2024,People - Ageing Well,Home Sweet Home Care Ltd,Home Care - Private Contractors Payment,1190.32,0.00,COMMERCIAL SUPPLIER 
 07-02-2024,People - Ageing Well,Home Sweet Home Care Ltd,Home Care - Private Contractors Payment,1190.32,0.00,COMMERCIAL SUPPLIER 
 07-02-2024,People - Ageing Well,Home Sweet Home Care Ltd,Home Care - Private Contractors Payment,655.22,0.00,COMMERCIAL SUPPLIER 
 07-02-2024,People - Ageing Well,Home Sweet Home Care Ltd,Home Care - Private Contractors Payment,1197.60,0.00,COMMERCIAL SUPPLIER 
 07-02-2024,People - Ageing Well,Home Sweet Home Care Ltd,Home Care - Private Contractors Payment,1210.34,0.00,COMMERCIAL SUPPLIER 
 07-02-2024,People - Ageing Well,Home Sweet Home Care Ltd,Home Care - Private Contractors Payment,558.40,0.00,COMMERCIAL SUPPLIER 
 07-02-2024,People - Ageing Well,Home Sweet Home Care Ltd,Home Care - Private Contractors Payment,1196.88,0.00,COMMERCIAL SUPPLIER 
 07-02-2024,People - Ageing Well,Home Sweet Home Care Ltd,Home Care - Private Contractors Payment,1197.24,0.00,COMMERCIAL SUPPLIER 
 07-02-2024,People - Ageing Well,Home Sweet Home Care Ltd,Home Care - Private Contractors Payment,906.39,0.00,COMMERCIAL SUPPLIER 
 07-02-2024,People - Ageing Well,Home Sweet Home Care Ltd,Home Care - Private Contractors Payment,964.64,0.00,COMMERCIAL SUPPLIER 
 07-02-2024,People - Ageing Well,Home Sweet Home Care Ltd,Home Care - Private Contractors Payment,964.64,0.00,COMMERCIAL SUPPLIER 
 07-02-2024,People - Ageing Well,Home Sweet Home Care Ltd,Home Care - Private Contractors Payment,1134.26,0.00,COMMERCIAL SUPPLIER 
 07-02-2024,People - Ageing Well,Home Sweet Home Care Ltd,Home Care - Private Contractors Payment,1201.24,0.00,COMMERCIAL SUPPLIER 
 07-02-2024,People - Ageing Well,Home Sweet Home Care Ltd,Home Care - Private Contractors Payment,601.35,0.00,COMMERCIAL SUPPLIER 
 07-02-2024,People - Ageing Well,Home Sweet Home Care Ltd,Home Care - Private Contractors Payment,923.14,0.00,COMMERCIAL SUPPLIER 
 07-02-2024,People - Ageing Well,Home Sweet Home Care Ltd,Home Care - Private Contractors Payment,513.26,0.00,COMMERCIAL SUPPLIER 
 07-02-2024,People - Ageing Well,Home Sweet Home Care Ltd,Home Care - Private Contractors Payment,1212.16,0.00,COMMERCIAL SUPPLIER 
 07-02-2024,People - Ageing Well,Home Sweet Home Care Ltd,Home Care - Private Contractors Payment,1212.53,0.00,COMMERCIAL SUPPLIER 
 07-02-2024,People - Ageing Well,Home Sweet Home Care Ltd,Home Care - Private Contractors Payment,649.40,0.00,COMMERCIAL SUPPLIER 
 07-02-2024,People - Ageing Well,Home Sweet Home Care Ltd,Home Care - Private Contractors Payment,1403.25,0.00,COMMERCIAL SUPPLIER 
 07-02-2024,People - Ageing Well,Home Sweet Home Care Ltd,Home Care - Private Contractors Payment,612.27,0.00,COMMERCIAL SUPPLIER 
 07-02-2024,People - Ageing Well,Home Sweet Home Care Ltd,Home Care - Private Contractors Payment,1225.63,0.00,COMMERCIAL SUPPLIER 
 07-02-2024,People - Ageing Well,Home Sweet Home Care Ltd,Home Care - Private Contractors Payment,641.39,0.00,COMMERCIAL SUPPLIER 
 07-02-2024,People - Ageing Well,Home Sweet Home Care Ltd,Home Care - Private Contractors Payment,920.95,0.00,COMMERCIAL SUPPLIER 
 07-02-2024,People - Ageing Well,Home Sweet Home Care Ltd,Home Care - Private Contractors Payment,1322.46,0.00,COMMERCIAL SUPPLIER 
 07-02-2024,People - Ageing Well,Home Sweet Home Care Ltd,Home Care - Private Contractors Payment,1324.64,0.00,COMMERCIAL SUPPLIER 
 07-02-2024,People - Ageing Well,Home Sweet Home Care Ltd,Home Care - Private Contractors Payment,1188.50,0.00,COMMERCIAL SUPPLIER 
 07-02-2024,People - Ageing Well,Home Sweet Home Care Ltd,Home Care - Private Contractors Payment,1230.73,0.00,COMMERCIAL SUPPLIER 
 07-02-2024,People - Ageing Well,Home Sweet Home Care Ltd,Home Care - Private Contractors Payment,1430.20,0.00,COMMERCIAL SUPPLIER 
 07-02-2024,People - Ageing Well,Home Sweet Home Care Ltd,Home Care - Private Contractors Payment,1136.45,0.00,COMMERCIAL SUPPLIER 
 07-02-2024,People - Ageing Well,Home Sweet Home Care Ltd,Home Care - Private Contractors Payment,921.68,0.00,COMMERCIAL SUPPLIER 
 07-02-2024,People - Ageing Well,Home Sweet Home Care Ltd,Home Care - Private Contractors Payment,1062.55,0.00,COMMERCIAL SUPPLIER 
 07-02-2024,People - Ageing Well,Home Sweet Home Care Ltd,Home Care - Private Contractors Payment,1064.01,0.00,COMMERCIAL SUPPLIER 
 07-02-2024,People - Ageing Well,Home Sweet Home Care Ltd,Home Care - Private Contractors Payment,551.48,0.00,COMMERCIAL SUPPLIER 
 07-02-2024,People - Ageing Well,Home Sweet Home Care Ltd,Home Care - Private Contractors Payment,989.75,0.00,COMMERCIAL SUPPLIER 
 07-02-2024,People - Ageing Well,Home Sweet Home Care Ltd,Home Care - Private Contractors Payment,635.93,0.00,COMMERCIAL SUPPLIER 
 07-02-2024,People - Ageing Well,Home Sweet Home Care Ltd,Home Care - Private Contractors Payment,614.45,0.00,COMMERCIAL SUPPLIER 
 07-02-2024,People - Ageing Well,Home Sweet Home Care Ltd,Home Care - Private Contractors Payment,1243.10,0.00,COMMERCIAL SUPPLIER 
 07-02-2024,People - Ageing Well,Home Sweet Home Care Ltd,Home Care - Private Contractors Payment,674.88,0.00,COMMERCIAL SUPPLIER 
 07-02-2024,People - Ageing Well,Home Sweet Home Care Ltd,Home Care - Private Contractors Payment,1228.18,0.00,COMMERCIAL SUPPLIER 
 07-02-2024,People - Ageing Well,Home Sweet Home Care Ltd,Home Care - Private Contractors Payment,990.12,0.00,COMMERCIAL SUPPLIER 
 07-02-2024,People - Ageing Well,Home Sweet Home Care Ltd,Home Care - Private Contractors Payment,997.03,0.00,COMMERCIAL SUPPLIER 
 07-02-2024,People - Ageing Well,Home Sweet Home Care Ltd,Home Care - Private Contractors Payment,1029.06,0.00,COMMERCIAL SUPPLIER 
 07-02-2024,People - Ageing Well,Home Sweet Home Care Ltd,Home Care - Private Contractors Payment,611.54,0.00,COMMERCIAL SUPPLIER 
 07-02-2024,People - Ageing Well,Home Sweet Home Care Ltd,Home Care - Private Contractors Payment,1234.73,0.00,COMMERCIAL SUPPLIER 
 07-02-2024,People - Ageing Well,Home Sweet Home Care Ltd,Home Care - Private Contractors Payment,1031.25,0.00,COMMERCIAL SUPPLIER 
 07-02-2024,People - Ageing Well,Home Sweet Home Care Ltd,Home Care - Private Contractors Payment,1419.65,0.00,COMMERCIAL SUPPLIER 
 07-02-2024,People - Ageing Well,Home Sweet Home Care Ltd,Home Care - Private Contractors Payment,921.68,0.00,COMMERCIAL SUPPLIER 
 07-02-2024,People - Ageing Well,Home Sweet Home Care Ltd,Home Care - Private Contractors Payment,1237.64,0.00,COMMERCIAL SUPPLIER 
 07-02-2024,People - Ageing Well,Home Sweet Home Care Ltd,Home Care - Private Contractors Payment,1190.32,0.00,COMMERCIAL SUPPLIER 
 07-02-2024,People - Ageing Well,Home Sweet Home Care Ltd,Home Care - Private Contractors Payment,1190.32,0.00,COMMERCIAL SUPPLIER 
 07-02-2024,People - Ageing Well,Home Sweet Home Care Ltd,Home Care - Private Contractors Payment,890.74,0.00,COMMERCIAL SUPPLIER 
 07-02-2024,People - Ageing Well,Home Sweet Home Care Ltd,Home Care - Private Contractors Payment,614.82,0.00,COMMERCIAL SUPPLIER 
 07-02-2024,People - Ageing Well,Home Sweet Home Care Ltd,Home Care - Private Contractors Payment,731.67,0.00,COMMERCIAL SUPPLIER 
 07-02-2024,People - Ageing Well,Home Sweet Home Care Ltd,Home Care - Private Contractors Payment,731.67,0.00,COMMERCIAL SUPPLIER 
 07-02-2024,People - Ageing Well,Home Sweet Home Care Ltd,Home Care - Private Contractors Payment,1443.30,0.00,COMMERCIAL SUPPLIER 
 07-02-2024,People - Ageing Well,Home Sweet Home Care Ltd,Home Care - Private Contractors Payment,1121.52,0.00,COMMERCIAL SUPPLIER 
 07-02-2024,People - Ageing Well,Home Sweet Home Care Ltd,Home Care - Private Contractors Payment,589.70,0.00,COMMERCIAL SUPPLIER 
 07-02-2024,People - Ageing Well,Home Sweet Home Care Ltd,Home Care - Private Contractors Payment,611.54,0.00,COMMERCIAL SUPPLIER 
 07-02-2024,People - Ageing Well,Home Sweet Home Care Ltd,Home Care - Private Contractors Payment,1220.54,0.00,COMMERCIAL SUPPLIER 
 07-02-2024,People - Ageing Well,Home Sweet Home Care Ltd,Home Care - Private Contractors Payment,906.39,0.00,COMMERCIAL SUPPLIER 
 07-02-2024,People - Ageing Well,Home Sweet Home Care Ltd,Home Care - Private Contractors Payment,991.20,0.00,COMMERCIAL SUPPLIER 
 07-02-2024,People - Ageing Well,Home Sweet Home Care Ltd,Home Care - Private Contractors Payment,611.54,0.00,COMMERCIAL SUPPLIER 
 07-02-2024,People - Ageing Well,Home Sweet Home Care Ltd,Home Care - Private Contractors Payment,613.00,0.00,COMMERCIAL SUPPLIER 
 07-02-2024,People - Ageing Well,Home Sweet Home Care Ltd,Home Care - Private Contractors Payment,906.39,0.00,COMMERCIAL SUPPLIER 
 07-02-2024,People - Ageing Well,Home Sweet Home Care Ltd,Home Care - Private Contractors Payment,1261.30,0.00,COMMERCIAL SUPPLIER 
 07-02-2024,People - Ageing Well,Home Sweet Home Care Ltd,Home Care - Private Contractors Payment,1262.40,0.00,COMMERCIAL SUPPLIER 
 07-02-2024,People - Ageing Well,Home Sweet Home Care Ltd,Home Care - Private Contractors Payment,707.28,0.00,COMMERCIAL SUPPLIER 
 07-02-2024,People - Ageing Well,Home Sweet Home Care Ltd,Home Care - Private Contractors Payment,1925.59,0.00,COMMERCIAL SUPPLIER 
 07-02-2024,People - Ageing Well,Home Sweet Home Care Ltd,Home Care - Private Contractors Payment,1267.49,0.00,COMMERCIAL SUPPLIER 
 07-02-2024,People - Ageing Well,Home Sweet Home Care Ltd,Home Care - Private Contractors Payment,1282.42,0.00,COMMERCIAL SUPPLIER 
 07-02-2024,People - Ageing Well,Home Sweet Home Care Ltd,Home Care - Private Contractors Payment,1235.82,0.00,COMMERCIAL SUPPLIER 
 07-02-2024,People - Ageing Well,Home Sweet Home Care Ltd,Home Care - Private Contractors Payment,1238.01,0.00,COMMERCIAL SUPPLIER 
 07-02-2024,People - Ageing Well,Home Sweet Home Care Ltd,Home Care - Private Contractors Payment,3619.48,0.00,COMMERCIAL SUPPLIER 
 07-02-2024,People - Ageing Well,Home Sweet Home Care Ltd,Home Care - Private Contractors Payment,619.91,0.00,COMMERCIAL SUPPLIER 
 07-02-2024,People - Ageing Well,Home Sweet Home Care Ltd,Home Care - Private Contractors Payment,922.76,0.00,COMMERCIAL SUPPLIER 
 07-02-2024,People - Ageing Well,Home Sweet Home Care Ltd,Home Care - Private Contractors Payment,1098.96,0.00,COMMERCIAL SUPPLIER 
 07-02-2024,People - Ageing Well,Home Sweet Home Care Ltd,Home Care - Private Contractors Payment,597.71,0.00,COMMERCIAL SUPPLIER 
 07-02-2024,People - Ageing Well,Home Sweet Home Care Ltd,Home Care - Private Contractors Payment,902.39,0.00,COMMERCIAL SUPPLIER 
 07-02-2024,People - Ageing Well,Home Sweet Home Care Ltd,Home Care - Private Contractors Payment,3284.74,0.00,COMMERCIAL SUPPLIER 
 07-02-2024,People - Ageing Well,Home Sweet Home Care Ltd,Home Care - Private Contractors Payment,1215.08,0.00,COMMERCIAL SUPPLIER 
 07-02-2024,People - Ageing Well,Home Sweet Home Care Ltd,Home Care - Private Contractors Payment,2008.59,0.00,COMMERCIAL SUPPLIER 
 07-02-2024,People - Ageing Well,Home Sweet Home Care Ltd,Home Care - Private Contractors Payment,604.26,0.00,COMMERCIAL SUPPLIER 
 07-02-2024,People - Ageing Well,Home Sweet Home Care Ltd,Home Care - Private Contractors Payment,1277.32,0.00,COMMERCIAL SUPPLIER 
 07-02-2024,People - Ageing Well,Home Sweet Home Care Ltd,Home Care - Private Contractors Payment,1302.07,0.00,COMMERCIAL SUPPLIER 
 07-02-2024,People - Ageing Well,Home Sweet Home Care Ltd,Home Care - Private Contractors Payment,870.35,0.00,COMMERCIAL SUPPLIER 
 07-02-2024,People - Ageing Well,Home Sweet Home Care Ltd,Home Care - Private Contractors Payment,1218.72,0.00,COMMERCIAL SUPPLIER 
 07-02-2024,People - Ageing Well,Home Sweet Home Care Ltd,Home Care - Private Contractors Payment,1221.63,0.00,COMMERCIAL SUPPLIER 
 07-02-2024,People - Ageing Well,Home Sweet Home Care Ltd,Home Care - Private Contractors Payment,623.19,0.00,COMMERCIAL SUPPLIER 
 07-02-2024,People - Ageing Well,Home Sweet Home Care Ltd,Home Care - Private Contractors Payment,630.47,0.00,COMMERCIAL SUPPLIER 
 07-02-2024,People - Ageing Well,Home Sweet Home Care Ltd,Home Care - Private Contractors Payment,708.01,0.00,COMMERCIAL SUPPLIER 
 07-02-2024,People - Ageing Well,Home Sweet Home Care Ltd,Home Care - Private Contractors Payment,837.59,0.00,COMMERCIAL SUPPLIER 
 07-02-2024,People - Ageing Well,Home Sweet Home Care Ltd,Home Care - Private Contractors Payment,1254.02,0.00,COMMERCIAL SUPPLIER 
 07-02-2024,People - Ageing Well,Home Sweet Home Care Ltd,Home Care - Private Contractors Payment,1259.48,0.00,COMMERCIAL SUPPLIER 
 07-02-2024,People - Ageing Well,Home Sweet Home Care Ltd,Home Care - Private Contractors Payment,613.36,0.00,COMMERCIAL SUPPLIER 
 07-02-2024,People - Ageing Well,Home Sweet Home Care Ltd,Home Care - Private Contractors Payment,613.36,0.00,COMMERCIAL SUPPLIER 
 07-02-2024,People - Ageing Well,Home Sweet Home Care Ltd,Home Care - Private Contractors Payment,1391.62,0.00,COMMERCIAL SUPPLIER 
 07-02-2024,People - Ageing Well,Home Sweet Home Care Ltd,Home Care - Private Contractors Payment,1408.72,0.00,COMMERCIAL SUPPLIER 
 07-02-2024,People - Ageing Well,Home Sweet Home Care Ltd,Home Care - Private Contractors Payment,1187.78,0.00,COMMERCIAL SUPPLIER 
 07-02-2024,People - Ageing Well,Home Sweet Home Care Ltd,Home Care - Private Contractors Payment,884.55,0.00,COMMERCIAL SUPPLIER 
 07-02-2024,People - Ageing Well,Home Sweet Home Care Ltd,Home Care - Private Contractors Payment,1129.90,0.00,COMMERCIAL SUPPLIER 
 07-02-2024,People - Ageing Well,Home Sweet Home Care Ltd,Home Care - Private Contractors Payment,655.59,0.00,COMMERCIAL SUPPLIER 
 07-02-2024,People - Ageing Well,Home Sweet Home Care Ltd,Home Care - Private Contractors Payment,1186.32,0.00,COMMERCIAL SUPPLIER 
 07-02-2024,People - Ageing Well,Home Sweet Home Care Ltd,Home Care - Private Contractors Payment,1483.34,0.00,COMMERCIAL SUPPLIER 
 07-02-2024,People - Ageing Well,Home Sweet Home Care Ltd,Home Care - Private Contractors Payment,600.62,0.00,COMMERCIAL SUPPLIER 
 07-02-2024,People - Ageing Well,Home Sweet Home Care Ltd,Home Care - Private Contractors Payment,1155.74,0.00,COMMERCIAL SUPPLIER 
 07-02-2024,People - Ageing Well,Home Sweet Home Care Ltd,Home Care - Private Contractors Payment,1122.24,0.00,COMMERCIAL SUPPLIER 
 07-02-2024,People - Ageing Well,Home Sweet Home Care Ltd,Home Care - Private Contractors Payment,619.91,0.00,COMMERCIAL SUPPLIER 
 07-02-2024,People - Ageing Well,Home Sweet Home Care Ltd,Home Care - Private Contractors Payment,1234.37,0.00,COMMERCIAL SUPPLIER 
 07-02-2024,People - Ageing Well,Home Sweet Home Care Ltd,Home Care - Private Contractors Payment,1247.11,0.00,COMMERCIAL SUPPLIER 
 07-02-2024,People - Ageing Well,Matrix SCM Ltd,Agency Staff,561.90,0.00,COMMERCIAL SUPPLIER 
 07-02-2024,People - Ageing Well,Matrix SCM Ltd,Agency Staff,1241.28,0.00,COMMERCIAL SUPPLIER 
 07-02-2024,People - Ageing Well,Matrix SCM Ltd,Agency Staff,1241.28,0.00,COMMERCIAL SUPPLIER 
 07-02-2024,People - Ageing Well,Matrix SCM Ltd,Agency Staff,1241.28,0.00,COMMERCIAL SUPPLIER 
 07-02-2024,People - Ageing Well,Matrix SCM Ltd,Agency Staff,1274.05,0.00,COMMERCIAL SUPPLIER 
 07-02-2024,People - Ageing Well,Matrix SCM Ltd,Agency Staff,1384.58,0.00,COMMERCIAL SUPPLIER 
 07-02-2024,People - Ageing Well,Matrix SCM Ltd,Agency Staff,1241.28,0.00,COMMERCIAL SUPPLIER 
 07-02-2024,People - Ageing Well,Matrix SCM Ltd,Agency Staff,1686.60,0.00,COMMERCIAL SUPPLIER 
 07-02-2024,People - Ageing Well,Matrix SCM Ltd,Agency Staff,1284.13,0.00,COMMERCIAL SUPPLIER 
 07-02-2024,People - Ageing Well,Matrix SCM Ltd,Agency Staff,1136.70,0.00,COMMERCIAL SUPPLIER 
 07-02-2024,People - Ageing Well,Matrix SCM Ltd,Agency Staff,1241.28,0.00,COMMERCIAL SUPPLIER 
 07-02-2024,People - Ageing Well,Matrix SCM Ltd,Agency Staff,1241.28,0.00,COMMERCIAL SUPPLIER 
 07-02-2024,People - Ageing Well,Matrix SCM Ltd,Agency Staff,850.69,0.00,COMMERCIAL SUPPLIER 
 07-02-2024,People - Ageing Well,Matrix SCM Ltd,Agency Staff,1288.10,0.00,COMMERCIAL SUPPLIER 
 07-02-2024,People - Ageing Well,Matrix SCM Ltd,Agency Staff,1288.10,0.00,COMMERCIAL SUPPLIER 
 07-02-2024,People - Ageing Well,Matrix SCM Ltd,Agency Staff,1241.28,0.00,COMMERCIAL SUPPLIER 
 07-02-2024,People - Ageing Well,Matrix SCM Ltd,Agency Staff,619.55,0.00,COMMERCIAL SUPPLIER 
 07-02-2024,People - Ageing Well,Matrix SCM Ltd,Agency Staff,674.15,0.00,COMMERCIAL SUPPLIER 
 07-02-2024,People - Ageing Well,Matrix SCM Ltd,Agency Staff,1277.28,0.00,COMMERCIAL SUPPLIER 
 07-02-2024,People - Ageing Well,Matrix SCM Ltd,Agency Staff,1283.04,0.00,COMMERCIAL SUPPLIER 
 07-02-2024,People - Ageing Well,Matrix SCM Ltd,Agency Staff,790.93,0.00,COMMERCIAL SUPPLIER 
 07-02-2024,People - Ageing Well,Matrix SCM Ltd,Agency Staff,698.40,0.00,COMMERCIAL SUPPLIER 
 07-02-2024,People - Ageing Well,Matrix SCM Ltd,Agency Staff,1275.49,0.00,COMMERCIAL SUPPLIER 
 07-02-2024,People - Ageing Well,Matrix SCM Ltd,Agency Staff,1241.28,0.00,COMMERCIAL SUPPLIER 
 07-02-2024,People - Ageing Well,Matrix SCM Ltd,Agency Staff,756.00,0.00,COMMERCIAL SUPPLIER 
 07-02-2024,People - Ageing Well,Matrix SCM Ltd,Agency Staff,750.24,0.00,COMMERCIAL SUPPLIER 
 07-02-2024,People - Ageing Well,Matrix SCM Ltd,Agency Staff,1253.54,0.00,COMMERCIAL SUPPLIER 
 07-02-2024,People - Ageing Well,Matrix SCM Ltd,Agency Staff,1275.49,0.00,COMMERCIAL SUPPLIER 
 07-02-2024,People - Ageing Well,Matrix SCM Ltd,Agency Staff,1297.05,0.00,COMMERCIAL SUPPLIER 
 07-02-2024,People - Ageing Well,Matrix SCM Ltd,Agency Staff,1323.36,0.00,COMMERCIAL SUPPLIER 
 07-02-2024,People - Ageing Well,Matrix SCM Ltd,Agency Staff,1385.28,0.00,COMMERCIAL SUPPLIER 
 07-02-2024,People - Ageing Well,Matrix SCM Ltd,Agency Staff,1037.64,0.00,COMMERCIAL SUPPLIER 
 07-02-2024,People - Ageing Well,Matrix SCM Ltd,Agency Staff,1209.60,0.00,COMMERCIAL SUPPLIER 
 07-02-2024,People - Ageing Well,Matrix SCM Ltd,Agency Staff,739.20,0.00,COMMERCIAL SUPPLIER 
 07-02-2024,People - Ageing Well,Matrix SCM Ltd,Agency Staff,1261.74,0.00,COMMERCIAL SUPPLIER 
 07-02-2024,People - Ageing Well,Matrix SCM Ltd,Agency Staff,1288.45,0.00,COMMERCIAL SUPPLIER 
 07-02-2024,People - Ageing Well,Matrix SCM Ltd,Agency Staff,1288.45,0.00,COMMERCIAL SUPPLIER 
 07-02-2024,People - Ageing Well,Matrix SCM Ltd,Agency Staff,1288.45,0.00,COMMERCIAL SUPPLIER 
 08-02-2024,People - Ageing Well,Gordon Care Services Limited,Home Care - Private Contractors Payment,3232.36,0.00,NON COMMERCIAL SUPPLIER 
 08-02-2024,People - Ageing Well,Gordon Care Services Limited,Home Care - Private Contractors Payment,3232.36,0.00,NON COMMERCIAL SUPPLIER 
 08-02-2024,People - Ageing Well,Care-Away Ltd T/A Care Support,Home Care - Private Contractors Payment,916.16,0.00,COMMERCIAL SUPPLIER 
 08-02-2024,People - Ageing Well,Care-Away Ltd T/A Care Support,Home Care - Private Contractors Payment,1030.68,0.00,COMMERCIAL SUPPLIER 
 08-02-2024,People - Ageing Well,Care-Away Ltd T/A Care Support,Home Care - Private Contractors Payment,997.96,0.00,COMMERCIAL SUPPLIER 
 08-02-2024,People - Ageing Well,Care-Away Ltd T/A Care Support,Home Care - Private Contractors Payment,588.96,0.00,COMMERCIAL SUPPLIER 
 08-02-2024,People - Ageing Well,Care-Away Ltd T/A Care Support,Home Care - Private Contractors Payment,687.12,0.00,COMMERCIAL SUPPLIER 
 08-02-2024,People - Ageing Well,Care-Away Ltd T/A Care Support,Home Care - Private Contractors Payment,2290.40,0.00,COMMERCIAL SUPPLIER 
 08-02-2024,People - Ageing Well,Care-Away Ltd T/A Care Support,Home Care - Private Contractors Payment,2744.39,0.00,COMMERCIAL SUPPLIER 
 08-02-2024,People - Ageing Well,Care-Away Ltd T/A Care Support,Home Care - Private Contractors Payment,1799.60,0.00,COMMERCIAL SUPPLIER 
 08-02-2024,People - Ageing Well,Care-Away Ltd T/A Care Support,Home Care - Private Contractors Payment,687.12,0.00,COMMERCIAL SUPPLIER 
 08-02-2024,People - Ageing Well,Care-Away Ltd T/A Care Support,Home Care - Private Contractors Payment,916.16,0.00,COMMERCIAL SUPPLIER 
 08-02-2024,People - Ageing Well,Care-Away Ltd T/A Care Support,Home Care - Private Contractors Payment,916.16,0.00,COMMERCIAL SUPPLIER 
 08-02-2024,People - Ageing Well,Care-Away Ltd T/A Care Support,Home Care - Private Contractors Payment,2061.36,0.00,COMMERCIAL SUPPLIER 
 08-02-2024,People - Ageing Well,Care-Away Ltd T/A Care Support,Home Care - Private Contractors Payment,687.12,0.00,COMMERCIAL SUPPLIER 
 08-02-2024,People - Ageing Well,Care-Away Ltd T/A Care Support,Home Care - Private Contractors Payment,523.52,0.00,COMMERCIAL SUPPLIER 
 08-02-2024,People - Ageing Well,Care-Away Ltd T/A Care Support,Home Care - Private Contractors Payment,801.64,0.00,COMMERCIAL SUPPLIER 
 08-02-2024,People - Ageing Well,Care-Away Ltd T/A Care Support,Home Care - Private Contractors Payment,801.64,0.00,COMMERCIAL SUPPLIER 
 08-02-2024,People - Ageing Well,Care-Away Ltd T/A Care Support,Home Care - Private Contractors Payment,2519.44,0.00,COMMERCIAL SUPPLIER 
 08-02-2024,People - Ageing Well,Care-Away Ltd T/A Care Support,Home Care - Private Contractors Payment,1030.68,0.00,COMMERCIAL SUPPLIER 
 08-02-2024,People - Ageing Well,Care-Away Ltd T/A Care Support,Home Care - Private Contractors Payment,1145.20,0.00,COMMERCIAL SUPPLIER 
 08-02-2024,People - Ageing Well,Care-Away Ltd T/A Care Support,Home Care - Private Contractors Payment,2519.44,0.00,COMMERCIAL SUPPLIER 
 08-02-2024,People - Ageing Well,Care-Away Ltd T/A Care Support,Home Care - Private Contractors Payment,916.16,0.00,COMMERCIAL SUPPLIER 
 08-02-2024,People - Ageing Well,Care-Away Ltd T/A Care Support,Home Care - Private Contractors Payment,687.12,0.00,COMMERCIAL SUPPLIER 
 08-02-2024,People - Ageing Well,Care-Away Ltd T/A Care Support,Home Care - Private Contractors Payment,899.80,0.00,COMMERCIAL SUPPLIER 
 08-02-2024,People - Ageing Well,Carers Centre SA Ltd ,Payments To Voluntary Sector,2810.16,0.00,COMMERCIAL SUPPLIER 
 08-02-2024,People - Ageing Well,Carers Centre SA Ltd ,Payments To Voluntary Sector,2810.16,0.00,COMMERCIAL SUPPLIER 
 08-02-2024,People - Ageing Well,Carers Centre SA Ltd ,Payments To Voluntary Sector,2810.16,0.00,COMMERCIAL SUPPLIER 
 08-02-2024,People - Ageing Well,Carers Centre SA Ltd ,Payments To Voluntary Sector,2810.16,0.00,COMMERCIAL SUPPLIER 
 08-02-2024,People - Ageing Well,Carers Centre SA Ltd ,Payments To Voluntary Sector,2810.16,0.00,COMMERCIAL SUPPLIER 
 08-02-2024,People - Ageing Well,Quality Healthcare Solutions Ltd t/a Kare Plus Romford,Home Care - Private Contractors Payment,975.19,0.00,COMMERCIAL SUPPLIER 
 08-02-2024,People - Ageing Well,Quality Healthcare Solutions Ltd t/a Kare Plus Romford,Home Care - Private Contractors Payment,942.79,0.00,COMMERCIAL SUPPLIER 
 08-02-2024,People - Ageing Well,Quality Healthcare Solutions Ltd t/a Kare Plus Romford,Home Care - Private Contractors Payment,984.29,0.00,COMMERCIAL SUPPLIER 
 08-02-2024,People - Ageing Well,Quality Healthcare Solutions Ltd t/a Kare Plus Romford,Home Care - Private Contractors Payment,546.75,0.00,COMMERCIAL SUPPLIER 
 08-02-2024,People - Ageing Well,Quality Healthcare Solutions Ltd t/a Kare Plus Romford,Home Care - Private Contractors Payment,673.42,0.00,COMMERCIAL SUPPLIER 
 08-02-2024,People - Ageing Well,Quality Healthcare Solutions Ltd t/a Kare Plus Romford,Home Care - Private Contractors Payment,611.54,0.00,COMMERCIAL SUPPLIER 
 08-02-2024,People - Ageing Well,Quality Healthcare Solutions Ltd t/a Kare Plus Romford,Home Care - Private Contractors Payment,1516.84,0.00,COMMERCIAL SUPPLIER 
 08-02-2024,People - Ageing Well,Quality Healthcare Solutions Ltd t/a Kare Plus Romford,Home Care - Private Contractors Payment,1436.39,0.00,COMMERCIAL SUPPLIER 
 08-02-2024,People - Ageing Well,Quality Healthcare Solutions Ltd t/a Kare Plus Romford,Home Care - Private Contractors Payment,680.34,0.00,COMMERCIAL SUPPLIER 
 08-02-2024,People - Ageing Well,Quality Healthcare Solutions Ltd t/a Kare Plus Romford,Home Care - Private Contractors Payment,1032.70,0.00,COMMERCIAL SUPPLIER 
 08-02-2024,People - Ageing Well,Quality Healthcare Solutions Ltd t/a Kare Plus Romford,Home Care - Private Contractors Payment,2524.79,0.00,COMMERCIAL SUPPLIER 
 08-02-2024,People - Ageing Well,Quality Healthcare Solutions Ltd t/a Kare Plus Romford,Home Care - Private Contractors Payment,1151.37,0.00,COMMERCIAL SUPPLIER 
 08-02-2024,People - Ageing Well,Quality Healthcare Solutions Ltd t/a Kare Plus Romford,Home Care - Private Contractors Payment,3005.27,0.00,COMMERCIAL SUPPLIER 
 08-02-2024,People - Ageing Well,Quality Healthcare Solutions Ltd t/a Kare Plus Romford,Home Care - Private Contractors Payment,1436.39,0.00,COMMERCIAL SUPPLIER 
 08-02-2024,People - Ageing Well,Quality Healthcare Solutions Ltd t/a Kare Plus Romford,Home Care - Private Contractors Payment,656.68,0.00,COMMERCIAL SUPPLIER 
 08-02-2024,People - Ageing Well,Quality Healthcare Solutions Ltd t/a Kare Plus Romford,Home Care - Private Contractors Payment,855.79,0.00,COMMERCIAL SUPPLIER 
 08-02-2024,People - Ageing Well,Quality Healthcare Solutions Ltd t/a Kare Plus Romford,Home Care - Private Contractors Payment,3126.49,0.00,COMMERCIAL SUPPLIER 
 08-02-2024,People - Ageing Well,Quality Healthcare Solutions Ltd t/a Kare Plus Romford,Home Care - Private Contractors Payment,1017.41,0.00,COMMERCIAL SUPPLIER 
 08-02-2024,People - Ageing Well,Quality Healthcare Solutions Ltd t/a Kare Plus Romford,Home Care - Private Contractors Payment,3724.18,0.00,COMMERCIAL SUPPLIER 
 08-02-2024,People - Ageing Well,Quality Healthcare Solutions Ltd t/a Kare Plus Romford,Home Care - Private Contractors Payment,671.97,0.00,COMMERCIAL SUPPLIER 
 08-02-2024,People - Ageing Well,Quality Healthcare Solutions Ltd t/a Kare Plus Romford,Home Care - Private Contractors Payment,1044.71,0.00,COMMERCIAL SUPPLIER 
 08-02-2024,People - Ageing Well,Quality Healthcare Solutions Ltd t/a Kare Plus Romford,Home Care - Private Contractors Payment,860.16,0.00,COMMERCIAL SUPPLIER 
 08-02-2024,People - Ageing Well,Quality Healthcare Solutions Ltd t/a Kare Plus Romford,Home Care - Private Contractors Payment,932.97,0.00,COMMERCIAL SUPPLIER 
 08-02-2024,People - Ageing Well,Quality Healthcare Solutions Ltd t/a Kare Plus Romford,Home Care - Private Contractors Payment,716.01,0.00,COMMERCIAL SUPPLIER 
 08-02-2024,People - Ageing Well,Quality Healthcare Solutions Ltd t/a Kare Plus Romford,Home Care - Private Contractors Payment,1838.27,0.00,COMMERCIAL SUPPLIER 
 08-02-2024,People - Ageing Well,Quality Healthcare Solutions Ltd t/a Kare Plus Romford,Home Care - Private Contractors Payment,794.27,0.00,COMMERCIAL SUPPLIER 
 08-02-2024,People - Ageing Well,Quality Healthcare Solutions Ltd t/a Kare Plus Romford,Home Care - Private Contractors Payment,1257.66,0.00,COMMERCIAL SUPPLIER 
 08-02-2024,People - Ageing Well,Quality Healthcare Solutions Ltd t/a Kare Plus Romford,Home Care - Private Contractors Payment,1297.70,0.00,COMMERCIAL SUPPLIER 
 08-02-2024,People - Ageing Well,Quality Healthcare Solutions Ltd t/a Kare Plus Romford,Home Care - Private Contractors Payment,1377.42,0.00,COMMERCIAL SUPPLIER 
 08-02-2024,People - Ageing Well,Alzheimer's Society.,Payments To Voluntary Sector,6499.15,0.00,COMMERCIAL SUPPLIER 
 08-02-2024,People - Ageing Well,Ace Outreach Ltd,Home Care - Private Contractors Payment,1452.00,0.00,COMMERCIAL SUPPLIER 
 09-02-2024,People - Ageing Well,Mayflower Travel,Client Transport,1548.00,0.00,COMMERCIAL SUPPLIER 
 09-02-2024,People - Ageing Well,Fountains Care Centre - Bondcare,Nursing Homes - Private Contractors Payment,3010.32,0.00,COMMERCIAL SUPPLIER 
 09-02-2024,People - Ageing Well,Fountains Care Centre - Bondcare,Nursing Homes - Private Contractors Payment,2856.64,0.00,COMMERCIAL SUPPLIER 
 09-02-2024,People - Ageing Well,Fountains Care Centre - Bondcare,Nursing Homes - Private Contractors Payment,3685.52,0.00,COMMERCIAL SUPPLIER 
 09-02-2024,People - Ageing Well,Fountains Care Centre - Bondcare,Nursing Homes - Private Contractors Payment,3010.32,0.00,COMMERCIAL SUPPLIER 
 09-02-2024,People - Ageing Well,Fountains Care Centre - Bondcare,Nursing Homes - Private Contractors Payment,3010.32,0.00,COMMERCIAL SUPPLIER 
 09-02-2024,People - Ageing Well,Fountains Care Centre - Bondcare,Nursing Homes - Private Contractors Payment,3920.00,0.00,COMMERCIAL SUPPLIER 
 09-02-2024,People - Ageing Well,Fountains Care Centre - Bondcare,Nursing Homes - Private Contractors Payment,3010.32,0.00,COMMERCIAL SUPPLIER 
 09-02-2024,People - Ageing Well,Fountains Care Centre - Bondcare,Nursing Homes - Private Contractors Payment,7452.00,0.00,COMMERCIAL SUPPLIER 
 09-02-2024,People - Ageing Well,Fountains Care Centre - Bondcare,Nursing Homes - Private Contractors Payment,7728.00,0.00,COMMERCIAL SUPPLIER 
 09-02-2024,People - Ageing Well,Fountains Care Centre - Bondcare,Nursing Homes - Private Contractors Payment,5796.00,0.00,COMMERCIAL SUPPLIER 
 09-02-2024,People - Ageing Well,Fountains Care Centre - Bondcare,Nursing Homes - Private Contractors Payment,3010.32,0.00,COMMERCIAL SUPPLIER 
 09-02-2024,People - Ageing Well,Fountains Care Centre - Bondcare,Nursing Homes - Private Contractors Payment,1400.00,0.00,COMMERCIAL SUPPLIER 
 09-02-2024,People - Ageing Well,Fountains Care Centre - Bondcare,Nursing Homes - Private Contractors Payment,3920.00,0.00,COMMERCIAL SUPPLIER 
 09-02-2024,People - Ageing Well,Fountains Care Centre - Bondcare,Nursing Homes - Private Contractors Payment,3400.00,0.00,COMMERCIAL SUPPLIER 
 09-02-2024,People - Ageing Well,Fountains Care Centre - Bondcare,Nursing Homes - Private Contractors Payment,3920.00,0.00,COMMERCIAL SUPPLIER 
 09-02-2024,People - Ageing Well,Fountains Care Centre - Bondcare,Nursing Homes - Private Contractors Payment,3010.32,0.00,COMMERCIAL SUPPLIER 
 09-02-2024,People - Ageing Well,Fountains Care Centre - Bondcare,Nursing Homes - Private Contractors Payment,3010.32,0.00,COMMERCIAL SUPPLIER 
 09-02-2024,People - Ageing Well,Fountains Care Centre - Bondcare,Nursing Homes - Private Contractors Payment,3920.00,0.00,COMMERCIAL SUPPLIER 
 09-02-2024,People - Ageing Well,Fountains Care Centre - Bondcare,Residential Placements - Private Contractors Payment,2802.40,0.00,COMMERCIAL SUPPLIER 
 09-02-2024,People - Ageing Well,Fountains Care Centre - Bondcare,Nursing Homes - Private Contractors Payment,4457.14,0.00,COMMERCIAL SUPPLIER 
 09-02-2024,People - Ageing Well,Fountains Care Centre - Bondcare,Residential Placements - Private Contractors Payment,13248.00,0.00,COMMERCIAL SUPPLIER 
 09-02-2024,People - Ageing Well,Fountains Care Centre - Bondcare,Nursing Homes - Private Contractors Payment,1671.43,0.00,COMMERCIAL SUPPLIER 
 09-02-2024,People - Ageing Well,Fountains Care Centre - Bondcare,Residential Placements - Private Contractors Payment,4968.00,0.00,COMMERCIAL SUPPLIER 
 09-02-2024,People - Ageing Well,Fountains Care Centre - Bondcare,Nursing Homes - Private Contractors Payment,3010.32,0.00,COMMERCIAL SUPPLIER 
 09-02-2024,People - Ageing Well,Fountains Care Centre - Bondcare,Nursing Homes - Private Contractors Payment,3010.32,0.00,COMMERCIAL SUPPLIER 
 09-02-2024,People - Ageing Well,Fountains Care Centre - Bondcare,Nursing Homes - Private Contractors Payment,3010.32,0.00,COMMERCIAL SUPPLIER 
 09-02-2024,People - Ageing Well,Fountains Care Centre - Bondcare,Nursing Homes - Private Contractors Payment,3010.32,0.00,COMMERCIAL SUPPLIER 
 09-02-2024,People - Ageing Well,Fountains Care Centre - Bondcare,Residential Placements - Private Contractors Payment,3085.80,0.00,COMMERCIAL SUPPLIER 
 09-02-2024,People - Ageing Well,Fountains Care Centre - Bondcare,Nursing Homes - Private Contractors Payment,3010.32,0.00,COMMERCIAL SUPPLIER 
 09-02-2024,People - Ageing Well,Fountains Care Centre - Bondcare,Nursing Homes - Private Contractors Payment,3010.32,0.00,COMMERCIAL SUPPLIER 
 09-02-2024,People - Ageing Well,Fountains Care Centre - Bondcare,Nursing Homes - Private Contractors Payment,3920.00,0.00,COMMERCIAL SUPPLIER 
 09-02-2024,People - Ageing Well,Fountains Care Centre - Bondcare,Nursing Homes - Private Contractors Payment,3920.00,0.00,COMMERCIAL SUPPLIER 
 09-02-2024,People - Ageing Well,Fountains Care Centre - Bondcare,Residential Placements - Private Contractors Payment,2208.00,0.00,COMMERCIAL SUPPLIER 
 09-02-2024,People - Ageing Well,Fountains Care Centre - Bondcare,Nursing Homes - Private Contractors Payment,5200.00,0.00,COMMERCIAL SUPPLIER 
 09-02-2024,People - Ageing Well,Fountains Care Centre - Bondcare,Residential Placements - Private Contractors Payment,15456.00,0.00,COMMERCIAL SUPPLIER 
 09-02-2024,People - Ageing Well,Fountains Care Centre - Bondcare,Residential Placements - Private Contractors Payment,2802.40,0.00,COMMERCIAL SUPPLIER 
 09-02-2024,People - Ageing Well,Fountains Care Centre - Bondcare,Nursing Homes - Private Contractors Payment,3010.32,0.00,COMMERCIAL SUPPLIER 
 09-02-2024,People - Ageing Well,Black Swan International Ltd - Belamacanda,Residential Placements - Private Contractors Payment,3843.36,0.00,COMMERCIAL SUPPLIER 
 09-02-2024,People - Ageing Well,Black Swan International Ltd - Belamacanda,Residential Placements - Private Contractors Payment,4600.00,0.00,COMMERCIAL SUPPLIER 
 09-02-2024,People - Ageing Well,Voyage Ltd - Solar-Grange Liss,Nursing Homes - Private Contractors Payment,5721.12,0.00,COMMERCIAL SUPPLIER 
 09-02-2024,People - Ageing Well,Havering Care Homes Ltd t/a Abbscross Nursing Home,Nursing Homes - Private Contractors Payment,3800.00,0.00,COMMERCIAL SUPPLIER 
 09-02-2024,People - Ageing Well,Havering Care Homes Ltd t/a Abbscross Nursing Home,Nursing Homes - Private Contractors Payment,2856.64,0.00,COMMERCIAL SUPPLIER 
 09-02-2024,People - Ageing Well,Havering Care Homes Ltd t/a Abbscross Nursing Home,Nursing Homes - Private Contractors Payment,3010.32,0.00,COMMERCIAL SUPPLIER 
 09-02-2024,People - Ageing Well,Havering Care Homes Ltd t/a Abbscross Nursing Home,Nursing Homes - Private Contractors Payment,3010.32,0.00,COMMERCIAL SUPPLIER 
 09-02-2024,People - Ageing Well,Havering Care Homes Ltd t/a Abbscross Nursing Home,Nursing Homes - Private Contractors Payment,4809.08,0.00,COMMERCIAL SUPPLIER 
 09-02-2024,People - Ageing Well,Havering Care Homes Ltd t/a Abbscross Nursing Home,Nursing Homes - Private Contractors Payment,3010.32,0.00,COMMERCIAL SUPPLIER 
 09-02-2024,People - Ageing Well,Havering Care Homes Ltd t/a Abbscross Nursing Home,Nursing Homes - Private Contractors Payment,1221.43,0.00,COMMERCIAL SUPPLIER 
 09-02-2024,People - Ageing Well,One Tree Estates Ltd t/a Ashbrook Nursing Home,Nursing Homes - Private Contractors Payment,4600.00,0.00,COMMERCIAL SUPPLIER 
 09-02-2024,People - Ageing Well,One Tree Estates Ltd t/a Ashbrook Nursing Home,Nursing Homes - Private Contractors Payment,3816.00,0.00,COMMERCIAL SUPPLIER 
 09-02-2024,People - Ageing Well,One Tree Estates Ltd t/a Ashbrook Nursing Home,Nursing Homes - Private Contractors Payment,3600.00,0.00,COMMERCIAL SUPPLIER 
 09-02-2024,People - Ageing Well,One Tree Estates Ltd t/a Ashbrook Nursing Home,Nursing Homes - Private Contractors Payment,10200.00,0.00,COMMERCIAL SUPPLIER 
 09-02-2024,People - Ageing Well,One Tree Estates Ltd t/a Ashbrook Nursing Home,Nursing Homes - Private Contractors Payment,16800.00,0.00,COMMERCIAL SUPPLIER 
 09-02-2024,People - Ageing Well,One Tree Estates Ltd t/a Ashbrook Nursing Home,Nursing Homes - Private Contractors Payment,16800.00,0.00,COMMERCIAL SUPPLIER 
 09-02-2024,People - Ageing Well,One Tree Estates Ltd t/a Ashbrook Nursing Home,Nursing Homes - Private Contractors Payment,10800.00,0.00,COMMERCIAL SUPPLIER 
 09-02-2024,People - Ageing Well,One Tree Estates Ltd t/a Ashbrook Nursing Home,Nursing Homes - Private Contractors Payment,6000.00,0.00,COMMERCIAL SUPPLIER 
 09-02-2024,People - Ageing Well,One Tree Estates Ltd t/a Ashbrook Nursing Home,Nursing Homes - Private Contractors Payment,10800.00,0.00,COMMERCIAL SUPPLIER 
 09-02-2024,People - Ageing Well,One Tree Estates Ltd t/a Ashbrook Nursing Home,Nursing Homes - Private Contractors Payment,6000.00,0.00,COMMERCIAL SUPPLIER 
 09-02-2024,People - Ageing Well,One Tree Estates Ltd t/a Ashbrook Nursing Home,Nursing Homes - Private Contractors Payment,10800.00,0.00,COMMERCIAL SUPPLIER 
 09-02-2024,People - Ageing Well,One Tree Estates Ltd t/a Ashbrook Nursing Home,Nursing Homes - Private Contractors Payment,5512.00,0.00,COMMERCIAL SUPPLIER 
 09-02-2024,People - Ageing Well,One Tree Estates Ltd t/a Ashbrook Nursing Home,Nursing Homes - Private Contractors Payment,4000.00,0.00,COMMERCIAL SUPPLIER 
 09-02-2024,People - Ageing Well,One Tree Estates Ltd t/a Ashbrook Nursing Home,Nursing Homes - Private Contractors Payment,3010.32,0.00,COMMERCIAL SUPPLIER 
 09-02-2024,People - Ageing Well,One Tree Estates Ltd t/a Ashbrook Nursing Home,Nursing Homes - Private Contractors Payment,3298.72,0.00,COMMERCIAL SUPPLIER 
 09-02-2024,People - Ageing Well,One Tree Estates Ltd t/a Ashbrook Nursing Home,Nursing Homes - Private Contractors Payment,2571.43,0.00,COMMERCIAL SUPPLIER 
 09-02-2024,People - Ageing Well,One Tree Estates Ltd t/a Ashbrook Nursing Home,Nursing Homes - Private Contractors Payment,4800.00,0.00,COMMERCIAL SUPPLIER 
 09-02-2024,People - Ageing Well,One Tree Estates Ltd t/a Ashbrook Nursing Home,Nursing Homes - Private Contractors Payment,3392.00,0.00,COMMERCIAL SUPPLIER 
 09-02-2024,People - Ageing Well,One Tree Estates Ltd t/a Ashbrook Nursing Home,Nursing Homes - Private Contractors Payment,8064.00,0.00,COMMERCIAL SUPPLIER 
 09-02-2024,People - Ageing Well,One Tree Estates Ltd t/a Ashbrook Nursing Home,Nursing Homes - Private Contractors Payment,3010.32,0.00,COMMERCIAL SUPPLIER 
 09-02-2024,People - Ageing Well,One Tree Estates Ltd t/a Ashbrook Nursing Home,Nursing Homes - Private Contractors Payment,2736.00,0.00,COMMERCIAL SUPPLIER 
 09-02-2024,People - Ageing Well,One Tree Estates Ltd t/a Ashbrook Nursing Home,Nursing Homes - Private Contractors Payment,8870.40,0.00,COMMERCIAL SUPPLIER 
 09-02-2024,People - Ageing Well,One Tree Estates Ltd t/a Ashbrook Nursing Home,Nursing Homes - Private Contractors Payment,3800.00,0.00,COMMERCIAL SUPPLIER 
 09-02-2024,People - Ageing Well,One Tree Estates Ltd t/a Ashbrook Nursing Home,Nursing Homes - Private Contractors Payment,3259.52,0.00,COMMERCIAL SUPPLIER 
 09-02-2024,People - Ageing Well,One Tree Estates Ltd t/a Ashbrook Nursing Home,Nursing Homes - Private Contractors Payment,3694.12,0.00,COMMERCIAL SUPPLIER 
 09-02-2024,People - Ageing Well,One Tree Estates Ltd t/a Ashbrook Nursing Home,Nursing Homes - Private Contractors Payment,4800.00,0.00,COMMERCIAL SUPPLIER 
 09-02-2024,People - Ageing Well,One Tree Estates Ltd t/a Ashbrook Nursing Home,Nursing Homes - Private Contractors Payment,3010.32,0.00,COMMERCIAL SUPPLIER 
 09-02-2024,People - Ageing Well,One Tree Estates Ltd t/a Ashbrook Nursing Home,Nursing Homes - Private Contractors Payment,5000.00,0.00,COMMERCIAL SUPPLIER 
 09-02-2024,People - Ageing Well,One Tree Estates Ltd t/a Ashbrook Nursing Home,Nursing Homes - Private Contractors Payment,4452.00,0.00,COMMERCIAL SUPPLIER 
 09-02-2024,People - Ageing Well,One Tree Estates Ltd t/a Ashbrook Nursing Home,Nursing Homes - Private Contractors Payment,15456.00,0.00,COMMERCIAL SUPPLIER 
 09-02-2024,People - Ageing Well,One Tree Estates Ltd t/a Ashbrook Nursing Home,Nursing Homes - Private Contractors Payment,4400.00,0.00,COMMERCIAL SUPPLIER 
 09-02-2024,People - Ageing Well,One Tree Estates Ltd t/a Ashbrook Nursing Home,Nursing Homes - Private Contractors Payment,3259.52,0.00,COMMERCIAL SUPPLIER 
 09-02-2024,People - Ageing Well,One Tree Estates Ltd t/a Ashbrook Nursing Home,Nursing Homes - Private Contractors Payment,5649.80,0.00,COMMERCIAL SUPPLIER 
 09-02-2024,People - Ageing Well,One Tree Estates Ltd t/a Ashbrook Nursing Home,Nursing Homes - Private Contractors Payment,14784.00,0.00,COMMERCIAL SUPPLIER 
 09-02-2024,People - Ageing Well,One Tree Estates Ltd t/a Ashbrook Nursing Home,Nursing Homes - Private Contractors Payment,3604.00,0.00,COMMERCIAL SUPPLIER 
 09-02-2024,People - Ageing Well,One Tree Estates Ltd t/a Ashbrook Nursing Home,Nursing Homes - Private Contractors Payment,4600.00,0.00,COMMERCIAL SUPPLIER 
 09-02-2024,People - Ageing Well,One Tree Estates Ltd t/a Ashbrook Nursing Home,Nursing Homes - Private Contractors Payment,1300.00,0.00,COMMERCIAL SUPPLIER 
 09-02-2024,People - Ageing Well,One Tree Estates Ltd t/a Ashbrook Nursing Home,Nursing Homes - Private Contractors Payment,3243.84,0.00,COMMERCIAL SUPPLIER 
 09-02-2024,People - Ageing Well,One Tree Estates Ltd t/a Ashbrook Nursing Home,Nursing Homes - Private Contractors Payment,15456.00,0.00,COMMERCIAL SUPPLIER 
 09-02-2024,People - Ageing Well,One Tree Estates Ltd t/a Ashbrook Nursing Home,Nursing Homes - Private Contractors Payment,4800.00,0.00,COMMERCIAL SUPPLIER 
 09-02-2024,People - Ageing Well,Highfield Care Homes Ltd t/a Romford Grange Care Home,Nursing Homes - Private Contractors Payment,3010.32,0.00,COMMERCIAL SUPPLIER 
 09-02-2024,People - Ageing Well,Highfield Care Homes Ltd t/a Romford Grange Care Home,Nursing Homes - Private Contractors Payment,3010.32,0.00,COMMERCIAL SUPPLIER 
 09-02-2024,People - Ageing Well,Highfield Care Homes Ltd t/a Romford Grange Care Home,Nursing Homes - Private Contractors Payment,2856.64,0.00,COMMERCIAL SUPPLIER 
 09-02-2024,People - Ageing Well,Highfield Care Homes Ltd t/a Romford Grange Care Home,Nursing Homes - Private Contractors Payment,3010.32,0.00,COMMERCIAL SUPPLIER 
 09-02-2024,People - Ageing Well,Highfield Care Homes Ltd t/a Romford Grange Care Home,Residential Placements - Private Contractors Payment,3085.80,0.00,COMMERCIAL SUPPLIER 
 09-02-2024,People - Ageing Well,Highfield Care Homes Ltd t/a Romford Grange Care Home,Residential Placements - Private Contractors Payment,2856.64,0.00,COMMERCIAL SUPPLIER 
 09-02-2024,People - Ageing Well,Highfield Care Homes Ltd t/a Romford Grange Care Home,Nursing Homes - Private Contractors Payment,2794.32,0.00,COMMERCIAL SUPPLIER 
 09-02-2024,People - Ageing Well,Highfield Care Homes Ltd t/a Romford Grange Care Home,Nursing Homes - Private Contractors Payment,2856.64,0.00,COMMERCIAL SUPPLIER 
 09-02-2024,People - Ageing Well,Highfield Care Homes Ltd t/a Romford Grange Care Home,Nursing Homes - Private Contractors Payment,2856.64,0.00,COMMERCIAL SUPPLIER 
 09-02-2024,People - Ageing Well,Highfield Care Homes Ltd t/a Romford Grange Care Home,Nursing Homes - Private Contractors Payment,2856.64,0.00,COMMERCIAL SUPPLIER 
 09-02-2024,People - Ageing Well,Highfield Care Homes Ltd t/a Romford Grange Care Home,Nursing Homes - Private Contractors Payment,3010.32,0.00,COMMERCIAL SUPPLIER 
 09-02-2024,People - Ageing Well,Highfield Care Homes Ltd t/a Romford Grange Care Home,Residential Placements - Private Contractors Payment,2802.40,0.00,COMMERCIAL SUPPLIER 
 09-02-2024,People - Ageing Well,Highfield Care Homes Ltd t/a Romford Grange Care Home,Nursing Homes - Private Contractors Payment,3976.00,0.00,COMMERCIAL SUPPLIER 
 09-02-2024,People - Ageing Well,Kripa Care Ltd,Nursing Homes - Private Contractors Payment,3010.32,0.00,COMMERCIAL SUPPLIER 
 09-02-2024,People - Ageing Well,Kripa Care Ltd,Nursing Homes - Private Contractors Payment,3232.00,0.00,COMMERCIAL SUPPLIER 
 09-02-2024,People - Ageing Well,Kripa Care Ltd,Nursing Homes - Private Contractors Payment,923.43,0.00,COMMERCIAL SUPPLIER 
 09-02-2024,People - Ageing Well,Kripa Care Ltd,Residential Placements - Private Contractors Payment,3782.88,0.00,COMMERCIAL SUPPLIER 
 09-02-2024,People - Ageing Well,Bupa Care Homes (HVC) - Havering Court,Nursing Homes - Private Contractors Payment,4260.68,0.00,COMMERCIAL SUPPLIER 
 09-02-2024,People - Ageing Well,Bupa Care Homes (HVC) - Havering Court,Nursing Homes - Private Contractors Payment,5300.16,0.00,COMMERCIAL SUPPLIER 
 09-02-2024,People - Ageing Well,Bupa Care Homes (HVC) - Havering Court,Nursing Homes - Private Contractors Payment,3874.00,0.00,COMMERCIAL SUPPLIER 
 09-02-2024,People - Ageing Well,Bupa Care Homes (HVC) - Havering Court,Nursing Homes - Private Contractors Payment,3661.08,0.00,COMMERCIAL SUPPLIER 
 09-02-2024,People - Ageing Well,Bupa Care Homes (HVC) - Havering Court,Nursing Homes - Private Contractors Payment,4553.88,0.00,COMMERCIAL SUPPLIER 
 09-02-2024,People - Ageing Well,Bupa Care Homes (HVC) - Havering Court,Nursing Homes - Private Contractors Payment,4623.72,0.00,COMMERCIAL SUPPLIER 
 09-02-2024,People - Ageing Well,Bupa Care Homes (HVC) - Havering Court,Nursing Homes - Private Contractors Payment,4252.44,0.00,COMMERCIAL SUPPLIER 
 09-02-2024,People - Ageing Well,Bupa Care Homes (HVC) - Havering Court,Nursing Homes - Private Contractors Payment,4201.96,0.00,COMMERCIAL SUPPLIER 
 09-02-2024,People - Ageing Well,Bupa Care Homes (HVC) - Havering Court,Nursing Homes - Private Contractors Payment,3010.32,0.00,COMMERCIAL SUPPLIER 
 09-02-2024,People - Ageing Well,Bupa Care Homes (HVC) - Havering Court,Nursing Homes - Private Contractors Payment,5000.00,0.00,COMMERCIAL SUPPLIER 
 09-02-2024,People - Ageing Well,Bupa Care Homes (HVC) - Havering Court,Nursing Homes - Private Contractors Payment,5206.80,0.00,COMMERCIAL SUPPLIER 
 09-02-2024,People - Ageing Well,2 Peel Way - Outlook Care,Supported Other Accommodation - Private Contractors Payment,2532.56,0.00,NON COMMERCIAL SUPPLIER 
 09-02-2024,People - Ageing Well,2 Peel Way - Outlook Care,Supported Other Accommodation - Private Contractors Payment,1858.68,0.00,NON COMMERCIAL SUPPLIER 
 09-02-2024,People - Ageing Well,2 Peel Way - Outlook Care,Supported Other Accommodation - Private Contractors Payment,1041.04,0.00,NON COMMERCIAL SUPPLIER 
 09-02-2024,People - Ageing Well,2 Peel Way - Outlook Care,Supported Other Accommodation - Private Contractors Payment,3298.24,0.00,NON COMMERCIAL SUPPLIER 
 09-02-2024,People - Ageing Well,2 Peel Way - Outlook Care,Supported Other Accommodation - Private Contractors Payment,967.20,0.00,NON COMMERCIAL SUPPLIER 
 09-02-2024,People - Ageing Well,2 Peel Way - Outlook Care,Supported Other Accommodation - Private Contractors Payment,1858.20,0.00,NON COMMERCIAL SUPPLIER 
 09-02-2024,People - Ageing Well,2 Peel Way - Outlook Care,Supported Other Accommodation - Private Contractors Payment,3106.80,0.00,NON COMMERCIAL SUPPLIER 
 09-02-2024,People - Ageing Well,2 Peel Way - Outlook Care,Supported Other Accommodation - Private Contractors Payment,4255.24,0.00,NON COMMERCIAL SUPPLIER 
 09-02-2024,People - Ageing Well,Outlook Care - 4 Peel Way,Supported Other Accommodation - Private Contractors Payment,1939.76,0.00,COMMERCIAL SUPPLIER 
 09-02-2024,People - Ageing Well,Outlook Care - 4 Peel Way,Supported Other Accommodation - Private Contractors Payment,1117.88,0.00,COMMERCIAL SUPPLIER 
 09-02-2024,People - Ageing Well,Outlook Care - 4 Peel Way,Supported Other Accommodation - Private Contractors Payment,1939.76,0.00,COMMERCIAL SUPPLIER 
 09-02-2024,People - Ageing Well,Outlook Care - 4 Peel Way,Supported Other Accommodation - Private Contractors Payment,3553.40,0.00,COMMERCIAL SUPPLIER 
 09-02-2024,People - Ageing Well,Outlook Care - 4 Peel Way,Supported Other Accommodation - Private Contractors Payment,3773.52,0.00,COMMERCIAL SUPPLIER 
 09-02-2024,People - Ageing Well,Outlook Care - 4 Peel Way,Supported Other Accommodation - Private Contractors Payment,1696.48,0.00,COMMERCIAL SUPPLIER 
 09-02-2024,People - Ageing Well,Outlook Care - 4 Peel Way,Supported Other Accommodation - Private Contractors Payment,3090.84,0.00,COMMERCIAL SUPPLIER 
 09-02-2024,People - Ageing Well,Outlook Care - 4 Peel Way,Supported Other Accommodation - Private Contractors Payment,1857.40,0.00,COMMERCIAL SUPPLIER 
 09-02-2024,People - Ageing Well,Outlook Care - 4 Peel Way,Supported Other Accommodation - Private Contractors Payment,991.00,0.00,COMMERCIAL SUPPLIER 
 09-02-2024,People - Ageing Well,The Avenues Trust - 6 Peel Way,Residential Placements - Private Contractors Payment,6584.60,0.00,COMMERCIAL SUPPLIER 
 09-02-2024,People - Ageing Well,The Avenues Trust - 6 Peel Way,Residential Placements - Private Contractors Payment,6584.60,0.00,COMMERCIAL SUPPLIER 
 09-02-2024,People - Ageing Well,The Avenues Trust - 6 Peel Way,Residential Placements - Private Contractors Payment,6584.60,0.00,COMMERCIAL SUPPLIER 
 09-02-2024,People - Ageing Well,The Avenues Trust - 6 Peel Way,Residential Placements - Private Contractors Payment,6584.60,0.00,COMMERCIAL SUPPLIER 
 09-02-2024,People - Ageing Well,Voyage Ltd - Solar Care Melbreck,Nursing Homes - Private Contractors Payment,4536.24,0.00,COMMERCIAL SUPPLIER 
 09-02-2024,People - Ageing Well,Fitzroy Support,Residential Placements - Private Contractors Payment,5746.04,0.00,COMMERCIAL SUPPLIER 
 09-02-2024,People - Ageing Well,St Michaels Homes Ltd,Residential Placements - Private Contractors Payment,3085.80,0.00,COMMERCIAL SUPPLIER 
 09-02-2024,People - Ageing Well,St Michaels Homes Ltd,Residential Placements - Private Contractors Payment,3085.80,0.00,COMMERCIAL SUPPLIER 
 09-02-2024,People - Ageing Well,St Michaels Homes Ltd,Residential Placements - Private Contractors Payment,3940.00,0.00,COMMERCIAL SUPPLIER 
 09-02-2024,People - Ageing Well,Bupa Care Homes - Hutton Village,Nursing Homes - Private Contractors Payment,3010.32,0.00,COMMERCIAL SUPPLIER 
 09-02-2024,People - Ageing Well,Havering Care Homes Ltd t/a Upminster Nursing Home,Nursing Homes - Private Contractors Payment,2856.64,0.00,COMMERCIAL SUPPLIER 
 09-02-2024,People - Ageing Well,Havering Care Homes Ltd t/a Upminster Nursing Home,Nursing Homes - Private Contractors Payment,3010.32,0.00,COMMERCIAL SUPPLIER 
 09-02-2024,People - Ageing Well,Havering Care Homes Ltd t/a Upminster Nursing Home,Nursing Homes - Private Contractors Payment,2856.64,0.00,COMMERCIAL SUPPLIER 
 09-02-2024,People - Ageing Well,Havering Care Homes Ltd t/a Upminster Nursing Home,Nursing Homes - Private Contractors Payment,3010.32,0.00,COMMERCIAL SUPPLIER 
 09-02-2024,People - Ageing Well,Havering Care Homes Ltd t/a Upminster Nursing Home,Nursing Homes - Private Contractors Payment,3010.32,0.00,COMMERCIAL SUPPLIER 
 09-02-2024,People - Ageing Well,Havering Care Homes Ltd t/a Upminster Nursing Home,Nursing Homes - Private Contractors Payment,3132.00,0.00,COMMERCIAL SUPPLIER 
 09-02-2024,People - Ageing Well,Havering Care Homes Ltd t/a Upminster Nursing Home,Nursing Homes - Private Contractors Payment,4134.00,0.00,COMMERCIAL SUPPLIER 
 09-02-2024,People - Ageing Well,Havering Care Homes Ltd t/a Upminster Nursing Home,Residential Placements - Private Contractors Payment,3085.80,0.00,COMMERCIAL SUPPLIER 
 09-02-2024,People - Ageing Well,Havering Care Homes Ltd t/a Upminster Nursing Home,Nursing Homes - Private Contractors Payment,2856.64,0.00,COMMERCIAL SUPPLIER 
 09-02-2024,People - Ageing Well,Havering Care Homes Ltd t/a Upminster Nursing Home,Nursing Homes - Private Contractors Payment,3010.32,0.00,COMMERCIAL SUPPLIER 
 09-02-2024,People - Ageing Well,Essex Care Consortium Ltd_a,Residential Placements - Private Contractors Payment,4759.24,0.00,COMMERCIAL SUPPLIER 
 09-02-2024,People - Ageing Well,Permacare Ltd,Residential Placements - Private Contractors Payment,3085.80,0.00,COMMERCIAL SUPPLIER 
 09-02-2024,People - Ageing Well,St Michaels Homes Ltd,Residential Placements - Private Contractors Payment,4400.00,0.00,COMMERCIAL SUPPLIER 
 09-02-2024,People - Ageing Well,St Michaels Homes Ltd,Residential Placements - Private Contractors Payment,4560.00,0.00,COMMERCIAL SUPPLIER 
 09-02-2024,People - Ageing Well,Lukka Care Homes Ltd - Ravenscourt,Nursing Homes - Private Contractors Payment,4320.00,0.00,COMMERCIAL SUPPLIER 
 09-02-2024,People - Ageing Well,Lukka Care Homes Ltd - Ravenscourt,Nursing Homes - Private Contractors Payment,3125.12,0.00,COMMERCIAL SUPPLIER 
 09-02-2024,People - Ageing Well,Lukka Care Homes Ltd - Ravenscourt,Nursing Homes - Private Contractors Payment,4028.00,0.00,COMMERCIAL SUPPLIER 
 09-02-2024,People - Ageing Well,Lukka Care Homes Ltd - Ravenscourt,Nursing Homes - Private Contractors Payment,4000.00,0.00,COMMERCIAL SUPPLIER 
 09-02-2024,People - Ageing Well,Lukka Care Homes Ltd - Ravenscourt,Nursing Homes - Private Contractors Payment,3600.00,0.00,COMMERCIAL SUPPLIER 
 09-02-2024,People - Ageing Well,Lukka Care Homes Ltd - Ravenscourt,Nursing Homes - Private Contractors Payment,4000.00,0.00,COMMERCIAL SUPPLIER 
 09-02-2024,People - Ageing Well,Lukka Care Homes Ltd - Ravenscourt,Nursing Homes - Private Contractors Payment,3800.00,0.00,COMMERCIAL SUPPLIER 
 09-02-2024,People - Ageing Well,Lukka Care Homes Ltd - Ravenscourt,Nursing Homes - Private Contractors Payment,4399.88,0.00,COMMERCIAL SUPPLIER 
 09-02-2024,People - Ageing Well,Lukka Care Homes Ltd - Ravenscourt,Nursing Homes - Private Contractors Payment,4400.00,0.00,COMMERCIAL SUPPLIER 
 09-02-2024,People - Ageing Well,Lukka Care Homes Ltd - Ravenscourt,Nursing Homes - Private Contractors Payment,2985.71,0.00,COMMERCIAL SUPPLIER 
 09-02-2024,People - Ageing Well,Lukka Care Homes Ltd - Ravenscourt,Nursing Homes - Private Contractors Payment,4000.00,0.00,COMMERCIAL SUPPLIER 
 09-02-2024,People - Ageing Well,Lukka Care Homes Ltd - Ravenscourt,Nursing Homes - Private Contractors Payment,3530.68,0.00,COMMERCIAL SUPPLIER 
 09-02-2024,People - Ageing Well,Lukka Care Homes Ltd - Ravenscourt,Nursing Homes - Private Contractors Payment,3800.00,0.00,COMMERCIAL SUPPLIER 
 09-02-2024,People - Ageing Well,Lukka Care Homes Ltd - Ravenscourt,Nursing Homes - Private Contractors Payment,4000.00,0.00,COMMERCIAL SUPPLIER 
 09-02-2024,People - Ageing Well,Lukka Care Homes Ltd - Ravenscourt,Nursing Homes - Private Contractors Payment,3010.32,0.00,COMMERCIAL SUPPLIER 
 09-02-2024,People - Ageing Well,Lukka Care Homes Ltd - Ravenscourt,Nursing Homes - Private Contractors Payment,5319.52,0.00,COMMERCIAL SUPPLIER 
 09-02-2024,People - Ageing Well,Barchester Healthcare Ltd - Park View Care Home,Nursing Homes - Private Contractors Payment,4482.92,0.00,COMMERCIAL SUPPLIER 
 09-02-2024,People - Ageing Well,Barchester Healthcare Ltd - Park View Care Home,Nursing Homes - Private Contractors Payment,4725.88,0.00,COMMERCIAL SUPPLIER 
 09-02-2024,People - Ageing Well,Barchester Healthcare Ltd - Park View Care Home,Nursing Homes - Private Contractors Payment,4527.44,0.00,COMMERCIAL SUPPLIER 
 09-02-2024,People - Ageing Well,Barchester Healthcare Ltd - Park View Care Home,Nursing Homes - Private Contractors Payment,5988.96,0.00,COMMERCIAL SUPPLIER 
 09-02-2024,People - Ageing Well,Barchester Healthcare Ltd - Park View Care Home,Nursing Homes - Private Contractors Payment,3125.12,0.00,COMMERCIAL SUPPLIER 
 09-02-2024,People - Ageing Well,Barchester Healthcare Ltd - Park View Care Home,Residential Placements - Private Contractors Payment,5270.32,0.00,COMMERCIAL SUPPLIER 
 09-02-2024,People - Ageing Well,Barchester Healthcare Ltd - Park View Care Home,Nursing Homes - Private Contractors Payment,4527.44,0.00,COMMERCIAL SUPPLIER 
 09-02-2024,People - Ageing Well,Barchester Healthcare Ltd - Park View Care Home,Residential Placements - Private Contractors Payment,5400.00,0.00,COMMERCIAL SUPPLIER 
 09-02-2024,People - Ageing Well,Barchester Healthcare Ltd - Park View Care Home,Residential Placements - Private Contractors Payment,3085.80,0.00,COMMERCIAL SUPPLIER 
 09-02-2024,People - Ageing Well,Barchester Healthcare Ltd - Park View Care Home,Nursing Homes - Private Contractors Payment,4060.92,0.00,COMMERCIAL SUPPLIER 
 09-02-2024,People - Ageing Well,Barchester Healthcare Ltd - Park View Care Home,Nursing Homes - Private Contractors Payment,4122.00,0.00,COMMERCIAL SUPPLIER 
 09-02-2024,People - Ageing Well,Barchester Healthcare Ltd - Park View Care Home,Nursing Homes - Private Contractors Payment,3921.16,0.00,COMMERCIAL SUPPLIER 
 09-02-2024,People - Ageing Well,Barchester Healthcare Ltd - Park View Care Home,Nursing Homes - Private Contractors Payment,4134.00,0.00,COMMERCIAL SUPPLIER 
 09-02-2024,People - Ageing Well,Westminster Health Care Ltd Derham House,Nursing Homes - Private Contractors Payment,6499.92,0.00,COMMERCIAL SUPPLIER 
 09-02-2024,People - Ageing Well,Westminster Health Care Ltd Derham House,Nursing Homes - Private Contractors Payment,3010.32,0.00,COMMERCIAL SUPPLIER 
 09-02-2024,People - Ageing Well,Westminster Health Care Ltd Derham House,Residential Placements - Private Contractors Payment,5592.00,0.00,COMMERCIAL SUPPLIER 
 09-02-2024,People - Ageing Well,Westminster Health Care Ltd Derham House,Residential Placements - Private Contractors Payment,6162.64,0.00,COMMERCIAL SUPPLIER 
 09-02-2024,People - Ageing Well,Westminster Health Care Ltd Derham House,Nursing Homes - Private Contractors Payment,6152.28,0.00,COMMERCIAL SUPPLIER 
 09-02-2024,People - Ageing Well,Westminster Health Care Ltd Derham House,Nursing Homes - Private Contractors Payment,5800.00,0.00,COMMERCIAL SUPPLIER 
 09-02-2024,People - Ageing Well,Westminster Health Care Ltd Derham House,Nursing Homes - Private Contractors Payment,6992.00,0.00,COMMERCIAL SUPPLIER 
 09-02-2024,People - Ageing Well,Westminster Health Care Ltd Derham House,Nursing Homes - Private Contractors Payment,4198.56,0.00,COMMERCIAL SUPPLIER 
 09-02-2024,People - Ageing Well,Westminster Health Care Ltd Derham House,Residential Placements - Private Contractors Payment,6360.00,0.00,COMMERCIAL SUPPLIER 
 09-02-2024,People - Ageing Well,Westminster Health Care Ltd Derham House,Nursing Homes - Private Contractors Payment,6152.28,0.00,COMMERCIAL SUPPLIER 
 09-02-2024,People - Ageing Well,Westminster Health Care Ltd Derham House,Nursing Homes - Private Contractors Payment,6989.04,0.00,COMMERCIAL SUPPLIER 
 09-02-2024,People - Ageing Well,Westminster Health Care Ltd Derham House,Nursing Homes - Private Contractors Payment,6113.16,0.00,COMMERCIAL SUPPLIER 
 09-02-2024,People - Ageing Well,Westminster Health Care Ltd Derham House,Nursing Homes - Private Contractors Payment,12600.00,0.00,COMMERCIAL SUPPLIER 
 09-02-2024,People - Ageing Well,Westminster Health Care Ltd Derham House,Nursing Homes - Private Contractors Payment,4800.00,0.00,COMMERCIAL SUPPLIER 
 09-02-2024,People - Ageing Well,Westminster Health Care Ltd Derham House,Residential Placements - Private Contractors Payment,6084.00,0.00,COMMERCIAL SUPPLIER 
 09-02-2024,People - Ageing Well,Gable Court Nursing Home Ltd,Nursing Homes - Private Contractors Payment,4800.00,0.00,COMMERCIAL SUPPLIER 
 09-02-2024,People - Ageing Well,HC-One Oval Ltd - The Hornchurch Nursing Centre,Nursing Homes - Private Contractors Payment,3010.32,0.00,COMMERCIAL SUPPLIER 
 09-02-2024,People - Ageing Well,HC-One Oval Ltd - The Hornchurch Nursing Centre,Nursing Homes - Private Contractors Payment,3010.32,0.00,COMMERCIAL SUPPLIER 
 09-02-2024,People - Ageing Well,HC-One Oval Ltd - The Hornchurch Nursing Centre,Nursing Homes - Private Contractors Payment,2856.64,0.00,COMMERCIAL SUPPLIER 
 09-02-2024,People - Ageing Well,HC-One Oval Ltd - The Hornchurch Nursing Centre,Nursing Homes - Private Contractors Payment,2472.76,0.00,COMMERCIAL SUPPLIER 
 09-02-2024,People - Ageing Well,HC-One Oval Ltd - The Hornchurch Nursing Centre,Residential Placements - Private Contractors Payment,3085.80,0.00,COMMERCIAL SUPPLIER 
 09-02-2024,People - Ageing Well,HC-One Oval Ltd - The Hornchurch Nursing Centre,Nursing Homes - Private Contractors Payment,3800.00,0.00,COMMERCIAL SUPPLIER 
 09-02-2024,People - Ageing Well,HC-One Oval Ltd - The Hornchurch Nursing Centre,Nursing Homes - Private Contractors Payment,3010.32,0.00,COMMERCIAL SUPPLIER 
 09-02-2024,People - Ageing Well,HC-One Oval Ltd - The Hornchurch Nursing Centre,Nursing Homes - Private Contractors Payment,3010.32,0.00,COMMERCIAL SUPPLIER 
 09-02-2024,People - Ageing Well,HC-One Oval Ltd - The Hornchurch Nursing Centre,Nursing Homes - Private Contractors Payment,3010.32,0.00,COMMERCIAL SUPPLIER 
 09-02-2024,People - Ageing Well,HC-One Oval Ltd - The Hornchurch Nursing Centre,Nursing Homes - Private Contractors Payment,3010.32,0.00,COMMERCIAL SUPPLIER 
 09-02-2024,People - Ageing Well,HC-One Oval Ltd - The Hornchurch Nursing Centre,Nursing Homes - Private Contractors Payment,3010.32,0.00,COMMERCIAL SUPPLIER 
 09-02-2024,People - Ageing Well,HC-One Oval Ltd - The Hornchurch Nursing Centre,Nursing Homes - Private Contractors Payment,3010.32,0.00,COMMERCIAL SUPPLIER 
 09-02-2024,People - Ageing Well,HC-One Oval Ltd - The Hornchurch Nursing Centre,Nursing Homes - Private Contractors Payment,3010.32,0.00,COMMERCIAL SUPPLIER 
 09-02-2024,People - Ageing Well,HC-One Oval Ltd - The Hornchurch Nursing Centre,Respite Care - Private Contractors Payment,2466.87,0.00,COMMERCIAL SUPPLIER 
 09-02-2024,People - Ageing Well,HC-One Oval Ltd - The Hornchurch Nursing Centre,Nursing Homes - Private Contractors Payment,5244.00,0.00,COMMERCIAL SUPPLIER 
 09-02-2024,People - Ageing Well,HC-One Oval Ltd - The Hornchurch Nursing Centre,Nursing Homes - Private Contractors Payment,3010.32,0.00,COMMERCIAL SUPPLIER 
 09-02-2024,People - Ageing Well,HC-One Oval Ltd - The Hornchurch Nursing Centre,Residential Placements - Private Contractors Payment,3889.16,0.00,COMMERCIAL SUPPLIER 
 09-02-2024,People - Ageing Well,HC-One Oval Ltd - The Hornchurch Nursing Centre,Nursing Homes - Private Contractors Payment,3010.32,0.00,COMMERCIAL SUPPLIER 
 09-02-2024,People - Ageing Well,HC-One Oval Ltd - The Hornchurch Nursing Centre,Nursing Homes - Private Contractors Payment,3010.32,0.00,COMMERCIAL SUPPLIER 
 09-02-2024,People - Ageing Well,HC-One Oval Ltd - The Hornchurch Nursing Centre,Respite Care - Private Contractors Payment,2646.87,0.00,COMMERCIAL SUPPLIER 
 09-02-2024,People - Ageing Well,HC-One Oval Ltd - The Hornchurch Nursing Centre,Residential Placements - Private Contractors Payment,3800.00,0.00,COMMERCIAL SUPPLIER 
 09-02-2024,People - Ageing Well,HC-One Oval Ltd - The Hornchurch Nursing Centre,Nursing Homes - Private Contractors Payment,3010.32,0.00,COMMERCIAL SUPPLIER 
 09-02-2024,People - Ageing Well,HC-One Oval Ltd - The Hornchurch Nursing Centre,Nursing Homes - Private Contractors Payment,3010.32,0.00,COMMERCIAL SUPPLIER 
 09-02-2024,People - Ageing Well,HC-One Oval Ltd - The Hornchurch Nursing Centre,Nursing Homes - Private Contractors Payment,3010.32,0.00,COMMERCIAL SUPPLIER 
 09-02-2024,People - Ageing Well,Bramerton Care Home - Community Homes of Intensive Care and Education Ltd,Residential Placements - Private Contractors Payment,8759.00,0.00,COMMERCIAL SUPPLIER 
 09-02-2024,People - Ageing Well,Bondcare (London) Ltd ,Nursing Homes - Private Contractors Payment,2442.86,0.00,COMMERCIAL SUPPLIER 
 09-02-2024,People - Ageing Well,Bondcare (London) Ltd ,Nursing Homes - Private Contractors Payment,3010.32,0.00,COMMERCIAL SUPPLIER 
 09-02-2024,People - Ageing Well,Bondcare (London) Ltd ,Nursing Homes - Private Contractors Payment,12432.00,0.00,COMMERCIAL SUPPLIER 
 09-02-2024,People - Ageing Well,Emerson Court_a,Residential Placements - Private Contractors Payment,3860.00,0.00,COMMERCIAL SUPPLIER 
 09-02-2024,People - Ageing Well,Emerson Court_a,Residential Placements - Private Contractors Payment,3675.00,0.00,COMMERCIAL SUPPLIER 
 09-02-2024,People - Ageing Well,Emerson Court_a,Residential Placements - Private Contractors Payment,3006.88,0.00,COMMERCIAL SUPPLIER 
 09-02-2024,People - Ageing Well,Emerson Court_a,Residential Placements - Private Contractors Payment,3895.52,0.00,COMMERCIAL SUPPLIER 
 09-02-2024,People - Ageing Well,Emerson Court_a,Residential Placements - Private Contractors Payment,3794.80,0.00,COMMERCIAL SUPPLIER 
 09-02-2024,People - Ageing Well,Emerson Court_a,Residential Placements - Private Contractors Payment,3672.00,0.00,COMMERCIAL SUPPLIER 
 09-02-2024,People - Ageing Well,DMP Healthcare (Heatherbrook) Ltd,Nursing Homes - Private Contractors Payment,4560.00,0.00,NON COMMERCIAL SUPPLIER 
 09-02-2024,People - Ageing Well,DMP Healthcare (Heatherbrook) Ltd,Nursing Homes - Private Contractors Payment,3010.32,0.00,NON COMMERCIAL SUPPLIER 
 09-02-2024,People - Ageing Well,DMP Healthcare (Heatherbrook) Ltd,Nursing Homes - Private Contractors Payment,4560.00,0.00,NON COMMERCIAL SUPPLIER 
 09-02-2024,People - Ageing Well,DMP Healthcare (Heatherbrook) Ltd,Nursing Homes - Private Contractors Payment,3010.32,0.00,NON COMMERCIAL SUPPLIER 
 09-02-2024,People - Ageing Well,DMP Healthcare (Heatherbrook) Ltd,Nursing Homes - Private Contractors Payment,2885.84,0.00,NON COMMERCIAL SUPPLIER 
 09-02-2024,People - Ageing Well,DMP Healthcare (Heatherbrook) Ltd,Nursing Homes - Private Contractors Payment,5712.00,0.00,NON COMMERCIAL SUPPLIER 
 09-02-2024,People - Ageing Well,DMP Healthcare (Heatherbrook) Ltd,Nursing Homes - Private Contractors Payment,2156.04,0.00,NON COMMERCIAL SUPPLIER 
 09-02-2024,People - Ageing Well,DMP Healthcare (Heatherbrook) Ltd,Nursing Homes - Private Contractors Payment,2856.00,0.00,NON COMMERCIAL SUPPLIER 
 09-02-2024,People - Ageing Well,DMP Healthcare (Heatherbrook) Ltd,Nursing Homes - Private Contractors Payment,3010.32,0.00,NON COMMERCIAL SUPPLIER 
 09-02-2024,People - Ageing Well,DMP Healthcare (Heatherbrook) Ltd,Residential Placements - Private Contractors Payment,4560.00,0.00,NON COMMERCIAL SUPPLIER 
 09-02-2024,People - Ageing Well,DMP Healthcare (Heatherbrook) Ltd,Nursing Homes - Private Contractors Payment,2856.64,0.00,NON COMMERCIAL SUPPLIER 
 09-02-2024,People - Ageing Well,DMP Healthcare (Heatherbrook) Ltd,Nursing Homes - Private Contractors Payment,3010.32,0.00,NON COMMERCIAL SUPPLIER 
 09-02-2024,People - Ageing Well,DMP Healthcare (Heatherbrook) Ltd,Residential Placements - Private Contractors Payment,4560.00,0.00,NON COMMERCIAL SUPPLIER 
 09-02-2024,People - Ageing Well,DMP Healthcare (Heatherbrook) Ltd,Residential Placements - Private Contractors Payment,3085.80,0.00,NON COMMERCIAL SUPPLIER 
 09-02-2024,People - Ageing Well,DMP Healthcare (Heatherbrook) Ltd,Nursing Homes - Private Contractors Payment,4240.00,0.00,NON COMMERCIAL SUPPLIER 
 09-02-2024,People - Ageing Well,DMP Healthcare (Heatherbrook) Ltd,Residential Placements - Private Contractors Payment,3085.80,0.00,NON COMMERCIAL SUPPLIER 
 09-02-2024,People - Ageing Well,DMP Healthcare (Heatherbrook) Ltd,Residential Placements - Private Contractors Payment,651.43,0.00,NON COMMERCIAL SUPPLIER 
 09-02-2024,People - Ageing Well,DMP Healthcare (Heatherbrook) Ltd,Residential Placements - Private Contractors Payment,4560.00,0.00,NON COMMERCIAL SUPPLIER 
 09-02-2024,People - Ageing Well,DMP Healthcare (Heatherbrook) Ltd,Nursing Homes - Private Contractors Payment,3010.32,0.00,NON COMMERCIAL SUPPLIER 
 09-02-2024,People - Ageing Well,DMP Healthcare (Heatherbrook) Ltd,Nursing Homes - Private Contractors Payment,3042.00,0.00,NON COMMERCIAL SUPPLIER 
 09-02-2024,People - Ageing Well,DMP Healthcare (Heatherbrook) Ltd,Nursing Homes - Private Contractors Payment,3010.32,0.00,NON COMMERCIAL SUPPLIER 
 09-02-2024,People - Ageing Well,DMP Healthcare (Heatherbrook) Ltd,Nursing Homes - Private Contractors Payment,3010.32,0.00,NON COMMERCIAL SUPPLIER 
 09-02-2024,People - Ageing Well,DMP Healthcare (Heatherbrook) Ltd,Nursing Homes - Private Contractors Payment,6720.00,0.00,NON COMMERCIAL SUPPLIER 
 09-02-2024,People - Ageing Well,DMP Healthcare (Heatherbrook) Ltd,Nursing Homes - Private Contractors Payment,3120.00,0.00,NON COMMERCIAL SUPPLIER 
 09-02-2024,People - Ageing Well,Sense_a,Residential Placements - Private Contractors Payment,9017.44,0.00,COMMERCIAL SUPPLIER 
 09-02-2024,People - Ageing Well,Masumin Ltd t/s Abbeleigh House,Residential Placements - Private Contractors Payment,3085.80,0.00,COMMERCIAL SUPPLIER 
 09-02-2024,People - Ageing Well,Masumin Ltd t/s Abbeleigh House,Residential Placements - Private Contractors Payment,3500.00,0.00,COMMERCIAL SUPPLIER 
 09-02-2024,People - Ageing Well,Masumin Ltd t/s Abbeleigh House,Residential Placements - Private Contractors Payment,3392.86,0.00,COMMERCIAL SUPPLIER 
 09-02-2024,People - Ageing Well,Masumin Ltd t/s Abbeleigh House,Residential Placements - Private Contractors Payment,3085.80,0.00,COMMERCIAL SUPPLIER 
 09-02-2024,People - Ageing Well,Masumin Ltd t/s Abbeleigh House,Residential Placements - Private Contractors Payment,3800.00,0.00,COMMERCIAL SUPPLIER 
 09-02-2024,People - Ageing Well,Masumin Ltd t/s Abbeleigh House,Residential Placements - Private Contractors Payment,3085.80,0.00,COMMERCIAL SUPPLIER 
 09-02-2024,People - Ageing Well,Masumin Ltd t/s Abbeleigh House,Residential Placements - Private Contractors Payment,3085.80,0.00,COMMERCIAL SUPPLIER 
 09-02-2024,People - Ageing Well,Masumin Ltd t/s Abbeleigh House,Residential Placements - Private Contractors Payment,3085.80,0.00,COMMERCIAL SUPPLIER 
 09-02-2024,People - Ageing Well,Masumin Ltd t/s Abbeleigh House,Residential Care Income,836.92,0.00,COMMERCIAL SUPPLIER 
 09-02-2024,People - Ageing Well,Masumin Ltd t/s Abbeleigh House,Residential Placements - Private Contractors Payment,3085.80,0.00,COMMERCIAL SUPPLIER 
 09-02-2024,People - Ageing Well,Masumin Ltd t/s Abbeleigh House,Residential Placements - Private Contractors Payment,3646.40,0.00,COMMERCIAL SUPPLIER 
 09-02-2024,People - Ageing Well,Masumin Ltd t/s Abbeleigh House,Residential Placements - Private Contractors Payment,3085.80,0.00,COMMERCIAL SUPPLIER 
 09-02-2024,People - Ageing Well,Masumin Ltd t/s Abbeleigh House,Residential Placements - Private Contractors Payment,3085.80,0.00,COMMERCIAL SUPPLIER 
 09-02-2024,People - Ageing Well,Masumin Ltd t/s Abbeleigh House,Residential Placements - Private Contractors Payment,3085.80,0.00,COMMERCIAL SUPPLIER 
 09-02-2024,People - Ageing Well,Masumin Ltd t/s Abbeleigh House,Residential Placements - Private Contractors Payment,3085.80,0.00,COMMERCIAL SUPPLIER 
 09-02-2024,People - Ageing Well,Masumin Ltd t/s Abbeleigh House,Residential Placements - Private Contractors Payment,7542.86,0.00,COMMERCIAL SUPPLIER 
 09-02-2024,People - Ageing Well,Masumin Ltd t/s Abbeleigh House,Residential Placements - Private Contractors Payment,2957.14,0.00,COMMERCIAL SUPPLIER 
 09-02-2024,People - Ageing Well,Masumin Ltd t/s Abbeleigh House,Residential Placements - Private Contractors Payment,785.71,0.00,COMMERCIAL SUPPLIER 
 09-02-2024,People - Ageing Well,Masumin Ltd t/s Abbeleigh House,Residential Placements - Private Contractors Payment,1671.43,0.00,COMMERCIAL SUPPLIER 
 09-02-2024,People - Ageing Well,Masumin Ltd t/s Abbeleigh House,Residential Placements - Private Contractors Payment,3900.00,0.00,COMMERCIAL SUPPLIER 
 09-02-2024,People - Ageing Well,Masumin Ltd t/s Abbeleigh House,Residential Placements - Private Contractors Payment,3400.00,0.00,COMMERCIAL SUPPLIER 
 09-02-2024,People - Ageing Well,Masumin Ltd t/s Abbeleigh House,Residential Placements - Private Contractors Payment,3400.00,0.00,COMMERCIAL SUPPLIER 
 09-02-2024,People - Ageing Well,Masumin Ltd t/s Abbeleigh House,Residential Placements - Private Contractors Payment,3400.00,0.00,COMMERCIAL SUPPLIER 
 09-02-2024,People - Ageing Well,Masumin Ltd t/s Abbeleigh House,Residential Placements - Private Contractors Payment,3700.00,0.00,COMMERCIAL SUPPLIER 
 09-02-2024,People - Ageing Well,Masumin Ltd t/s Abbeleigh House,Residential Placements - Private Contractors Payment,3800.00,0.00,COMMERCIAL SUPPLIER 
 09-02-2024,People - Ageing Well,Masumin Ltd t/s Abbeleigh House,Residential Placements - Private Contractors Payment,3440.00,0.00,COMMERCIAL SUPPLIER 
 09-02-2024,People - Ageing Well,Masumin Ltd t/s Abbeleigh House,Residential Placements - Private Contractors Payment,3800.00,0.00,COMMERCIAL SUPPLIER 
 09-02-2024,People - Ageing Well,EC Romford Holdings Ltd,Residential Placements - Private Contractors Payment,4267.08,0.00,COMMERCIAL SUPPLIER 
 09-02-2024,People - Ageing Well,EC Romford Holdings Ltd,Residential Placements - Private Contractors Payment,4033.08,0.00,COMMERCIAL SUPPLIER 
 09-02-2024,People - Ageing Well,Clover Cottage Ltd,Residential Placements - Private Contractors Payment,2802.40,0.00,COMMERCIAL SUPPLIER 
 09-02-2024,People - Ageing Well,Clover Cottage Ltd,Residential Placements - Private Contractors Payment,4960.80,0.00,COMMERCIAL SUPPLIER 
 09-02-2024,People - Ageing Well,Clover Cottage Ltd,Residential Placements - Private Contractors Payment,3085.80,0.00,COMMERCIAL SUPPLIER 
 09-02-2024,People - Ageing Well,Clover Cottage Ltd,Residential Placements - Private Contractors Payment,4960.80,0.00,COMMERCIAL SUPPLIER 
 09-02-2024,People - Ageing Well,Clover Cottage Ltd,Residential Placements - Private Contractors Payment,3085.80,0.00,COMMERCIAL SUPPLIER 
 09-02-2024,People - Ageing Well,Clover Cottage Ltd,Residential Placements - Private Contractors Payment,3085.80,0.00,COMMERCIAL SUPPLIER 
 09-02-2024,People - Ageing Well,Clover Cottage Ltd,Residential Placements - Private Contractors Payment,2802.40,0.00,COMMERCIAL SUPPLIER 
 09-02-2024,People - Ageing Well,Clover Cottage Ltd,Residential Placements - Private Contractors Payment,2802.40,0.00,COMMERCIAL SUPPLIER 
 09-02-2024,People - Ageing Well,Ebury Court_a,Residential Placements - Private Contractors Payment,4800.00,0.00,COMMERCIAL SUPPLIER 
 09-02-2024,People - Ageing Well,Ebury Court_a,Residential Placements - Private Contractors Payment,5800.00,0.00,COMMERCIAL SUPPLIER 
 09-02-2024,People - Ageing Well,Ebury Court_a,Residential Placements - Private Contractors Payment,4853.52,0.00,COMMERCIAL SUPPLIER 
 09-02-2024,People - Ageing Well,Ebury Court_a,Residential Placements - Private Contractors Payment,3085.80,0.00,COMMERCIAL SUPPLIER 
 09-02-2024,People - Ageing Well,Ebury Court_a,Residential Placements - Private Contractors Payment,4808.16,0.00,COMMERCIAL SUPPLIER 
 09-02-2024,People - Ageing Well,Ebury Court_a,Residential Placements - Private Contractors Payment,5084.64,0.00,COMMERCIAL SUPPLIER 
 09-02-2024,People - Ageing Well,Ebury Court_a,Residential Placements - Private Contractors Payment,3085.80,0.00,COMMERCIAL SUPPLIER 
 09-02-2024,People - Ageing Well,Ebury Court_a,Residential Placements - Private Contractors Payment,3085.80,0.00,COMMERCIAL SUPPLIER 
 09-02-2024,People - Ageing Well,May Residential Homes Ltd,Residential Placements - Private Contractors Payment,3908.00,0.00,COMMERCIAL SUPPLIER 
 09-02-2024,People - Ageing Well,May Residential Homes Ltd,Residential Placements - Private Contractors Payment,3932.28,0.00,COMMERCIAL SUPPLIER 
 09-02-2024,People - Ageing Well,May Residential Homes Ltd,Residential Placements - Private Contractors Payment,3085.80,0.00,COMMERCIAL SUPPLIER 
 09-02-2024,People - Ageing Well,May Residential Homes Ltd,Residential Placements - Private Contractors Payment,3780.00,0.00,COMMERCIAL SUPPLIER 
 09-02-2024,People - Ageing Well,May Residential Homes Ltd,Residential Placements - Private Contractors Payment,3948.00,0.00,COMMERCIAL SUPPLIER 
 09-02-2024,People - Ageing Well,May Residential Homes Ltd,Residential Placements - Private Contractors Payment,3085.80,0.00,COMMERCIAL SUPPLIER 
 09-02-2024,People - Ageing Well,May Residential Homes Ltd,Respite Care - Private Contractors Payment,675.00,0.00,COMMERCIAL SUPPLIER 
 09-02-2024,People - Ageing Well,EC Romford Holdings Ltd,Residential Placements - Private Contractors Payment,4186.24,0.00,COMMERCIAL SUPPLIER 
 09-02-2024,People - Ageing Well,Lodge Group Care UK Ltd,Supported Other Accommodation - Private Contractors Payment,9325.24,0.00,COMMERCIAL SUPPLIER 
 09-02-2024,People - Ageing Well,Lodge Group Care UK Ltd,Supported Other Accommodation - Private Contractors Payment,9619.72,0.00,COMMERCIAL SUPPLIER 
 09-02-2024,People - Ageing Well,Lodge Group Care UK Ltd,Supported Other Accommodation - Private Contractors Payment,9017.04,0.00,COMMERCIAL SUPPLIER 
 09-02-2024,People - Ageing Well,Lodge Group Care UK Ltd,Supported Other Accommodation - Private Contractors Payment,9325.24,0.00,COMMERCIAL SUPPLIER 
 09-02-2024,People - Ageing Well,Langley House,Residential Placements - Private Contractors Payment,3400.00,0.00,COMMERCIAL SUPPLIER 
 09-02-2024,People - Ageing Well,Langley House,Residential Placements - Private Contractors Payment,3085.80,0.00,COMMERCIAL SUPPLIER 
 09-02-2024,People - Ageing Well,Langley House,Residential Placements - Private Contractors Payment,3085.80,0.00,COMMERCIAL SUPPLIER 
 09-02-2024,People - Ageing Well,Langley House,Residential Placements - Private Contractors Payment,3085.80,0.00,COMMERCIAL SUPPLIER 
 09-02-2024,People - Ageing Well,Langley House,Residential Care Income,543.08,0.00,COMMERCIAL SUPPLIER 
 09-02-2024,People - Ageing Well,Langley House,Residential Care Income,641.83,0.00,COMMERCIAL SUPPLIER 
 09-02-2024,People - Ageing Well,Langley House,Residential Placements - Private Contractors Payment,3600.00,0.00,COMMERCIAL SUPPLIER 
 09-02-2024,People - Ageing Well,Langley House,Residential Placements - Private Contractors Payment,3085.80,0.00,COMMERCIAL SUPPLIER 
 09-02-2024,People - Ageing Well,Langley House,Residential Placements - Private Contractors Payment,3085.80,0.00,COMMERCIAL SUPPLIER 
 09-02-2024,People - Ageing Well,Langley House,Residential Placements - Private Contractors Payment,1928.57,0.00,COMMERCIAL SUPPLIER 
 09-02-2024,People - Ageing Well,Langley House,Residential Placements - Private Contractors Payment,3600.00,0.00,COMMERCIAL SUPPLIER 
 09-02-2024,People - Ageing Well,Langley House,Residential Placements - Private Contractors Payment,3600.00,0.00,COMMERCIAL SUPPLIER 
 09-02-2024,People - Ageing Well,Langley House,Residential Placements - Private Contractors Payment,2802.40,0.00,COMMERCIAL SUPPLIER 
 09-02-2024,People - Ageing Well,Langley House,Residential Placements - Private Contractors Payment,3400.00,0.00,COMMERCIAL SUPPLIER 
 09-02-2024,People - Ageing Well,Langley House,Residential Placements - Private Contractors Payment,3085.80,0.00,COMMERCIAL SUPPLIER 
 09-02-2024,People - Ageing Well,Langley House,Residential Placements - Private Contractors Payment,3604.00,0.00,COMMERCIAL SUPPLIER 
 09-02-2024,People - Ageing Well,Langley House,Residential Placements - Private Contractors Payment,1800.00,0.00,COMMERCIAL SUPPLIER 
 09-02-2024,People - Ageing Well,Langley House,Residential Placements - Private Contractors Payment,3600.00,0.00,COMMERCIAL SUPPLIER 
 09-02-2024,People - Ageing Well,Langley House,Residential Placements - Private Contractors Payment,3600.00,0.00,COMMERCIAL SUPPLIER 
 09-02-2024,People - Ageing Well,Langley House,Residential Placements - Private Contractors Payment,2828.57,0.00,COMMERCIAL SUPPLIER 
 09-02-2024,People - Ageing Well,Langley House,Residential Placements - Private Contractors Payment,3600.00,0.00,COMMERCIAL SUPPLIER 
 09-02-2024,People - Ageing Well,Langley House,Residential Placements - Private Contractors Payment,3085.80,0.00,COMMERCIAL SUPPLIER 
 09-02-2024,People - Ageing Well,Langley House,Residential Placements - Private Contractors Payment,2802.40,0.00,COMMERCIAL SUPPLIER 
 09-02-2024,People - Ageing Well,Little Gaynes,Respite Care - Private Contractors Payment,1800.00,0.00,COMMERCIAL SUPPLIER 
 09-02-2024,People - Ageing Well,Little Gaynes,Respite Care - Private Contractors Payment,1000.00,0.00,COMMERCIAL SUPPLIER 
 09-02-2024,People - Ageing Well,Little Gaynes,Respite Care - Private Contractors Payment,1714.29,0.00,COMMERCIAL SUPPLIER 
 09-02-2024,People - Ageing Well,Little Gaynes,Respite Care - Private Contractors Payment,1885.71,0.00,COMMERCIAL SUPPLIER 
 09-02-2024,People - Ageing Well,Little Gaynes,Residential Placements - Private Contractors Payment,3703.56,0.00,COMMERCIAL SUPPLIER 
 09-02-2024,People - Ageing Well,Little Gaynes,Residential Placements - Private Contractors Payment,4200.00,0.00,COMMERCIAL SUPPLIER 
 09-02-2024,People - Ageing Well,Little Gaynes,Residential Placements - Private Contractors Payment,3731.20,0.00,COMMERCIAL SUPPLIER 
 09-02-2024,People - Ageing Well,Little Gaynes,Residential Placements - Private Contractors Payment,3085.80,0.00,COMMERCIAL SUPPLIER 
 09-02-2024,People - Ageing Well,Moreland House_a,Nursing Care Income,797.41,0.00,COMMERCIAL SUPPLIER 
 09-02-2024,People - Ageing Well,Moreland House_a,Nursing Homes - Private Contractors Payment,4560.00,0.00,COMMERCIAL SUPPLIER 
 09-02-2024,People - Ageing Well,Moreland House_a,Nursing Homes - Private Contractors Payment,3237.08,0.00,COMMERCIAL SUPPLIER 
 09-02-2024,People - Ageing Well,Moreland House_a,Nursing Homes - Private Contractors Payment,3010.32,0.00,COMMERCIAL SUPPLIER 
 09-02-2024,People - Ageing Well,Moreland House_a,Nursing Homes - Private Contractors Payment,3010.32,0.00,COMMERCIAL SUPPLIER 
 09-02-2024,People - Ageing Well,Moreland House_a,Nursing Homes - Private Contractors Payment,4560.00,0.00,COMMERCIAL SUPPLIER 
 09-02-2024,People - Ageing Well,Moreland House_a,Residential Placements - Private Contractors Payment,4134.00,0.00,COMMERCIAL SUPPLIER 
 09-02-2024,People - Ageing Well,Moreland House_a,Nursing Homes - Private Contractors Payment,3010.32,0.00,COMMERCIAL SUPPLIER 
 09-02-2024,People - Ageing Well,Moreland House_a,Nursing Homes - Private Contractors Payment,9600.00,0.00,COMMERCIAL SUPPLIER 
 09-02-2024,People - Ageing Well,Moreland House_a,Nursing Homes - Private Contractors Payment,11040.00,0.00,COMMERCIAL SUPPLIER 
 09-02-2024,People - Ageing Well,Moreland House_a,Nursing Homes - Private Contractors Payment,4560.00,0.00,COMMERCIAL SUPPLIER 
 09-02-2024,People - Ageing Well,Moreland House_a,Nursing Homes - Private Contractors Payment,3010.32,0.00,COMMERCIAL SUPPLIER 
 09-02-2024,People - Ageing Well,Ladyville Lodge_a,Nursing Homes - Private Contractors Payment,3965.28,0.00,COMMERCIAL SUPPLIER 
 09-02-2024,People - Ageing Well,Ladyville Lodge_a,Residential Placements - Private Contractors Payment,1613.91,0.00,COMMERCIAL SUPPLIER 
 09-02-2024,People - Ageing Well,Ladyville Lodge_a,Residential Placements - Private Contractors Payment,3765.80,0.00,COMMERCIAL SUPPLIER 
 09-02-2024,People - Ageing Well,Ladyville Lodge_a,Residential Placements - Private Contractors Payment,5184.00,0.00,COMMERCIAL SUPPLIER 
 09-02-2024,People - Ageing Well,Ladyville Lodge_a,Residential Placements - Private Contractors Payment,4240.00,0.00,COMMERCIAL SUPPLIER 
 09-02-2024,People - Ageing Well,Ladyville Lodge_a,Residential Placements - Private Contractors Payment,4240.00,0.00,COMMERCIAL SUPPLIER 
 09-02-2024,People - Ageing Well,Ladyville Lodge_a,Residential Placements - Private Contractors Payment,5800.00,0.00,COMMERCIAL SUPPLIER 
 09-02-2024,People - Ageing Well,Nightingale Residential Care Home Ltd,Residential Placements - Private Contractors Payment,3085.80,0.00,COMMERCIAL SUPPLIER 
 09-02-2024,People - Ageing Well,Nightingale Residential Care Home Ltd,Residential Placements - Private Contractors Payment,1885.71,0.00,COMMERCIAL SUPPLIER 
 09-02-2024,People - Ageing Well,Nightingale Residential Care Home Ltd,Residential Placements - Private Contractors Payment,3816.00,0.00,COMMERCIAL SUPPLIER 
 09-02-2024,People - Ageing Well,Nightingale Residential Care Home Ltd,Residential Placements - Private Contractors Payment,4664.00,0.00,COMMERCIAL SUPPLIER 
 09-02-2024,People - Ageing Well,Nightingale Residential Care Home Ltd,Residential Placements - Private Contractors Payment,4400.00,0.00,COMMERCIAL SUPPLIER 
 09-02-2024,People - Ageing Well,Nightingale Residential Care Home Ltd,Residential Placements - Private Contractors Payment,1571.43,0.00,COMMERCIAL SUPPLIER 
 09-02-2024,People - Ageing Well,Nightingale Residential Care Home Ltd,Residential Placements - Private Contractors Payment,4400.00,0.00,COMMERCIAL SUPPLIER 
 09-02-2024,People - Ageing Well,Nightingale Residential Care Home Ltd,Residential Placements - Private Contractors Payment,4800.00,0.00,COMMERCIAL SUPPLIER 
 09-02-2024,People - Ageing Well,Nightingale Residential Care Home Ltd,Residential Placements - Private Contractors Payment,3604.00,0.00,COMMERCIAL SUPPLIER 
 09-02-2024,People - Ageing Well,Nightingale Residential Care Home Ltd,Residential Placements - Private Contractors Payment,2985.71,0.00,COMMERCIAL SUPPLIER 
 09-02-2024,People - Ageing Well,Nightingale Residential Care Home Ltd,Residential Placements - Private Contractors Payment,4240.00,0.00,COMMERCIAL SUPPLIER 
 09-02-2024,People - Ageing Well,Nightingale Residential Care Home Ltd,Residential Placements - Private Contractors Payment,4557.14,0.00,COMMERCIAL SUPPLIER 
 09-02-2024,People - Ageing Well,Nightingale Residential Care Home Ltd,Residential Placements - Private Contractors Payment,4400.00,0.00,COMMERCIAL SUPPLIER 
 09-02-2024,People - Ageing Well,Nightingale Residential Care Home Ltd,Residential Placements - Private Contractors Payment,3476.80,0.00,COMMERCIAL SUPPLIER 
 09-02-2024,People - Ageing Well,Nightingale Residential Care Home Ltd,Residential Placements - Private Contractors Payment,3085.80,0.00,COMMERCIAL SUPPLIER 
 09-02-2024,People - Ageing Well,Nightingale Residential Care Home Ltd,Residential Placements - Private Contractors Payment,4134.00,0.00,COMMERCIAL SUPPLIER 
 09-02-2024,People - Ageing Well,Nightingale Residential Care Home Ltd,Residential Placements - Private Contractors Payment,4800.00,0.00,COMMERCIAL SUPPLIER 
 09-02-2024,People - Ageing Well,Nightingale Residential Care Home Ltd,Residential Placements - Private Contractors Payment,661.24,0.00,COMMERCIAL SUPPLIER 
 09-02-2024,People - Ageing Well,Nightingale Residential Care Home Ltd,Residential Placements - Private Contractors Payment,3816.00,0.00,COMMERCIAL SUPPLIER 
 09-02-2024,People - Ageing Well,Oaks Residential Home,Residential Placements - Private Contractors Payment,5600.00,0.00,COMMERCIAL SUPPLIER 
 09-02-2024,People - Ageing Well,Oaks Residential Home,Respite Care - Private Contractors Payment,3200.00,0.00,COMMERCIAL SUPPLIER 
 09-02-2024,People - Ageing Well,Oaks Residential Home,Residential Placements - Private Contractors Payment,3085.80,0.00,COMMERCIAL SUPPLIER 
 09-02-2024,People - Ageing Well,Oaks Residential Home,Residential Placements - Private Contractors Payment,800.00,0.00,COMMERCIAL SUPPLIER 
 09-02-2024,People - Ageing Well,Oaks Residential Home,Residential Placements - Private Contractors Payment,5600.00,0.00,COMMERCIAL SUPPLIER 
 09-02-2024,People - Ageing Well,Oaks Residential Home,Residential Placements - Private Contractors Payment,800.00,0.00,COMMERCIAL SUPPLIER 
 09-02-2024,People - Ageing Well,Oaks Residential Home,Residential Placements - Private Contractors Payment,2096.64,0.00,COMMERCIAL SUPPLIER 
 09-02-2024,People - Ageing Well,Oaks Residential Home,Residential Placements - Private Contractors Payment,5600.00,0.00,COMMERCIAL SUPPLIER 
 09-02-2024,People - Ageing Well,Oaks Residential Home,Residential Placements - Private Contractors Payment,14676.48,0.00,COMMERCIAL SUPPLIER 
 09-02-2024,People - Ageing Well,Oaks Residential Home,Respite Care - Private Contractors Payment,5600.00,0.00,COMMERCIAL SUPPLIER 
 09-02-2024,People - Ageing Well,Oaks Residential Home,Respite Care - Private Contractors Payment,2600.00,0.00,COMMERCIAL SUPPLIER 
 09-02-2024,People - Ageing Well,Oaks Residential Home,Residential Placements - Private Contractors Payment,6000.00,0.00,COMMERCIAL SUPPLIER 
 09-02-2024,People - Ageing Well,Oaks Residential Home,Residential Placements - Private Contractors Payment,2802.40,0.00,COMMERCIAL SUPPLIER 
 09-02-2024,People - Ageing Well,Oaks Residential Home,Residential Placements - Private Contractors Payment,5600.00,0.00,COMMERCIAL SUPPLIER 
 09-02-2024,People - Ageing Well,Parkside_a,Respite Care - Private Contractors Payment,2802.40,0.00,COMMERCIAL SUPPLIER 
 09-02-2024,People - Ageing Well,Parkside_a,Residential Placements - Private Contractors Payment,2802.40,0.00,COMMERCIAL SUPPLIER 
 09-02-2024,People - Ageing Well,Parkside_a,Residential Placements - Private Contractors Payment,3800.00,0.00,COMMERCIAL SUPPLIER 
 09-02-2024,People - Ageing Well,Parkside_a,Residential Placements - Private Contractors Payment,2307.14,0.00,COMMERCIAL SUPPLIER 
 09-02-2024,People - Ageing Well,Parkside_a,Residential Placements - Private Contractors Payment,3085.80,0.00,COMMERCIAL SUPPLIER 
 09-02-2024,People - Ageing Well,Priory Supporting Care Ltd,Residential Placements - Private Contractors Payment,1371.43,0.00,COMMERCIAL SUPPLIER 
 09-02-2024,People - Ageing Well,Priory Supporting Care Ltd,Residential Placements - Private Contractors Payment,4720.00,0.00,COMMERCIAL SUPPLIER 
 09-02-2024,People - Ageing Well,Priory Supporting Care Ltd,Residential Placements - Private Contractors Payment,3085.80,0.00,COMMERCIAL SUPPLIER 
 09-02-2024,People - Ageing Well,Priory Supporting Care Ltd,Residential Placements - Private Contractors Payment,4968.00,0.00,COMMERCIAL SUPPLIER 
 09-02-2024,People - Ageing Well,Priory Supporting Care Ltd,Residential Placements - Private Contractors Payment,4400.00,0.00,COMMERCIAL SUPPLIER 
 09-02-2024,People - Ageing Well,Priory Supporting Care Ltd,Residential Placements - Private Contractors Payment,3994.08,0.00,COMMERCIAL SUPPLIER 
 09-02-2024,People - Ageing Well,Priory Supporting Care Ltd,Residential Placements - Private Contractors Payment,4600.00,0.00,COMMERCIAL SUPPLIER 
 09-02-2024,People - Ageing Well,Priory Supporting Care Ltd,Residential Placements - Private Contractors Payment,5000.00,0.00,COMMERCIAL SUPPLIER 
 09-02-2024,People - Ageing Well,Priory Supporting Care Ltd,Residential Placements - Private Contractors Payment,4104.00,0.00,COMMERCIAL SUPPLIER 
 09-02-2024,People - Ageing Well,Priory Supporting Care Ltd,Residential Placements - Private Contractors Payment,3816.00,0.00,COMMERCIAL SUPPLIER 
 09-02-2024,People - Ageing Well,Priory Supporting Care Ltd,Residential Placements - Private Contractors Payment,4800.00,0.00,COMMERCIAL SUPPLIER 
 09-02-2024,People - Ageing Well,Priory Supporting Care Ltd,Residential Placements - Private Contractors Payment,5200.00,0.00,COMMERCIAL SUPPLIER 
 09-02-2024,People - Ageing Well,Priory Supporting Care Ltd,Residential Placements - Private Contractors Payment,5000.00,0.00,COMMERCIAL SUPPLIER 
 09-02-2024,People - Ageing Well,Priory Supporting Care Ltd,Residential Placements - Private Contractors Payment,4600.00,0.00,COMMERCIAL SUPPLIER 
 09-02-2024,People - Ageing Well,Priory Supporting Care Ltd,Residential Placements - Private Contractors Payment,4800.00,0.00,COMMERCIAL SUPPLIER 
 09-02-2024,People - Ageing Well,Ash Grove Residential Care Home,Residential Placements - Private Contractors Payment,4800.00,0.00,COMMERCIAL SUPPLIER 
 09-02-2024,People - Ageing Well,Ash Grove Residential Care Home,Residential Placements - Private Contractors Payment,3392.00,0.00,COMMERCIAL SUPPLIER 
 09-02-2024,People - Ageing Well,Ash Grove Residential Care Home,Residential Placements - Private Contractors Payment,2802.40,0.00,COMMERCIAL SUPPLIER 
 09-02-2024,People - Ageing Well,Ash Grove Residential Care Home,Residential Placements - Private Contractors Payment,4000.00,0.00,COMMERCIAL SUPPLIER 
 09-02-2024,People - Ageing Well,Ash Grove Residential Care Home,Residential Placements - Private Contractors Payment,6000.00,0.00,COMMERCIAL SUPPLIER 
 09-02-2024,People - Ageing Well,Ash Grove Residential Care Home,Residential Placements - Private Contractors Payment,3392.00,0.00,COMMERCIAL SUPPLIER 
 09-02-2024,People - Ageing Well,Ash Grove Residential Care Home,Residential Placements - Private Contractors Payment,3392.00,0.00,COMMERCIAL SUPPLIER 
 09-02-2024,People - Ageing Well,Ash Grove Residential Care Home,Residential Placements - Private Contractors Payment,3085.80,0.00,COMMERCIAL SUPPLIER 
 09-02-2024,People - Ageing Well,Ash Grove Residential Care Home,Residential Placements - Private Contractors Payment,3800.00,0.00,COMMERCIAL SUPPLIER 
 09-02-2024,People - Ageing Well,Ash Grove Residential Care Home,Residential Placements - Private Contractors Payment,3600.00,0.00,COMMERCIAL SUPPLIER 
 09-02-2024,People - Ageing Well,Ash Grove Residential Care Home,Residential Placements - Private Contractors Payment,5200.00,0.00,COMMERCIAL SUPPLIER 
 09-02-2024,People - Ageing Well,Ash Grove Residential Care Home,Residential Placements - Private Contractors Payment,3392.00,0.00,COMMERCIAL SUPPLIER 
 09-02-2024,People - Ageing Well,Ash Grove Residential Care Home,Residential Placements - Private Contractors Payment,3392.00,0.00,COMMERCIAL SUPPLIER 
 09-02-2024,People - Ageing Well,GCH - Hillside Nursing Home,Residential Placements - Private Contractors Payment,2802.40,0.00,COMMERCIAL SUPPLIER 
 09-02-2024,People - Ageing Well,GCH - Hillside Nursing Home,Nursing Homes - Private Contractors Payment,3509.88,0.00,COMMERCIAL SUPPLIER 
 09-02-2024,People - Ageing Well,GCH - Hillside Nursing Home,Nursing Homes - Private Contractors Payment,14784.00,0.00,COMMERCIAL SUPPLIER 
 09-02-2024,People - Ageing Well,GCH - Hillside Nursing Home,Residential Placements - Private Contractors Payment,3899.88,0.00,COMMERCIAL SUPPLIER 
 09-02-2024,People - Ageing Well,GCH - Hillside Nursing Home,Residential Placements - Private Contractors Payment,7392.00,0.00,COMMERCIAL SUPPLIER 
 09-02-2024,People - Ageing Well,GCH - Hillside Nursing Home,Nursing Homes - Private Contractors Payment,3010.32,0.00,COMMERCIAL SUPPLIER 
 09-02-2024,People - Ageing Well,GCH - Hillside Nursing Home,Nursing Homes - Private Contractors Payment,3010.32,0.00,COMMERCIAL SUPPLIER 
 09-02-2024,People - Ageing Well,GCH - Hillside Nursing Home,Nursing Homes - Private Contractors Payment,4600.00,0.00,COMMERCIAL SUPPLIER 
 09-02-2024,People - Ageing Well,GCH - Hillside Nursing Home,Residential Placements - Private Contractors Payment,3085.80,0.00,COMMERCIAL SUPPLIER 
 09-02-2024,People - Ageing Well,GCH - Hillside Nursing Home,Nursing Homes - Private Contractors Payment,4600.00,0.00,COMMERCIAL SUPPLIER 
 09-02-2024,People - Ageing Well,GCH - Hillside Nursing Home,Nursing Homes - Private Contractors Payment,4218.80,0.00,COMMERCIAL SUPPLIER 
 09-02-2024,People - Ageing Well,GCH - Hillside Nursing Home,Nursing Homes - Private Contractors Payment,3816.00,0.00,COMMERCIAL SUPPLIER 
 09-02-2024,People - Ageing Well,GCH - Hillside Nursing Home,Nursing Homes - Private Contractors Payment,4247.64,0.00,COMMERCIAL SUPPLIER 
 09-02-2024,People - Ageing Well,GCH - Hillside Nursing Home,Nursing Homes - Private Contractors Payment,4200.00,0.00,COMMERCIAL SUPPLIER 
 09-02-2024,People - Ageing Well,GCH - Hillside Nursing Home,Nursing Homes - Private Contractors Payment,4876.00,0.00,COMMERCIAL SUPPLIER 
 09-02-2024,People - Ageing Well,GCH - Hillside Nursing Home,Nursing Homes - Private Contractors Payment,4780.00,0.00,COMMERCIAL SUPPLIER 
 09-02-2024,People - Ageing Well,GCH - Hillside Nursing Home,Nursing Care Income,922.88,0.00,COMMERCIAL SUPPLIER 
 09-02-2024,People - Ageing Well,GCH - Hillside Nursing Home,Residential Placements - Private Contractors Payment,4876.00,0.00,COMMERCIAL SUPPLIER 
 09-02-2024,People - Ageing Well,GCH - Hillside Nursing Home,Nursing Homes - Private Contractors Payment,714.29,0.00,COMMERCIAL SUPPLIER 
 09-02-2024,People - Ageing Well,GCH - Hillside Nursing Home,Nursing Homes - Private Contractors Payment,5000.00,0.00,COMMERCIAL SUPPLIER 
 09-02-2024,People - Ageing Well,GCH - Hillside Nursing Home,Nursing Homes - Private Contractors Payment,5000.00,0.00,COMMERCIAL SUPPLIER 
 09-02-2024,People - Ageing Well,GCH - Hillside Nursing Home,Nursing Homes - Private Contractors Payment,3010.32,0.00,COMMERCIAL SUPPLIER 
 09-02-2024,People - Ageing Well,GCH - Hillside Nursing Home,Residential Placements - Private Contractors Payment,3085.80,0.00,COMMERCIAL SUPPLIER 
 09-02-2024,People - Ageing Well,Outlook Care - 86 Veronica Close,Residential Placements - Private Contractors Payment,4875.52,0.00,COMMERCIAL SUPPLIER 
 09-02-2024,People - Ageing Well,Outlook Care - 86 Veronica Close,Residential Placements - Private Contractors Payment,4875.52,0.00,COMMERCIAL SUPPLIER 
 09-02-2024,People - Ageing Well,Outlook Care - 86 Veronica Close,Residential Placements - Private Contractors Payment,4875.52,0.00,COMMERCIAL SUPPLIER 
 09-02-2024,People - Ageing Well,Outlook Care - 86 Veronica Close,Residential Placements - Private Contractors Payment,4875.52,0.00,COMMERCIAL SUPPLIER 
 09-02-2024,People - Ageing Well,Outlook Care - 86 Veronica Close,Residential Placements - Private Contractors Payment,4875.52,0.00,COMMERCIAL SUPPLIER 
 09-02-2024,People - Ageing Well,Outlook Care - 86 Veronica Close,Residential Placements - Private Contractors Payment,4875.52,0.00,COMMERCIAL SUPPLIER 
 09-02-2024,People - Ageing Well,Outlook Care - 86 Veronica Close,Residential Placements - Private Contractors Payment,1565.56,0.00,COMMERCIAL SUPPLIER 
 09-02-2024,People - Ageing Well,Outlook Care - 86 Veronica Close,Residential Placements - Private Contractors Payment,4875.52,0.00,COMMERCIAL SUPPLIER 
 09-02-2024,People - Ageing Well,Outlook Care - 86 Veronica Close,Residential Placements - Private Contractors Payment,4875.52,0.00,COMMERCIAL SUPPLIER 
 09-02-2024,People - Ageing Well,Outlook Care - 86 Veronica Close,Residential Placements - Private Contractors Payment,4875.52,0.00,COMMERCIAL SUPPLIER 
 09-02-2024,People - Ageing Well,Outlook Care - 86 Veronica Close,Residential Placements - Private Contractors Payment,4875.52,0.00,COMMERCIAL SUPPLIER 
 09-02-2024,People - Ageing Well,Lodge Lane Care Home Limited,Residential Placements - Private Contractors Payment,3085.80,0.00,COMMERCIAL SUPPLIER 
 09-02-2024,People - Ageing Well,Lodge Lane Care Home Limited,Residential Placements - Private Contractors Payment,3085.80,0.00,COMMERCIAL SUPPLIER 
 09-02-2024,People - Ageing Well,Lodge Lane Care Home Limited,Residential Placements - Private Contractors Payment,3085.80,0.00,COMMERCIAL SUPPLIER 
 09-02-2024,People - Ageing Well,Lodge Lane Care Home Limited,Residential Placements - Private Contractors Payment,3085.80,0.00,COMMERCIAL SUPPLIER 
 09-02-2024,People - Ageing Well,Lodge Lane Care Home Limited,Residential Placements - Private Contractors Payment,5000.00,0.00,COMMERCIAL SUPPLIER 
 09-02-2024,People - Ageing Well,Lodge Lane Care Home Limited,Residential Placements - Private Contractors Payment,3085.80,0.00,COMMERCIAL SUPPLIER 
 09-02-2024,People - Ageing Well,Lodge Lane Care Home Limited,Residential Placements - Private Contractors Payment,3085.80,0.00,COMMERCIAL SUPPLIER 
 09-02-2024,People - Ageing Well,Lodge Lane Care Home Limited,Residential Placements - Private Contractors Payment,4800.00,0.00,COMMERCIAL SUPPLIER 
 09-02-2024,People - Ageing Well,Lodge Lane Care Home Limited,Residential Placements - Private Contractors Payment,4800.00,0.00,COMMERCIAL SUPPLIER 
 09-02-2024,People - Ageing Well,Lodge Lane Care Home Limited,Residential Placements - Private Contractors Payment,5200.00,0.00,COMMERCIAL SUPPLIER 
 09-02-2024,People - Ageing Well,Lodge Lane Care Home Limited,Residential Placements - Private Contractors Payment,3085.80,0.00,COMMERCIAL SUPPLIER 
 09-02-2024,People - Ageing Well,Lodge Lane Care Home Limited,Residential Placements - Private Contractors Payment,3085.80,0.00,COMMERCIAL SUPPLIER 
 09-02-2024,People - Ageing Well,Lodge Lane Care Home Limited,Residential Placements - Private Contractors Payment,3085.80,0.00,COMMERCIAL SUPPLIER 
 09-02-2024,People - Ageing Well,Lodge Lane Care Home Limited,Residential Placements - Private Contractors Payment,4800.00,0.00,COMMERCIAL SUPPLIER 
 09-02-2024,People - Ageing Well,Lodge Lane Care Home Limited,Residential Placements - Private Contractors Payment,3085.80,0.00,COMMERCIAL SUPPLIER 
 09-02-2024,People - Ageing Well,Lodge Lane Care Home Limited,Residential Placements - Private Contractors Payment,3085.80,0.00,COMMERCIAL SUPPLIER 
 09-02-2024,People - Ageing Well,Lodge Lane Care Home Limited,Residential Placements - Private Contractors Payment,3085.80,0.00,COMMERCIAL SUPPLIER 
 09-02-2024,People - Ageing Well,Lodge Lane Care Home Limited,Residential Placements - Private Contractors Payment,4800.00,0.00,COMMERCIAL SUPPLIER 
 09-02-2024,People - Ageing Well,Lodge Lane Care Home Limited,Residential Placements - Private Contractors Payment,5600.00,0.00,COMMERCIAL SUPPLIER 
 09-02-2024,People - Ageing Well,Lodge Lane Care Home Limited,Residential Placements - Private Contractors Payment,3085.80,0.00,COMMERCIAL SUPPLIER 
 09-02-2024,People - Ageing Well,Lodge Lane Care Home Limited,Residential Placements - Private Contractors Payment,3085.80,0.00,COMMERCIAL SUPPLIER 
 09-02-2024,People - Ageing Well,Lodge Lane Care Home Limited,Residential Placements - Private Contractors Payment,3600.00,0.00,COMMERCIAL SUPPLIER 
 09-02-2024,People - Ageing Well,Lodge Lane Care Home Limited,Residential Placements - Private Contractors Payment,3400.00,0.00,COMMERCIAL SUPPLIER 
 09-02-2024,People - Ageing Well,Lodge Lane Care Home Limited,Residential Placements - Private Contractors Payment,3600.00,0.00,COMMERCIAL SUPPLIER 
 09-02-2024,People - Ageing Well,Lodge Lane Care Home Limited,Residential Placements - Private Contractors Payment,5200.00,0.00,COMMERCIAL SUPPLIER 
 09-02-2024,People - Ageing Well,Lodge Lane Care Home Limited,Residential Placements - Private Contractors Payment,4800.00,0.00,COMMERCIAL SUPPLIER 
 09-02-2024,People - Ageing Well,Lodge Lane Care Home Limited,Residential Placements - Private Contractors Payment,3085.80,0.00,COMMERCIAL SUPPLIER 
 09-02-2024,People - Ageing Well,Lodge Lane Care Home Limited,Residential Placements - Private Contractors Payment,3085.80,0.00,COMMERCIAL SUPPLIER 
 09-02-2024,People - Ageing Well,Lodge Lane Care Home Limited,Residential Placements - Private Contractors Payment,4400.00,0.00,COMMERCIAL SUPPLIER 
 09-02-2024,People - Ageing Well,Lodge Lane Care Home Limited,Residential Placements - Private Contractors Payment,3085.80,0.00,COMMERCIAL SUPPLIER 
 09-02-2024,People - Ageing Well,Lodge Lane Care Home Limited,Residential Placements - Private Contractors Payment,3085.80,0.00,COMMERCIAL SUPPLIER 
 09-02-2024,People - Ageing Well,Lodge Lane Care Home Limited,Residential Placements - Private Contractors Payment,3085.80,0.00,COMMERCIAL SUPPLIER 
 09-02-2024,People - Ageing Well,Lodge Lane Care Home Limited,Residential Placements - Private Contractors Payment,3400.00,0.00,COMMERCIAL SUPPLIER 
 09-02-2024,People - Ageing Well,Lodge Lane Care Home Limited,Residential Placements - Private Contractors Payment,3600.00,0.00,COMMERCIAL SUPPLIER 
 09-02-2024,People - Ageing Well,Lodge Lane Care Home Limited,Residential Placements - Private Contractors Payment,5600.00,0.00,COMMERCIAL SUPPLIER 
 09-02-2024,People - Ageing Well,Lodge Lane Care Home Limited,Residential Placements - Private Contractors Payment,4200.00,0.00,COMMERCIAL SUPPLIER 
 09-02-2024,People - Ageing Well,Lodge Lane Care Home Limited,Residential Placements - Private Contractors Payment,5000.00,0.00,COMMERCIAL SUPPLIER 
 09-02-2024,People - Ageing Well,Lodge Lane Care Home Limited,Residential Placements - Private Contractors Payment,3085.80,0.00,COMMERCIAL SUPPLIER 
 09-02-2024,People - Ageing Well,Lodge Lane Care Home Limited,Residential Placements - Private Contractors Payment,3600.00,0.00,COMMERCIAL SUPPLIER 
 09-02-2024,People - Ageing Well,Lodge Lane Care Home Limited,Residential Placements - Private Contractors Payment,3400.00,0.00,COMMERCIAL SUPPLIER 
 09-02-2024,People - Ageing Well,Lodge Lane Care Home Limited,Residential Placements - Private Contractors Payment,3500.00,0.00,COMMERCIAL SUPPLIER 
 09-02-2024,People - Ageing Well,Lodge Lane Care Home Limited,Residential Placements - Private Contractors Payment,4400.00,0.00,COMMERCIAL SUPPLIER 
 09-02-2024,People - Ageing Well,Lodge Lane Care Home Limited,Residential Placements - Private Contractors Payment,4800.00,0.00,COMMERCIAL SUPPLIER 
 09-02-2024,People - Ageing Well,Lodge Lane Care Home Limited,Residential Placements - Private Contractors Payment,3085.80,0.00,COMMERCIAL SUPPLIER 
 09-02-2024,People - Ageing Well,Lodge Lane Care Home Limited,Residential Placements - Private Contractors Payment,4800.00,0.00,COMMERCIAL SUPPLIER 
 09-02-2024,People - Ageing Well,Lodge Lane Care Home Limited,Residential Placements - Private Contractors Payment,3085.80,0.00,COMMERCIAL SUPPLIER 
 09-02-2024,People - Ageing Well,Lodge Lane Care Home Limited,Residential Placements - Private Contractors Payment,4800.00,0.00,COMMERCIAL SUPPLIER 
 09-02-2024,People - Ageing Well,Lodge Lane Care Home Limited,Residential Placements - Private Contractors Payment,3085.80,0.00,COMMERCIAL SUPPLIER 
 09-02-2024,People - Ageing Well,Lodge Lane Care Home Limited,Residential Placements - Private Contractors Payment,3085.80,0.00,COMMERCIAL SUPPLIER 
 09-02-2024,People - Ageing Well,Lodge Lane Care Home Limited,Residential Placements - Private Contractors Payment,4800.00,0.00,COMMERCIAL SUPPLIER 
 09-02-2024,People - Ageing Well,Lodge Lane Care Home Limited,Residential Placements - Private Contractors Payment,4000.00,0.00,COMMERCIAL SUPPLIER 
 09-02-2024,People - Ageing Well,Lodge Lane Care Home Limited,Residential Placements - Private Contractors Payment,3085.80,0.00,COMMERCIAL SUPPLIER 
 09-02-2024,People - Ageing Well,Lodge Lane Care Home Limited,Residential Placements - Private Contractors Payment,3085.80,0.00,COMMERCIAL SUPPLIER 
 09-02-2024,People - Ageing Well,Lodge Lane Care Home Limited,Residential Placements - Private Contractors Payment,4400.00,0.00,COMMERCIAL SUPPLIER 
 09-02-2024,People - Ageing Well,Lodge Lane Care Home Limited,Residential Placements - Private Contractors Payment,4800.00,0.00,COMMERCIAL SUPPLIER 
 09-02-2024,People - Ageing Well,Lodge Lane Care Home Limited,Residential Placements - Private Contractors Payment,3085.80,0.00,COMMERCIAL SUPPLIER 
 09-02-2024,People - Ageing Well,Lodge Lane Care Home Limited,Residential Placements - Private Contractors Payment,3085.80,0.00,COMMERCIAL SUPPLIER 
 09-02-2024,People - Ageing Well,Lodge Lane Care Home Limited,Residential Placements - Private Contractors Payment,6720.00,0.00,COMMERCIAL SUPPLIER 
 09-02-2024,People - Ageing Well,Lodge Lane Care Home Limited,Residential Placements - Private Contractors Payment,4400.00,0.00,COMMERCIAL SUPPLIER 
 09-02-2024,People - Ageing Well,Blacksmith Health Care Ltd,Residential Placements - Private Contractors Payment,7101.16,0.00,COMMERCIAL SUPPLIER 
 09-02-2024,People - Ageing Well,Melody Lodge_a,Residential Placements - Private Contractors Payment,5067.56,0.00,COMMERCIAL SUPPLIER 
 09-02-2024,People - Ageing Well,Outlook Care_a,Supported Other Accommodation - Private Contractors Payment,2433.72,0.00,COMMERCIAL SUPPLIER 
 09-02-2024,People - Ageing Well,Abbottswood Lodge,Residential Placements - Private Contractors Payment,2800.00,0.00,COMMERCIAL SUPPLIER 
 09-02-2024,People - Ageing Well,Abbottswood Lodge,Residential Placements - Private Contractors Payment,600.00,0.00,COMMERCIAL SUPPLIER 
 09-02-2024,People - Ageing Well,Autism Initiatives,Residential Placements - Private Contractors Payment,6010.88,0.00,COMMERCIAL SUPPLIER 
 09-02-2024,People - Ageing Well,The Cottage Residential Care Home,Residential Placements - Private Contractors Payment,3204.32,0.00,COMMERCIAL SUPPLIER 
 09-02-2024,People - Ageing Well,The Cottage Residential Care Home,Residential Placements - Private Contractors Payment,1123.52,0.00,COMMERCIAL SUPPLIER 
 09-02-2024,People - Ageing Well,Ashgate House Ltd_a,Residential Placements - Private Contractors Payment,5792.48,0.00,COMMERCIAL SUPPLIER 
 09-02-2024,People - Ageing Well,Ashgate House Ltd_a,Residential Placements - Private Contractors Payment,846.16,0.00,COMMERCIAL SUPPLIER 
 09-02-2024,People - Ageing Well,Ashgate House Ltd_a,Residential Placements - Private Contractors Payment,4072.48,0.00,COMMERCIAL SUPPLIER 
 09-02-2024,People - Ageing Well,Ashgate House Ltd_a,Residential Placements - Private Contractors Payment,2280.96,0.00,COMMERCIAL SUPPLIER 
 09-02-2024,People - Ageing Well,Ashgate House Ltd_a,Residential Placements - Private Contractors Payment,5514.16,0.00,COMMERCIAL SUPPLIER 
 09-02-2024,People - Ageing Well,Ashgate House Ltd_a,Residential Placements - Private Contractors Payment,805.84,0.00,COMMERCIAL SUPPLIER 
 09-02-2024,People - Ageing Well,Ashgate House Ltd_a,Residential Placements - Private Contractors Payment,3953.36,0.00,COMMERCIAL SUPPLIER 
 09-02-2024,People - Ageing Well,Ashgate House Ltd_a,Residential Placements - Private Contractors Payment,1269.24,0.00,COMMERCIAL SUPPLIER 
 09-02-2024,People - Ageing Well,Ashgate House Ltd_a,Residential Placements - Private Contractors Payment,5080.32,0.00,COMMERCIAL SUPPLIER 
 09-02-2024,People - Ageing Well,Ashgate House Ltd_a,Residential Placements - Private Contractors Payment,1408.12,0.00,COMMERCIAL SUPPLIER 
 09-02-2024,People - Ageing Well,Voyage Ltd - Drakes Place,Residential Placements - Private Contractors Payment,4995.96,0.00,COMMERCIAL SUPPLIER 
 09-02-2024,People - Ageing Well,Acorn Village_a,Residential Placements - Private Contractors Payment,3739.92,0.00,COMMERCIAL SUPPLIER 
 09-02-2024,People - Ageing Well,Acorn Village_a,Residential Placements - Private Contractors Payment,774.92,0.00,COMMERCIAL SUPPLIER 
 09-02-2024,People - Ageing Well,Hilton House,Residential Placements - Private Contractors Payment,4626.80,0.00,COMMERCIAL SUPPLIER 
 09-02-2024,People - Ageing Well,Churchill House_a,Residential Placements - Private Contractors Payment,4295.52,0.00,COMMERCIAL SUPPLIER 
 09-02-2024,People - Ageing Well,Churchill House_a,Residential Placements - Private Contractors Payment,4551.64,0.00,COMMERCIAL SUPPLIER 
 09-02-2024,People - Ageing Well,Churchill House_a,Residential Placements - Private Contractors Payment,3197.80,0.00,COMMERCIAL SUPPLIER 
 09-02-2024,People - Ageing Well,Ashking House Ltd,Residential Placements - Private Contractors Payment,6750.60,0.00,COMMERCIAL SUPPLIER 
 09-02-2024,People - Ageing Well,Ashking House Ltd,Residential Placements - Private Contractors Payment,4438.56,0.00,COMMERCIAL SUPPLIER 
 09-02-2024,People - Ageing Well,Ashking House Ltd,Residential Placements - Private Contractors Payment,1746.20,0.00,COMMERCIAL SUPPLIER 
 09-02-2024,People - Ageing Well,Community Care Mission 2000 Ltd,Residential Placements - Private Contractors Payment,11721.84,0.00,COMMERCIAL SUPPLIER 
 09-02-2024,People - Ageing Well,Genesis Residential Homes Ltd - Dothan House,Residential Placements - Private Contractors Payment,3085.80,0.00,COMMERCIAL SUPPLIER 
 09-02-2024,People - Ageing Well,Genesis Residential Homes Ltd - Dothan House,Residential Placements - Private Contractors Payment,3085.80,0.00,COMMERCIAL SUPPLIER 
 09-02-2024,People - Ageing Well,Genesis Residential Homes Ltd - Dothan House,Residential Placements - Private Contractors Payment,3085.80,0.00,COMMERCIAL SUPPLIER 
 09-02-2024,People - Ageing Well,Genesis Residential Homes Ltd - Dothan House,Residential Placements - Private Contractors Payment,3085.80,0.00,COMMERCIAL SUPPLIER 
